{"text_format":"1","workbook":"xlsx","n_sheets":20,"sheets":["zemlje","Sifrarnici","šifrarnik zemalja i NKD","Tablica 1. Osoba za kontakt","Sifrarnik A.","Sifrarnik D.","Tablica A.1.IZRAVNA ULAGANJA","Tablica A.1.PORTFELJNA ULAGANJA","Tablica A.2.","Tablica A.4.","Tablica A.5.","Napomena","Sifarnik B.","Sifarnik B.B.","Tablica B.1.Izravna ulaganja","Tablica B.1.PORTFELJNA ULAGANJA","B.2.1.Transakcije-izravna","B.2.2.Transakcije-portfeljna","Tablica Dodatak A","Kreiranje datoteke"],"not_rendered":{"charts":0,"images":1,"macros":1,"external_links":0,"defined_names":22,"comments":6,"pivot_tables":0},"unopened":[],"bounds":{"document_bytes":16777216,"sheet_cells":100000,"rows_first":2000,"rows_last":500,"rows_between":2000,"halvings":0,"cell_chars":16384,"cell_head_chars":4096},"cells_cut":0,"cells_raw":0,"read":"whole","date_system":"1900"}

{"sheet":"zemlje","index":0,"n_rows":324,"n_cols":4,"rows_kept":324,"cut":false,"hidden":true,"merged":[]}
["AD",null,{"$f":"CONCATENATE(\"C-\",A1)","v":"C-AD"},{"$f":"CONCATENATE(\"O-\",A1)","v":"O-AD"}]
["AE",null,"C-AE","O-AE"]
["AF",null,"C-AF","O-AF"]
["AG",null,"C-AG","O-AG"]
["AI",null,"C-AI","O-AI"]
["AL",null,"C-AL","O-AL"]
["AM",null,"C-AM","O-AM"]
["AO",null,"C-AO","O-AO"]
["AQ",null,"C-AQ","O-AQ"]
["AR",null,"C-AR","O-AR"]
["AS",null,"C-AS","O-AS"]
["AT",null,"C-AT","O-AT"]
["AU",null,"C-AU","O-AU"]
["AW",null,"C-AW","O-AW"]
["AX",null,"C-AX","O-AX"]
["AZ",null,"C-AZ","O-AZ"]
["BA",null,"C-BA","O-BA"]
["BB",null,"C-BB","O-BB"]
["BD",null,"C-BD","O-BD"]
["BE",null,"C-BE","O-BE"]
["BF",null,"C-BF","O-BF"]
["BG",null,"C-BG","O-BG"]
["BH",null,"C-BH","O-BH"]
["BI",null,"C-BI","O-BI"]
["BJ",null,"C-BJ","O-BJ"]
["BL",null,"C-BL","O-BL"]
["BM",null,"C-BM","O-BM"]
["BN",null,"C-BN","O-BN"]
["BO",null,"C-BO","O-BO"]
["BQ",null,"C-BQ","O-BQ"]
["BR",null,"C-BR","O-BR"]
["BS",null,"C-BS","O-BS"]
["BT",null,"C-BT","O-BT"]
["BV",null,"C-BV","O-BV"]
["BW",null,"C-BW","O-BW"]
["BY",null,"C-BY","O-BY"]
["BZ",null,"C-BZ","O-BZ"]
["CA",null,"C-CA","O-CA"]
["CC",null,"C-CC","O-CC"]
["CD",null,"C-CD","O-CD"]
["CF",null,"C-CF","O-CF"]
["CG",null,"C-CG","O-CG"]
["CH",null,"C-CH","O-CH"]
["CI",null,"C-CI","O-CI"]
["CK",null,"C-CK","O-CK"]
["CL",null,"C-CL","O-CL"]
["CM",null,"C-CM","O-CM"]
["CN",null,"C-CN","O-CN"]
["CO",null,"C-CO","O-CO"]
["CR",null,"C-CR","O-CR"]
["CU",null,"C-CU","O-CU"]
["CV",null,"C-CV","O-CV"]
["CW",null,"C-CW","O-CW"]
["CX",null,"C-CX","O-CX"]
["CY",null,"C-CY","O-CY"]
["CZ",null,"C-CZ","O-CZ"]
["DE",null,"C-DE","O-DE"]
["DJ",null,"C-DJ","O-DJ"]
["DK",null,"C-DK","O-DK"]
["DM",null,"C-DM","O-DM"]
["DO",null,"C-DO","O-DO"]
["DZ",null,"C-DZ","O-DZ"]
["EC",null,"C-EC","O-EC"]
["EE",null,"C-EE","O-EE"]
["EG",null,{"$f":"CONCATENATE(\"C-\",A65)","v":"C-EG"},{"$f":"CONCATENATE(\"O-\",A65)","v":"O-EG"}]
["EH",null,"C-EH","O-EH"]
["ER",null,"C-ER","O-ER"]
["ES",null,"C-ES","O-ES"]
["ET",null,"C-ET","O-ET"]
["FI",null,"C-FI","O-FI"]
["FJ",null,"C-FJ","O-FJ"]
["FK",null,"C-FK","O-FK"]
["FM",null,"C-FM","O-FM"]
["FO",null,"C-FO","O-FO"]
["FR",null,"C-FR","O-FR"]
["GA",null,"C-GA","O-GA"]
["GB",null,"C-GB","O-GB"]
["GD",null,"C-GD","O-GD"]
["GE",null,"C-GE","O-GE"]
["GF",null,"C-GF","O-GF"]
["GG",null,"C-GG","O-GG"]
["GH",null,"C-GH","O-GH"]
["GI",null,"C-GI","O-GI"]
["GL",null,"C-GL","O-GL"]
["GM",null,"C-GM","O-GM"]
["GN",null,"C-GN","O-GN"]
["GP",null,"C-GP","O-GP"]
["GQ",null,"C-GQ","O-GQ"]
["GR",null,"C-GR","O-GR"]
["GS",null,"C-GS","O-GS"]
["GT",null,"C-GT","O-GT"]
["GU",null,"C-GU","O-GU"]
["GW",null,"C-GW","O-GW"]
["GY",null,"C-GY","O-GY"]
["HK",null,"C-HK","O-HK"]
["HM",null,"C-HM","O-HM"]
["HN",null,"C-HN","O-HN"]
["HT",null,"C-HT","O-HT"]
["HU",null,"C-HU","O-HU"]
["ID",null,"C-ID","O-ID"]
["IE",null,"C-IE","O-IE"]
["IL",null,"C-IL","O-IL"]
["IM",null,"C-IM","O-IM"]
["IN",null,"C-IN","O-IN"]
["IO",null,"C-IO","O-IO"]
["IQ",null,"C-IQ","O-IQ"]
["IR",null,"C-IR","O-IR"]
["IS",null,"C-IS","O-IS"]
["IT",null,"C-IT","O-IT"]
["JE",null,"C-JE","O-JE"]
["JM",null,"C-JM","O-JM"]
["JO",null,"C-JO","O-JO"]
["JP",null,"C-JP","O-JP"]
["KE",null,"C-KE","O-KE"]
["KG",null,"C-KG","O-KG"]
["KH",null,"C-KH","O-KH"]
["KI",null,"C-KI","O-KI"]
["KM",null,"C-KM","O-KM"]
["KN",null,"C-KN","O-KN"]
["KP",null,"C-KP","O-KP"]
["KR",null,"C-KR","O-KR"]
["KW",null,"C-KW","O-KW"]
["KY",null,"C-KY","O-KY"]
["KZ",null,"C-KZ","O-KZ"]
["LA",null,"C-LA","O-LA"]
["LB",null,"C-LB","O-LB"]
["LC",null,"C-LC","O-LC"]
["LI",null,"C-LI","O-LI"]
["LK",null,{"$f":"CONCATENATE(\"C-\",A129)","v":"C-LK"},{"$f":"CONCATENATE(\"O-\",A129)","v":"O-LK"}]
["LR",null,"C-LR","O-LR"]
["LS",null,"C-LS","O-LS"]
["LT",null,"C-LT","O-LT"]
["LU",null,"C-LU","O-LU"]
["LV",null,"C-LV","O-LV"]
["LY",null,"C-LY","O-LY"]
["MA",null,"C-MA","O-MA"]
["MC",null,"C-MC","O-MC"]
["MD",null,"C-MD","O-MD"]
["ME",null,"C-ME","O-ME"]
["MF",null,"C-MF","O-MF"]
["MG",null,"C-MG","O-MG"]
["MH",null,"C-MH","O-MH"]
["MK",null,"C-MK","O-MK"]
["ML",null,"C-ML","O-ML"]
["MM",null,"C-MM","O-MM"]
["MN",null,"C-MN","O-MN"]
["MO",null,"C-MO","O-MO"]
["MP",null,"C-MP","O-MP"]
["MQ",null,"C-MQ","O-MQ"]
["MR",null,"C-MR","O-MR"]
["MS",null,"C-MS","O-MS"]
["MT",null,"C-MT","O-MT"]
["MU",null,"C-MU","O-MU"]
["MV",null,"C-MV","O-MV"]
["MW",null,"C-MW","O-MW"]
["MX",null,"C-MX","O-MX"]
["MY",null,"C-MY","O-MY"]
["MZ",null,"C-MZ","O-MZ"]
["NA",null,"C-NA","O-NA"]
["NC",null,"C-NC","O-NC"]
["NE",null,"C-NE","O-NE"]
["NF",null,"C-NF","O-NF"]
["NG",null,"C-NG","O-NG"]
["NI",null,"C-NI","O-NI"]
["NL",null,"C-NL","O-NL"]
["NO",null,"C-NO","O-NO"]
["NP",null,"C-NP","O-NP"]
["NR",null,"C-NR","O-NR"]
["NU",null,"C-NU","O-NU"]
["NZ",null,"C-NZ","O-NZ"]
["OM",null,"C-OM","O-OM"]
["PA",null,"C-PA","O-PA"]
["PE",null,"C-PE","O-PE"]
["PF",null,"C-PF","O-PF"]
["PG",null,"C-PG","O-PG"]
["PH",null,"C-PH","O-PH"]
["PK",null,"C-PK","O-PK"]
["PL",null,"C-PL","O-PL"]
["PM",null,"C-PM","O-PM"]
["PN",null,"C-PN","O-PN"]
["PR",null,"C-PR","O-PR"]
["PS",null,"C-PS","O-PS"]
["PT",null,"C-PT","O-PT"]
["PW",null,"C-PW","O-PW"]
["PY",null,"C-PY","O-PY"]
["QA",null,"C-QA","O-QA"]
["RE",null,"C-RE","O-RE"]
["RO",null,"C-RO","O-RO"]
["RS",null,"C-RS","O-RS"]
["RU",null,"C-RU","O-RU"]
["RW",null,"C-RW","O-RW"]
["SA",null,"C-SA","O-SA"]
["SB",null,{"$f":"CONCATENATE(\"C-\",A193)","v":"C-SB"},{"$f":"CONCATENATE(\"O-\",A193)","v":"O-SB"}]
["SC",null,"C-SC","O-SC"]
["SD",null,"C-SD","O-SD"]
["SE",null,"C-SE","O-SE"]
["SG",null,"C-SG","O-SG"]
["SH",null,"C-SH","O-SH"]
["SI",null,"C-SI","O-SI"]
["SJ",null,"C-SJ","O-SJ"]
["SK",null,"C-SK","O-SK"]
["SL",null,"C-SL","O-SL"]
["SM",null,"C-SM","O-SM"]
["SN",null,"C-SN","O-SN"]
["SO",null,"C-SO","O-SO"]
["SR",null,"C-SR","O-SR"]
["SS",null,"C-SS","O-SS"]
["ST",null,"C-ST","O-ST"]
["SV",null,"C-SV","O-SV"]
["SX",null,"C-SX","O-SX"]
["SY",null,"C-SY","O-SY"]
["SZ",null,"C-SZ","O-SZ"]
["TC",null,"C-TC","O-TC"]
["TD",null,"C-TD","O-TD"]
["TF",null,"C-TF","O-TF"]
["TG",null,"C-TG","O-TG"]
["TH",null,"C-TH","O-TH"]
["TJ",null,"C-TJ","O-TJ"]
["TK",null,"C-TK","O-TK"]
["TL",null,"C-TL","O-TL"]
["TM",null,"C-TM","O-TM"]
["TN",null,"C-TN","O-TN"]
["TO",null,"C-TO","O-TO"]
["TR",null,"C-TR","O-TR"]
["TT",null,"C-TT","O-TT"]
["TV",null,"C-TV","O-TV"]
["TW",null,"C-TW","O-TW"]
["TZ",null,"C-TZ","O-TZ"]
["UA",null,"C-UA","O-UA"]
["UG",null,"C-UG","O-UG"]
["UM",null,"C-UM","O-UM"]
["US",null,"C-US","O-US"]
["UY",null,"C-UY","O-UY"]
["UZ",null,"C-UZ","O-UZ"]
["VA",null,"C-VA","O-VA"]
["VC",null,"C-VC","O-VC"]
["VE",null,"C-VE","O-VE"]
["VG",null,"C-VG","O-VG"]
["VI",null,"C-VI","O-VI"]
["VN",null,"C-VN","O-VN"]
["VU",null,"C-VU","O-VU"]
["WF",null,"C-WF","O-WF"]
["WS",null,"C-WS","O-WS"]
["XK",null,"C-XK","O-XK"]
["YE",null,"C-YE","O-YE"]
["YT",null,"C-YT","O-YT"]
["ZA",null,"C-ZA","O-ZA"]
["ZM",null,"C-ZM","O-ZM"]
["ZW",null,"C-ZW","O-ZW"]
["1B",null,"C-1B","O-1B"]
["1C",null,"C-1C","O-1C"]
["1D",null,"C-1D","O-1D"]
["1E",null,"C-1E","O-1E"]
["1F",null,"C-1F","O-1F"]
["1H",null,"C-1H","O-1H"]
["1J",null,"C-1J","O-1J"]
["1K",null,{"$f":"CONCATENATE(\"C-\",A257)","v":"C-1K"},{"$f":"CONCATENATE(\"O-\",A257)","v":"O-1K"}]
["1L",null,"C-1L","O-1L"]
["1M",null,"C-1M","O-1M"]
["1N",null,"C-1N","O-1N"]
["1O",null,"C-1O","O-1O"]
["1P",null,"C-1P","O-1P"]
["1Q",null,"C-1Q","O-1Q"]
["1R",null,"C-1R","O-1R"]
["1S",null,"C-1S","O-1S"]
["1T",null,"C-1T","O-1T"]
["1Z",null,"C-1Z","O-1Z"]
["4B",null,"C-4B","O-4B"]
["4C",null,"C-4C","O-4C"]
["4D",null,"C-4D","O-4D"]
["4E",null,"C-4E","O-4E"]
["4G",null,"C-4G","O-4G"]
["4H",null,"C-4H","O-4H"]
["4J",null,"C-4J","O-4J"]
["4K",null,"C-4K","O-4K"]
["4L",null,"C-4L","O-4L"]
["4M",null,"C-4M","O-4M"]
["4N",null,"C-4N","O-4N"]
["4P",null,"C-4P","O-4P"]
["4Q",null,"C-4Q","O-4Q"]
["5A",null,"C-5A","O-5A"]
["5B",null,"C-5B","O-5B"]
["5C",null,"C-5C","O-5C"]
["5D",null,"C-5D","O-5D"]
["5E",null,"C-5E","O-5E"]
["5F",null,"C-5F","O-5F"]
["5G",null,"C-5G","O-5G"]
["5H",null,"C-5H","O-5H"]
["5I",null,"C-5I","O-5I"]
["5J",null,"C-5J","O-5J"]
["5K",null,"C-5K","O-5K"]
["5L",null,"C-5L","O-5L"]
["5M",null,"C-5M","O-5M"]
["5N",null,"C-5N","O-5N"]
["5O",null,"C-5O","O-5O"]
["5P",null,"C-5P","O-5P"]
["5Q",null,"C-5Q","O-5Q"]
["5R",null,"C-5R","O-5R"]
["5S",null,"C-5S","O-5S"]
["5T",null,"C-5T","O-5T"]
["5U",null,"C-5U","O-5U"]
["5W",null,"C-5W","O-5W"]
["5X",null,"C-5X","O-5X"]
["5Y",null,"C-5Y","O-5Y"]
["5Z",null,"C-5Z","O-5Z"]
["6B",null,"C-6B","O-6B"]
["6C",null,"C-6C","O-6C"]
["6D",null,"C-6D","O-6D"]
["6E",null,"C-6E","O-6E"]
["6F",null,"C-6F","O-6F"]
["6G",null,"C-6G","O-6G"]
["6H",null,"C-6H","O-6H"]
["6I",null,"C-6I","O-6I"]
["6J",null,"C-6J","O-6J"]
["6K",null,"C-6K","O-6K"]
["6L",null,"C-6L","O-6L"]
["6M",null,"C-6M","O-6M"]
["6N",null,"C-6N","O-6N"]
["6O",null,"C-6O","O-6O"]
["6P",null,"C-6P","O-6P"]
["6Q",null,"C-6Q","O-6Q"]
["6R",null,"C-6R","O-6R"]
["6Z",null,"C-6Z","O-6Z"]
["7Z",null,"C-7Z","O-7Z"]

{"sheet":"Sifrarnici","index":1,"n_rows":645,"n_cols":37,"rows_kept":645,"cut":false,"hidden":true,"merged":[]}
[null,null,null,null,null,null,null,null,null,null,"OS1","202301",1,"uplata u novcu",{"$f":"CONCATENATE(M1, \" - \",N1)","v":"1 - uplata u novcu"},null,null,null,null,null,"B001",null,1,1,"Q1",null,"Uzgoj žitarica (osim riže), mahunarki i uljanog  sjemenja","0111",{"$f":"CONCATENATE(AB1, \" - \", AA1)","v":"0111 - Uzgoj žitarica (osim riže), mahunarki i uljanog  sjemenja"},null,null,null,null,null,null,null,"DA"]
[null,null,null,null,null,null,null,null,null,null,"OS2","202302",2,"maržni kredit brokera",{"$f":"CONCATENATE(M2, \" - \",N2)","v":"2 - maržni kredit brokera"},null,null,null,null,null,"B002",null,3,2,"Q2",null,"Uzgoj riže","0112","0112 - Uzgoj riže",null,null,null,null,null,null,null,"NE"]
[null,null,null,null,null,null,null,null,null,null,null,"202303",3,"stvari","3 - stvari",null,null,null,null,null,"B003",null,4,3,"Q3",null,"Uzgoj povrća, dinja i lubenica, korjenastog i gomoljastog povrća","0113","0113 - Uzgoj povrća, dinja i lubenica, korjenastog i gomoljastog povrća"]
[null,null,null,null,null,null,null,null,null,null,null,"202304",4,"prava i licence","4 - prava i licence",null,null,null,null,null,"B004",null,null,4,"Q4",null,"Uzgoj šećerne trske","0114","0114 - Uzgoj šećerne trske"]
[null,null,null,null,null,null,null,null,null,null,null,"202305",5,"zamjena dužničkog odnosa vlasničkim","5 - zamjena dužničkog odnosa vlasničkim",null,null,null,null,null,"B005",null,null,5,null,null,"Uzgoj duhana","0115","0115 - Uzgoj duhana"]
[null,null,null,null,null,null,null,null,null,null,null,"202306",7,"fin.potraživanja / imovina (osim dionica/vl.udjela)","7 - fin.potraživanja / imovina (osim dionica/vl.udjela)",null,null,null,null,null,"B006",null,null,6,null,null,"Uzgoj predivog bilja ","0116","0116 - Uzgoj predivog bilja "]
[null,null,null,null,null,null,null,null,null,null,null,"202307","7a","fin. imovina u obliku dionica/vl.udjela rezidentnog društva","7a - fin. imovina u obliku dionica/vl.udjela rezidentnog društva",null,null,null,null,null,"B007",null,null,7,null,null,"Uzgoj ostalih jednogodišnjih usjeva ","0119","0119 - Uzgoj ostalih jednogodišnjih usjeva "]
[null,null,null,null,null,null,null,null,null,null,null,"202308","7b","fin. imovina u obliku dionica/vl.udjela nerezidentnog društva ","7b - fin. imovina u obliku dionica/vl.udjela nerezidentnog društva ",null,null,null,null,null,"B008",null,null,8,null,null,"Uzgoj grožđa ","0121","0121 - Uzgoj grožđa "]
[null,null,null,null,null,null,null,null,null,null,null,"202309","7c","vl. udjeli (dionice) stečene kroz dividendu u dionicama ","7c - vl. udjeli (dionice) stečene kroz dividendu u dionicama ",null,null,null,null,null,"B009",null,null,9,null,null,"Uzgoj tropskog i suptropskog voća","0122","0122 - Uzgoj tropskog i suptropskog voća"]
[null,null,null,null,null,null,null,null,null,null,null,"202310",8,"pripajanja i spajanja",{"$f":"CONCATENATE(M10, \" - \",N10)","v":"8 - pripajanja i spajanja"},null,null,null,null,null,"B010",null,null,10,null,null,"Uzgoj agruma","0123","0123 - Uzgoj agruma"]
[null,null,null,null,null,null,null,null,null,null,null,"202311",11,"prijenos nekretnine",{"$f":"CONCATENATE(M11, \" - \",N11)","v":"11 - prijenos nekretnine"},null,null,null,null,null,"B011",null,null,null,null,null,"Uzgoj  jezgričavog i koštuničavog  voća","0124","0124 - Uzgoj  jezgričavog i koštuničavog  voća"]
[null,null,null,null,null,null,null,null,null,null,null,"202312",12,"prijenos vlasništva bez naknade",{"$f":"CONCATENATE(M12, \" - \",N12)","v":"12 - prijenos vlasništva bez naknade"},null,null,null,null,null,"B012",null,null,null,null,null,"Uzgoj bobičastog, orašastog i ostalog voća ","0125","0125 - Uzgoj bobičastog, orašastog i ostalog voća "]
[null,null,null,null,null,null,null,null,null,null,null,"202401","P","neparticiprajuće povlaštene dionice",{"$f":"CONCATENATE(M13, \" - \",N13)","v":"P - neparticiprajuće povlaštene dionice"},null,null,null,null,null,"B013",null,null,null,null,null,"Uzgoj uljanih plodova","0126","0126 - Uzgoj uljanih plodova"]
[null,null,null,null,null,null,null,null,null,null,null,"202402",null,null,null,null,null,null,null,null,"B014",null,null,null,null,null,"Uzgoj usjeva za pripremanje napitaka","0127","0127 - Uzgoj usjeva za pripremanje napitaka"]
[null,null,null,null,null,null,null,null,null,null,null,"202403",null,null,null,null,null,null,null,null,"B015",null,null,null,null,null,"Uzgoj bilja za uporabu u farmaciji, aromatskog, začinskog i ljekovitog bilja  ","0128","0128 - Uzgoj bilja za uporabu u farmaciji, aromatskog, začinskog i ljekovitog bilja  "]
[null,null,null,null,null,null,null,null,null,null,null,"202404",null,null,null,null,null,null,null,null,"B016",null,null,null,null,null,"Uzgoj  ostalih višegodišnjih usjeva ","0129","0129 - Uzgoj  ostalih višegodišnjih usjeva "]
[null,null,null,null,null,null,null,null,null,null,null,"202405",null,null,null,null,null,null,null,null,"B017",null,null,null,null,null,"Uzgoj sadnog materijala i ukrasnog bilja","0130","0130 - Uzgoj sadnog materijala i ukrasnog bilja"]
[null,null,null,null,null,null,null,null,null,null,null,"202406",null,null,null,null,null,null,null,null,"B018",null,null,null,null,null,"Uzgoj muznih krava","0141","0141 - Uzgoj muznih krava"]
[null,null,null,null,null,null,null,null,null,null,null,"202407",null,null,null,null,null,null,null,null,"B019",null,null,null,null,null,"Uzgoj ostalih goveda i bivola","0142","0142 - Uzgoj ostalih goveda i bivola"]
[null,null,null,null,null,null,null,null,null,null,null,"202408",null,null,null,null,null,null,null,null,"B020",null,null,null,null,null,"Uzgoj konja, magaraca, mula i mazgi","0143","0143 - Uzgoj konja, magaraca, mula i mazgi"]
[null,null,null,null,null,null,null,null,null,null,null,"202409",null,null,null,null,null,null,null,null,"B021",null,null,null,null,null,"Uzgoj deva i  ljama","0144","0144 - Uzgoj deva i  ljama"]
[null,null,null,null,null,null,null,null,null,null,null,"202410",null,null,null,null,null,null,null,null,"B022",null,null,null,null,null,"Uzgoj ovaca i koza","0145","0145 - Uzgoj ovaca i koza"]
[null,null,null,null,null,null,null,null,null,null,null,"202411",null,null,null,null,null,null,null,null,"B023",null,null,null,null,null,"Uzgoj svinja","0146","0146 - Uzgoj svinja"]
[null,null,null,null,null,null,null,null,null,null,null,"202412",null,null,null,null,null,null,null,null,"B024",null,null,null,null,null,"Uzgoj peradi","0147","0147 - Uzgoj peradi"]
[null,null,null,null,null,null,null,null,null,null,null,"202501",null,null,null,null,null,null,null,null,"B025",null,null,null,null,null,"Uzgoj ostalih životinja","0149","0149 - Uzgoj ostalih životinja"]
[null,null,null,null,null,null,null,null,null,null,null,"202502",null,null,null,null,null,null,null,null,"B026",null,null,null,null,null,"Mješovita proizvodnja","0150","0150 - Mješovita proizvodnja"]
[null,null,null,null,null,null,null,null,null,null,null,"202503",null,null,null,null,null,null,null,null,"B027",null,null,null,null,null,"Pomoćne djelatnosti za uzgoj usjeva","0161","0161 - Pomoćne djelatnosti za uzgoj usjeva"]
[null,null,null,null,null,null,null,null,null,null,null,"202504",null,null,null,null,null,null,null,null,"B028",null,null,null,null,null,"Pomoćne djelatnosti za uzgoj životinja","0162","0162 - Pomoćne djelatnosti za uzgoj životinja"]
[null,null,null,null,null,null,null,null,null,null,null,"202505",null,null,null,null,null,null,null,null,"B029",null,null,null,null,null,"Djelatnosti koje se obavljaju nakon žetve usjeva (priprema usjeva za primarna tržišta)","0163","0163 - Djelatnosti koje se obavljaju nakon žetve usjeva (priprema usjeva za primarna tržišta)"]
[null,null,null,null,null,null,null,null,null,null,null,"202506",null,null,null,null,null,null,null,null,"B030",null,null,null,null,null,"Dorada sjemena za sjemenski  materijal","0164","0164 - Dorada sjemena za sjemenski  materijal"]
[null,null,null,null,null,null,null,null,null,null,null,"202507",null,null,null,null,null,null,null,null,"B031",null,null,null,null,null,"Lov, stupičarenje i uslužne djelatnosti povezane s njima","0170","0170 - Lov, stupičarenje i uslužne djelatnosti povezane s njima"]
[null,null,null,null,null,null,null,null,null,null,null,"202508",null,null,null,null,null,null,null,null,"B032",null,null,null,null,null,"Uzgoj šuma i ostale djelatnosti u šumarstvu povezane s njime","0210","0210 - Uzgoj šuma i ostale djelatnosti u šumarstvu povezane s njime"]
[null,null,null,null,null,null,null,null,null,null,null,"202509",null,null,null,null,null,null,null,null,"B033",null,null,null,null,null,"Sječa drva ","0220",{"$f":"CONCATENATE(AB33, \" - \", AA33)","v":"0220 - Sječa drva "}]
[null,null,null,null,null,null,null,null,null,null,null,"202510",null,null,null,null,null,null,null,null,"B034",null,null,null,null,null,"Skupljanje šumskih plodova i proizvoda, osim šumskih sortimenata","0230","0230 - Skupljanje šumskih plodova i proizvoda, osim šumskih sortimenata"]
[null,null,null,null,null,null,null,null,null,null,null,"202511",null,null,null,null,null,null,null,null,"B035",null,null,null,null,null,"Pomoćne usluge u šumarstvu","0240","0240 - Pomoćne usluge u šumarstvu"]
[null,null,null,null,null,null,null,null,null,null,null,"202512",null,null,null,null,null,null,null,null,"B036",null,null,null,null,null,"Morski ribolov","0311","0311 - Morski ribolov"]
[null,null,null,null,null,null,null,null,null,null,null,"202601",null,null,null,null,null,null,null,null,"B037",null,null,null,null,null,"Slatkovodni ribolov","0312","0312 - Slatkovodni ribolov"]
[null,null,null,null,null,null,null,null,null,null,null,"202602",null,null,null,null,null,null,null,null,"B038",null,null,null,null,null,"Morska akvakultura","0321","0321 - Morska akvakultura"]
[null,null,null,null,null,null,null,null,null,null,null,"202603",null,null,null,null,null,null,null,null,"B039",null,null,null,null,null,"Slatkovodna akvakultura","0322","0322 - Slatkovodna akvakultura"]
[null,null,null,null,null,null,null,null,null,null,null,"202604",null,null,null,null,null,null,null,null,"B040",null,null,null,null,null,"Vađenje kamenog ugljena","0510","0510 - Vađenje kamenog ugljena"]
[null,null,null,null,null,null,null,null,null,null,null,"202605",null,null,null,null,null,null,null,null,"B041",null,null,null,null,null,"Vađenje lignita","0520","0520 - Vađenje lignita"]
[null,null,null,null,null,null,null,null,null,null,null,"202606",null,null,null,null,null,null,null,null,"B042",null,null,null,null,null,"Vađenje sirove nafte ","0610","0610 - Vađenje sirove nafte "]
[null,null,null,null,null,null,null,null,null,null,null,"202607",null,null,null,null,null,null,null,null,"B043",null,null,null,null,null,"Vađenje prirodnog plina","0620","0620 - Vađenje prirodnog plina"]
[null,null,null,null,null,null,null,null,null,null,null,"202608",null,null,null,null,null,null,null,null,"B044"]
[null,null,null,null,null,null,null,null,null,null,null,"202609",null,null,null,null,null,null,null,null,"B045"]
[null,null,null,null,null,null,null,null,null,null,null,"202610",null,null,null,null,null,null,null,null,"B046"]
[null,null,null,null,null,null,null,null,null,null,null,"202611",null,null,null,null,null,null,null,null,"B047"]
[null,null,null,null,null,null,null,null,null,null,null,"202612",null,null,null,null,null,null,null,null,"B048"]
[null,null,null,null,null,null,null,null,null,null,null,"202701",null,null,null,null,null,null,null,null,"B049"]
[null,null,null,null,null,null,null,null,null,null,null,"202702",null,null,null,null,null,null,null,null,"B050"]
[null,null,null,null,null,null,null,null,null,null,null,"202703",null,null,null,null,null,null,null,null,"B051"]
[null,null,null,null,null,null,null,null,null,null,null,"202704",null,null,null,null,null,null,null,null,"B052"]
[null,null,null,null,null,null,null,null,null,null,null,"202705",null,null,null,null,null,null,null,null,"B053"]
[null,null,null,null,null,null,null,null,null,null,null,"202706",null,null,null,null,null,null,null,null,"B054"]
[null,null,null,null,null,null,null,null,null,null,null,"202707",null,null,null,null,null,null,null,null,"B055"]
[null,null,null,null,null,null,null,null,null,null,null,"202708",null,null,null,null,null,null,null,null,"B056"]
[null,null,null,null,null,null,null,null,null,null,null,"202709",null,null,null,null,null,null,null,null,"B057"]
[null,null,null,null,null,null,null,null,null,null,null,"202710",null,null,null,null,null,null,null,null,"B058"]
[null,null,null,null,null,null,null,null,null,null,null,"202711",null,null,null,null,null,null,null,null,"B059"]
[null,null,null,null,null,null,null,null,null,null,null,"202712",null,null,null,null,null,null,null,null,"B060"]
[null,null,null,null,null,null,null,null,null,null,null,"202801",null,null,null,null,null,null,null,null,"B061"]
[null,null,null,null,null,null,null,null,null,null,null,"202802",null,null,null,null,null,null,null,null,"B062"]
[null,null,null,null,null,null,null,null,null,null,null,"202803",null,null,null,null,null,null,null,null,"B063"]
[null,null,null,null,null,null,null,null,null,null,null,"202804",null,null,null,null,null,null,null,null,"B064"]
[null,null,null,null,null,null,null,null,null,null,null,"202805",null,null,null,null,null,null,null,null,"B065"]
[null,null,null,null,null,null,null,null,null,null,null,"202806",null,null,null,null,null,null,null,null,"B066"]
[null,null,null,null,null,null,null,null,null,null,null,"202807",null,null,null,null,null,null,null,null,"B067"]
[null,null,null,null,null,null,null,null,null,null,null,"202808",null,null,null,null,null,null,null,null,"B068"]
[null,null,null,null,null,null,null,null,null,null,null,"202809",null,null,null,null,null,null,null,null,"B069"]
[null,null,null,null,null,null,null,null,null,null,null,"202810",null,null,null,null,null,null,null,null,"B070"]
[null,null,null,null,null,null,null,null,null,null,null,"202811"]
[null,null,null,null,null,null,null,null,null,null,null,"202812"]
[]
[null,null,null,null,null,null,null,null,null,null,null,null,null,null,null,null,null,null,null,null,null,null,null,null,null,null,"Vađenje željeznih ruda","0710","0710 - Vađenje željeznih ruda"]
[null,null,null,null,null,null,null,null,null,null,null,null,null,null,null,null,null,null,null,null,null,null,null,null,null,null,"Vađenje uranovih i torijevih ruda","0721","0721 - Vađenje uranovih i torijevih ruda"]
[null,null,null,null,null,null,null,null,null,null,null,null,null,null,null,null,null,null,null,null,null,null,null,null,null,null,"Vađenje ostalih ruda obojenih metala","0729","0729 - Vađenje ostalih ruda obojenih metala"]
[null,null,null,null,null,null,null,null,null,null,"A","001",null,null,null,null,null,null,null,null,null,null,null,null,null,null,"Vađenje ukrasnoga kamena i kamena za gradnju, vapnenca, gipsa, krede i škriljevca ","0811","0811 - Vađenje ukrasnoga kamena i kamena za gradnju, vapnenca, gipsa, krede i škriljevca "]
[null,null,null,null,null,null,null,null,null,null,"B","002","A","B",null,null,null,null,null,null,null,null,null,null,null,null,"Djelatnosti šljunčara i pješčara; vađenje gline i kaolina","0812","0812 - Djelatnosti šljunčara i pješčara; vađenje gline i kaolina"]
[null,null,null,null,null,null,null,null,null,null,"FA","003","B",null,null,null,null,null,null,null,null,null,null,null,null,null,"Vađenje minerala za kemikalije i gnojiva","0891","0891 - Vađenje minerala za kemikalije i gnojiva"]
[null,null,null,null,null,null,null,null,null,null,"FB","004","FA",null,null,null,null,null,null,null,null,null,null,null,null,null,"Vađenje treseta","0892","0892 - Vađenje treseta"]
[null,null,null,null,null,null,null,null,null,null,"C-","005","FB",null,null,null,null,null,null,null,null,null,null,null,null,null,"Vađenje soli","0893","0893 - Vađenje soli"]
[null,null,null,null,null,null,null,null,null,null,"O-","006",null,null,null,null,null,null,null,null,null,null,null,null,null,null,"Vađenje ostalih ruda i kamena, d. n.","0899","0899 - Vađenje ostalih ruda i kamena, d. n."]
[null,null,null,null,null,null,null,null,null,null,null,"007",null,null,null,null,null,null,null,null,null,null,null,null,null,null,"Pomoćne djelatnosti za vađenje nafte i prirodnog plina","0910","0910 - Pomoćne djelatnosti za vađenje nafte i prirodnog plina"]
[null,null,null,null,null,null,null,null,null,null,"B","008",null,null,null,null,null,null,null,null,null,null,null,null,null,null,"Pomoćne djelatnosti za ostalo rudarstvo i vađenje","0990","0990 - Pomoćne djelatnosti za ostalo rudarstvo i vađenje"]
[null,null,null,null,null,null,null,null,null,null,"A","009","B",null,null,null,null,null,null,null,null,null,null,null,null,null,"Prerada i konzerviranje mesa",1011,"1011 - Prerada i konzerviranje mesa"]
[null,null,null,null,null,null,null,null,null,null,"FA","010","A",null,null,null,null,null,null,null,null,null,null,null,null,null,"Prerada i konzerviranje mesa peradi",1012,"1012 - Prerada i konzerviranje mesa peradi"]
[null,null,null,null,null,null,null,null,null,null,"FB","011","FA",null,null,null,null,null,null,null,null,null,null,null,null,null,"Proizvodnja proizvoda od mesa i mesa peradi",1013,"1013 - Proizvodnja proizvoda od mesa i mesa peradi"]
[null,null,null,null,null,null,null,null,null,null,"C-","012","FB",null,null,null,null,null,null,null,null,null,null,null,null,null,"Prerada i konzerviranje riba, rakova i školjki ",1020,"1020 - Prerada i konzerviranje riba, rakova i školjki "]
[null,null,null,null,null,null,null,null,null,null,"O-","013",null,null,null,null,null,null,null,null,null,null,null,null,null,null,"Prerada i konzerviranje krumpira",1031,"1031 - Prerada i konzerviranje krumpira"]
[null,null,null,null,null,null,null,null,null,null,"I-","014",null,null,null,null,null,null,null,null,null,null,null,null,null,null,"Proizvodnja sokova od voća i povrća",1032,"1032 - Proizvodnja sokova od voća i povrća"]
[null,null,null,null,null,null,null,null,null,null,null,"015",null,null,null,null,null,null,null,null,null,null,null,null,null,null,"Ostala prerada i konzerviranje voća i povrća",1039,"1039 - Ostala prerada i konzerviranje voća i povrća"]
[null,null,null,null,null,null,null,null,null,null,null,"016",null,null,null,null,null,null,null,null,null,null,null,null,null,null,"Proizvodnja ulja i masti",1041,"1041 - Proizvodnja ulja i masti"]
[null,null,null,null,null,null,null,null,null,null,null,"017",null,null,null,null,null,null,null,null,null,null,null,null,null,null,"Proizvodnja margarina i sličnih jestivih masnoća",1042,"1042 - Proizvodnja margarina i sličnih jestivih masnoća"]
[null,null,null,null,null,null,null,null,null,null,null,"018",null,null,null,null,null,null,null,null,null,null,null,null,null,null,"Djelatnosti mljekara i proizvođača sira",1051,"1051 - Djelatnosti mljekara i proizvođača sira"]
[null,null,null,null,null,null,null,null,null,null,null,"019",null,null,null,null,null,null,null,null,null,null,null,null,null,null,"Proizvodnja sladoleda",1052,{"$f":"CONCATENATE(AB95, \" - \", AA95)","v":"1052 - Proizvodnja sladoleda"}]
[null,null,null,null,null,null,null,null,null,null,null,"020",null,null,null,null,null,null,null,null,null,null,null,null,null,null,"Proizvodnja mlinarskih proizvoda",1061,{"$f":"CONCATENATE(AB96, \" - \", AA96)","v":"1061 - Proizvodnja mlinarskih proizvoda"}]
[null,null,null,null,null,null,null,null,null,null,null,"021",null,null,null,null,null,null,null,null,null,null,null,null,null,null,"Proizvodnja škroba i škrobnih proizvoda",1062,"1062 - Proizvodnja škroba i škrobnih proizvoda"]
[null,null,null,null,null,null,null,null,null,null,null,"022",null,null,null,null,null,null,null,null,null,null,null,null,null,null,"Proizvodnja kruha, svježeg peciva i kolača",1071,"1071 - Proizvodnja kruha, svježeg peciva i kolača"]
[null,null,null,null,null,null,null,null,null,null,null,"023",null,null,null,null,null,null,null,null,null,null,null,null,null,null,"Proizvodnja dvopeka i keksa, trajnog peciva i kolača",1072,"1072 - Proizvodnja dvopeka i keksa, trajnog peciva i kolača"]
[null,null,null,null,null,null,null,null,null,null,null,"024",null,null,null,null,null,null,null,null,null,null,null,null,null,null,"Proizvodnja makarona, njoka, kuskusa i slične tjestenine",1073,"1073 - Proizvodnja makarona, njoka, kuskusa i slične tjestenine"]
[null,null,null,null,null,null,null,null,null,null,null,"025",null,null,null,null,null,null,null,null,null,null,null,null,null,null,"Proizvodnja šećera",1081,"1081 - Proizvodnja šećera"]
[null,null,null,null,null,null,null,null,null,null,null,"026",null,null,null,null,null,null,null,null,null,null,null,null,null,null,"Proizvodnja kakaa, čokolade i šećernih proizvoda",1082,"1082 - Proizvodnja kakaa, čokolade i šećernih proizvoda"]
[null,null,null,null,null,null,null,null,null,null,null,"027",null,null,null,null,null,null,null,null,null,null,null,null,null,null,"Proizvodnja čaja i kave",1083,"1083 - Proizvodnja čaja i kave"]
[null,null,null,null,null,null,null,null,null,null,null,"028",null,null,null,null,null,null,null,null,null,null,null,null,null,null,"Proizvodnja začina i drugih dodataka jelima",1084,"1084 - Proizvodnja začina i drugih dodataka jelima"]
[null,null,null,null,null,null,null,null,null,null,null,"029",null,null,null,null,null,null,null,null,null,null,null,null,null,null,"Proizvodnja pripremljenih jela i obroka",1085,"1085 - Proizvodnja pripremljenih jela i obroka"]
[null,null,null,null,null,null,null,null,null,null,null,"030",null,null,null,null,null,null,null,null,null,null,null,null,null,null,"Proizvodnja homogeniziranih prehrambenih pripravaka i dijetetske hrane",1086,"1086 - Proizvodnja homogeniziranih prehrambenih pripravaka i dijetetske hrane"]
[null,null,null,null,null,null,null,null,null,null,null,"031",null,null,null,null,null,null,null,null,null,null,null,null,null,null,"Proizvodnja ostalih prehrambenih proizvoda, d. n. ",1089,"1089 - Proizvodnja ostalih prehrambenih proizvoda, d. n. "]
[null,null,null,null,null,null,null,null,null,null,null,"032",null,null,null,null,null,null,null,null,null,null,null,null,null,null,"Proizvodnja pripremljene stočne hrane",1091,"1091 - Proizvodnja pripremljene stočne hrane"]
[null,null,null,null,null,null,null,null,null,null,null,"033",null,null,null,null,null,null,null,null,null,null,null,null,null,null,"Proizvodnja pripremljene hrane za kućne ljubimce",1092,"1092 - Proizvodnja pripremljene hrane za kućne ljubimce"]
[null,null,null,null,null,null,null,null,null,null,null,"034",null,null,null,null,null,null,null,null,null,null,null,null,null,null,"Destiliranje, pročišćavanje i miješanje alkoholnih pića",1101,"1101 - Destiliranje, pročišćavanje i miješanje alkoholnih pića"]
[null,null,null,null,null,null,null,null,null,null,null,"035",null,null,null,null,null,null,null,null,null,null,null,null,null,null,"Proizvodnja vina od grožđa",1102,"1102 - Proizvodnja vina od grožđa"]
[null,null,null,null,null,null,null,null,null,null,null,"036",null,null,null,null,null,null,null,null,null,null,null,null,null,null,"Proizvodnja jabukovače i ostalih voćnih vina",1103,"1103 - Proizvodnja jabukovače i ostalih voćnih vina"]
[null,null,null,null,null,null,null,null,null,null,null,"037",null,null,null,null,null,null,null,null,null,null,null,null,null,null,"Proizvodnja ostalih nedestiliranih fermentiranih pića",1104,"1104 - Proizvodnja ostalih nedestiliranih fermentiranih pića"]
[null,null,null,null,null,null,null,null,null,null,null,"038",null,null,null,null,null,null,null,null,null,null,null,null,null,null,"Proizvodnja piva",1105,"1105 - Proizvodnja piva"]
[null,null,null,null,null,null,null,null,null,null,null,"039",null,null,null,null,null,null,null,null,null,null,null,null,null,null,"Proizvodnja slada",1106,"1106 - Proizvodnja slada"]
[null,null,null,null,null,null,null,null,null,null,null,"040",null,null,null,null,null,null,null,null,null,null,null,null,null,null,"Proizvodnja osvježavajućih napitaka, mineralne vode i ostale flaširane vode",1107,"1107 - Proizvodnja osvježavajućih napitaka, mineralne vode i ostale flaširane vode"]
[null,null,null,null,null,null,null,null,null,null,null,"041",null,null,null,null,null,null,null,null,null,null,null,null,null,null,"Proizvodnja duhanskih proizvoda",1200,"1200 - Proizvodnja duhanskih proizvoda"]
[null,null,null,null,null,null,null,null,null,null,null,"042",null,null,null,null,null,null,null,null,null,null,null,null,null,null,"Priprema i predenje tekstilnih vlakana",1310,"1310 - Priprema i predenje tekstilnih vlakana"]
[null,null,null,null,null,null,null,null,null,null,null,"043",null,null,null,null,null,null,null,null,null,null,null,null,null,null,"Tkanje tekstila",1320,"1320 - Tkanje tekstila"]
[null,null,null,null,null,null,null,null,null,null,null,"044",null,null,null,null,null,null,null,null,null,null,null,null,null,null,"Dovršavanje tekstila",1330,"1330 - Dovršavanje tekstila"]
[null,null,null,null,null,null,null,null,null,null,null,"045",null,null,null,null,null,null,null,null,null,null,null,null,null,null,"Proizvodnja pletenih i kukičanih tkanina",1391,"1391 - Proizvodnja pletenih i kukičanih tkanina"]
[null,null,null,null,null,null,null,null,null,null,null,"046",null,null,null,null,null,null,null,null,null,null,null,null,null,null,"Proizvodnja gotovih tekstilnih proizvoda, osim odjeće",1392,"1392 - Proizvodnja gotovih tekstilnih proizvoda, osim odjeće"]
[null,null,null,null,null,null,null,null,null,null,null,"047",null,null,null,null,null,null,null,null,null,null,null,null,null,null,"Proizvodnja tepiha i sagova ",1393,"1393 - Proizvodnja tepiha i sagova "]
[null,null,null,null,null,null,null,null,null,null,null,"048",null,null,null,null,null,null,null,null,null,null,null,null,null,null,"Proizvodnja užadi, konopaca, upletenoga konca i mreža",1394,"1394 - Proizvodnja užadi, konopaca, upletenoga konca i mreža"]
[null,null,null,null,null,null,null,null,null,null,null,"049",null,null,null,null,null,null,null,null,null,null,null,null,null,null,"Proizvodnja netkanog tekstila i proizvoda od netkanog tekstila, osim odjeće",1395,"1395 - Proizvodnja netkanog tekstila i proizvoda od netkanog tekstila, osim odjeće"]
[null,null,null,null,null,null,null,null,null,null,null,"050",null,null,null,null,null,null,null,null,null,null,null,null,null,null,"Proizvodnja ostaloga tehničkog i industrijskog tekstila",1396,"1396 - Proizvodnja ostaloga tehničkog i industrijskog tekstila"]
[null,null,null,null,null,null,null,null,null,null,null,"051",null,null,null,null,null,null,null,null,null,null,null,null,null,null,"Proizvodnja ostalog tekstila, d. n.",1399,"1399 - Proizvodnja ostalog tekstila, d. n."]
[null,null,null,null,null,null,null,null,null,null,null,"052",null,null,null,null,null,null,null,null,null,null,null,null,null,null,"Proizvodnja kožne odjeće",1411,"1411 - Proizvodnja kožne odjeće"]
[null,null,null,null,null,null,null,null,null,null,null,"053",null,null,null,null,null,null,null,null,null,null,null,null,null,null,"Proizvodnja radne odjeće ",1412,"1412 - Proizvodnja radne odjeće "]
[null,null,null,null,null,null,null,null,null,null,null,"054",null,null,null,null,null,null,null,null,null,null,null,null,null,null,"Proizvodnja ostale vanjske odjeće",1413,"1413 - Proizvodnja ostale vanjske odjeće"]
[null,null,null,null,null,null,null,null,null,null,null,"055",null,null,null,null,null,null,null,null,null,null,null,null,null,null,"Proizvodnja rublja",1414,"1414 - Proizvodnja rublja"]
[null,null,null,null,null,null,null,null,null,null,null,"056",null,null,null,null,null,null,null,null,null,null,null,null,null,null,"Proizvodnja ostale odjeće i pribora za odjeću ",1419,"1419 - Proizvodnja ostale odjeće i pribora za odjeću "]
[null,null,null,null,null,null,null,null,null,null,null,"057",null,null,null,null,null,null,null,null,null,null,null,null,null,null,"Proizvodnja proizvoda od krzna",1420,"1420 - Proizvodnja proizvoda od krzna"]
[null,null,null,null,null,null,null,null,null,null,null,"058",null,null,null,null,null,null,null,null,null,null,null,null,null,null,"Proizvodnja pletenih i kukičanih čarapa",1431,"1431 - Proizvodnja pletenih i kukičanih čarapa"]
[null,null,null,null,null,null,null,null,null,null,null,"059",null,null,null,null,null,null,null,null,null,null,null,null,null,null,"Proizvodnja ostale pletene i kukičane odjeće",1439,"1439 - Proizvodnja ostale pletene i kukičane odjeće"]
[null,null,null,null,null,null,null,null,null,null,null,"060",null,null,null,null,null,null,null,null,null,null,null,null,null,null,"Štavljenje i obrada kože; dorada i bojenje krzna",1511,"1511 - Štavljenje i obrada kože; dorada i bojenje krzna"]
[null,null,null,null,null,null,null,null,null,null,null,"061",null,null,null,null,null,null,null,null,null,null,null,null,null,null,"Proizvodnja putnih i ručnih torba i slično, sedlarskih i remenarskih proizvoda",1512,"1512 - Proizvodnja putnih i ručnih torba i slično, sedlarskih i remenarskih proizvoda"]
[null,null,null,null,null,null,null,null,null,null,null,"062",null,null,null,null,null,null,null,null,null,null,null,null,null,null,"Proizvodnja obuće",1520,"1520 - Proizvodnja obuće"]
[null,null,null,null,null,null,null,null,null,null,null,"063",null,null,null,null,null,null,null,null,null,null,null,null,null,null,"Piljenje i blanjanje drva",1610,"1610 - Piljenje i blanjanje drva"]
[null,null,null,null,null,null,null,null,null,null,null,"064",null,null,null,null,null,null,null,null,null,null,null,null,null,null,"Proizvodnja furnira i ostalih ploča od drva",1621,"1621 - Proizvodnja furnira i ostalih ploča od drva"]
[null,null,null,null,null,null,null,null,null,null,null,"065",null,null,null,null,null,null,null,null,null,null,null,null,null,null,"Proizvodnja sastavljenog parketa",1622,"1622 - Proizvodnja sastavljenog parketa"]
[null,null,null,null,null,null,null,null,null,null,null,"066",null,null,null,null,null,null,null,null,null,null,null,null,null,null,"Proizvodnja ostale građevne stolarije i elemenata",1623,"1623 - Proizvodnja ostale građevne stolarije i elemenata"]
[null,null,null,null,null,null,null,null,null,null,null,"067",null,null,null,null,null,null,null,null,null,null,null,null,null,null,"Proizvodnja ambalaže od drva",1624,"1624 - Proizvodnja ambalaže od drva"]
[null,null,null,null,null,null,null,null,null,null,null,"068",null,null,null,null,null,null,null,null,null,null,null,null,null,null,"Proizvodnja ostalih proizvoda od drva, proizvoda od pluta, slame i pletarskih materijala",1629,"1629 - Proizvodnja ostalih proizvoda od drva, proizvoda od pluta, slame i pletarskih materijala"]
[null,null,null,null,null,null,null,null,null,null,null,"069",null,null,null,null,null,null,null,null,null,null,null,null,null,null,"Proizvodnja celuloze",1711,"1711 - Proizvodnja celuloze"]
[null,null,null,null,null,null,null,null,null,null,null,"070",null,null,null,null,null,null,null,null,null,null,null,null,null,null,"Proizvodnja papira i kartona",1712,"1712 - Proizvodnja papira i kartona"]
[null,null,null,null,null,null,null,null,null,null,null,null,null,null,null,null,null,null,null,null,null,null,null,null,null,null,"Proizvodnja valovitog papira i kartona te ambalaže od papira i kartona",1721,"1721 - Proizvodnja valovitog papira i kartona te ambalaže od papira i kartona"]
[null,null,null,null,null,null,null,null,null,null,null,null,null,null,null,null,null,null,null,null,null,null,null,null,null,null,"Proizvodnja robe za kućanstvo i higijenu te toaletnih potrepština od papira",1722,"1722 - Proizvodnja robe za kućanstvo i higijenu te toaletnih potrepština od papira"]
[null,null,null,null,null,null,null,null,null,null,null,null,null,null,null,null,null,null,null,null,null,null,null,null,null,null,"Proizvodnja uredskog materijala od papira",1723,"1723 - Proizvodnja uredskog materijala od papira"]
[null,null,null,null,null,null,null,null,null,null,null,null,null,null,null,null,null,null,null,null,null,null,null,null,null,null,"Proizvodnja zidnih tapeta",1724,"1724 - Proizvodnja zidnih tapeta"]
[null,null,null,null,null,null,null,null,null,null,null,null,null,null,null,null,null,null,null,null,null,null,null,null,null,null,"Proizvodnja ostalih proizvoda od papira i kartona",1729,"1729 - Proizvodnja ostalih proizvoda od papira i kartona"]
[null,null,null,null,null,null,null,null,null,null,null,null,null,null,null,null,null,null,null,null,null,null,null,null,null,null,"Tiskanje novina",1811,"1811 - Tiskanje novina"]
[null,null,null,null,null,null,null,null,null,null,null,null,null,null,null,null,null,null,null,null,null,null,null,null,null,null,"Ostalo tiskanje ",1812,"1812 - Ostalo tiskanje "]
[null,null,null,null,null,null,null,null,null,null,null,null,null,null,null,null,null,null,null,null,null,null,null,null,null,null,"Usluge pripreme za tisak i objavljivanje",1813,"1813 - Usluge pripreme za tisak i objavljivanje"]
[null,null,null,null,null,null,null,null,null,null,null,null,null,null,null,null,null,null,null,null,null,null,null,null,null,null,"Knjigoveške i srodne usluge ",1814,"1814 - Knjigoveške i srodne usluge "]
[null,null,null,null,null,null,null,null,null,null,null,null,null,null,null,null,null,null,null,null,null,null,null,null,null,null,"Umnožavanje snimljenih zapisa",1820,"1820 - Umnožavanje snimljenih zapisa"]
[null,null,null,null,null,null,null,null,null,null,null,null,null,null,null,null,null,null,null,null,null,null,null,null,null,null,"Proizvodnja proizvoda koksnih peći",1910,"1910 - Proizvodnja proizvoda koksnih peći"]
[null,null,null,null,null,null,null,null,null,null,null,null,null,null,null,null,null,null,null,null,null,null,null,null,null,null,"Proizvodnja rafiniranih naftnih proizvoda",1920,"1920 - Proizvodnja rafiniranih naftnih proizvoda"]
[null,null,null,null,null,null,null,null,null,null,null,null,null,null,null,null,null,null,null,null,null,null,null,null,null,null,"Proizvodnja industrijskih plinova",2011,"2011 - Proizvodnja industrijskih plinova"]
[null,null,null,null,null,null,null,null,null,null,null,null,null,null,null,null,null,null,null,null,null,null,null,null,null,null,"Proizvodnja koloranata i pigmenata",2012,{"$f":"CONCATENATE(AB160, \" - \", AA160)","v":"2012 - Proizvodnja koloranata i pigmenata"}]
[null,null,null,null,null,null,null,null,null,null,null,null,null,null,null,null,null,null,null,null,null,null,null,null,null,null,"Proizvodnja ostalih anorganskih osnovnih kemikalija",2013,"2013 - Proizvodnja ostalih anorganskih osnovnih kemikalija"]
[null,null,null,null,null,null,null,null,null,null,null,null,null,null,null,null,null,null,null,null,null,null,null,null,null,null,"Proizvodnja ostalih organskih osnovnih kemikalija",2014,"2014 - Proizvodnja ostalih organskih osnovnih kemikalija"]
[null,null,null,null,null,null,null,null,null,null,null,null,null,null,null,null,null,null,null,null,null,null,null,null,null,null,"Proizvodnja gnojiva i dušičnih spojeva",2015,"2015 - Proizvodnja gnojiva i dušičnih spojeva"]
[null,null,null,null,null,null,null,null,null,null,null,null,null,null,null,null,null,null,null,null,null,null,null,null,null,null,"Proizvodnja plastike u primarnim oblicima",2016,"2016 - Proizvodnja plastike u primarnim oblicima"]
[null,null,null,null,null,null,null,null,null,null,null,null,null,null,null,null,null,null,null,null,null,null,null,null,null,null,"Proizvodnja sintetičkoga kaučuka u primarnim oblicima",2017,"2017 - Proizvodnja sintetičkoga kaučuka u primarnim oblicima"]
[null,null,null,null,null,null,null,null,null,null,null,null,null,null,null,null,null,null,null,null,null,null,null,null,null,null,"Proizvodnja pesticida i drugih agrokemijskih proizvoda",2020,"2020 - Proizvodnja pesticida i drugih agrokemijskih proizvoda"]
[null,null,null,null,null,null,null,null,null,null,null,null,null,null,null,null,null,null,null,null,null,null,null,null,null,null,"Proizvodnja boja, lakova i sličnih premaza, grafičkih boja i kitova",2030,"2030 - Proizvodnja boja, lakova i sličnih premaza, grafičkih boja i kitova"]
[null,null,null,null,null,null,null,null,null,null,null,null,null,null,null,null,null,null,null,null,null,null,null,null,null,null,"Proizvodnja sapuna i deterdženata, sredstava za čišćenje i poliranje",2041,"2041 - Proizvodnja sapuna i deterdženata, sredstava za čišćenje i poliranje"]
[null,null,null,null,null,null,null,null,null,null,null,null,null,null,null,null,null,null,null,null,null,null,null,null,null,null,"Proizvodnja parfema i toaletno-kozmetičkih preparata",2042,"2042 - Proizvodnja parfema i toaletno-kozmetičkih preparata"]
[null,null,null,null,null,null,null,null,null,null,null,null,null,null,null,null,null,null,null,null,null,null,null,null,null,null,"Proizvodnja eksploziva",2051,"2051 - Proizvodnja eksploziva"]
[null,null,null,null,null,null,null,null,null,null,null,null,null,null,null,null,null,null,null,null,null,null,null,null,null,null,"Proizvodnja ljepila ",2052,"2052 - Proizvodnja ljepila "]
[null,null,null,null,null,null,null,null,null,null,null,null,null,null,null,null,null,null,null,null,null,null,null,null,null,null,"Proizvodnja eteričnih ulja",2053,"2053 - Proizvodnja eteričnih ulja"]
[null,null,null,null,null,null,null,null,null,null,null,null,null,null,null,null,null,null,null,null,null,null,null,null,null,null,"Proizvodnja ostalih kemijskih proizvoda, d. n. ",2059,"2059 - Proizvodnja ostalih kemijskih proizvoda, d. n. "]
[null,null,null,null,null,null,null,null,null,null,null,null,null,null,null,null,null,null,null,null,null,null,null,null,null,null,"Proizvodnja umjetnih vlakana",2060,"2060 - Proizvodnja umjetnih vlakana"]
[null,null,null,null,null,null,null,null,null,null,null,null,null,null,null,null,null,null,null,null,null,null,null,null,null,null,"Proizvodnja osnovnih farmaceutskih proizvoda",2110,"2110 - Proizvodnja osnovnih farmaceutskih proizvoda"]
[null,null,null,null,null,null,null,null,null,null,null,null,null,null,null,null,null,null,null,null,null,null,null,null,null,null,"Proizvodnja farmaceutskih pripravaka",2120,"2120 - Proizvodnja farmaceutskih pripravaka"]
[null,null,null,null,null,null,null,null,null,null,null,null,null,null,null,null,null,null,null,null,null,null,null,null,null,null,"Proizvodnja vanjskih i unutrašnjih guma za vozila; protektiranje vanjskih guma",2211,"2211 - Proizvodnja vanjskih i unutrašnjih guma za vozila; protektiranje vanjskih guma"]
[null,null,null,null,null,null,null,null,null,null,null,null,null,null,null,null,null,null,null,null,null,null,null,null,null,null,"Proizvodnja ostalih proizvoda od gume",2219,"2219 - Proizvodnja ostalih proizvoda od gume"]
[null,null,null,null,null,null,null,null,null,null,null,null,null,null,null,null,null,null,null,null,null,null,null,null,null,null,"Proizvodnja ploča, listova, cijevi i profila od plastike",2221,"2221 - Proizvodnja ploča, listova, cijevi i profila od plastike"]
[null,null,null,null,null,null,null,null,null,null,null,null,null,null,null,null,null,null,null,null,null,null,null,null,null,null,"Proizvodnja ambalaže od plastike",2222,"2222 - Proizvodnja ambalaže od plastike"]
[null,null,null,null,null,null,null,null,null,null,null,null,null,null,null,null,null,null,null,null,null,null,null,null,null,null,"Proizvodnja proizvoda od plastike za građevinarstvo",2223,"2223 - Proizvodnja proizvoda od plastike za građevinarstvo"]
[null,null,null,null,null,null,null,null,null,null,null,null,null,null,null,null,null,null,null,null,null,null,null,null,null,null,"Proizvodnja ostalih proizvoda od plastike",2229,"2229 - Proizvodnja ostalih proizvoda od plastike"]
[null,null,null,null,null,null,null,null,null,null,null,null,null,null,null,null,null,null,null,null,null,null,null,null,null,null,"Proizvodnja ravnog stakla",2311,"2311 - Proizvodnja ravnog stakla"]
[null,null,null,null,null,null,null,null,null,null,null,null,null,null,null,null,null,null,null,null,null,null,null,null,null,null,"Oblikovanje i obrada ravnog stakla",2312,"2312 - Oblikovanje i obrada ravnog stakla"]
[null,null,null,null,null,null,null,null,null,null,null,null,null,null,null,null,null,null,null,null,null,null,null,null,null,null,"Proizvodnja šupljeg stakla",2313,"2313 - Proizvodnja šupljeg stakla"]
[null,null,null,null,null,null,null,null,null,null,null,null,null,null,null,null,null,null,null,null,null,null,null,null,null,null,"Proizvodnja staklenih vlakana",2314,"2314 - Proizvodnja staklenih vlakana"]
[null,null,null,null,null,null,null,null,null,null,null,null,null,null,null,null,null,null,null,null,null,null,null,null,null,null,"Proizvodnja i obrada ostalog stakla uključujući tehničku robu od stakla",2319,"2319 - Proizvodnja i obrada ostalog stakla uključujući tehničku robu od stakla"]
[null,null,null,null,null,null,null,null,null,null,null,null,null,null,null,null,null,null,null,null,null,null,null,null,null,null,"Proizvodnja vatrostalnih proizvoda",2320,"2320 - Proizvodnja vatrostalnih proizvoda"]
[null,null,null,null,null,null,null,null,null,null,null,null,null,null,null,null,null,null,null,null,null,null,null,null,null,null,"Proizvodnja keramičkih pločica i ploča",2331,"2331 - Proizvodnja keramičkih pločica i ploča"]
[null,null,null,null,null,null,null,null,null,null,null,null,null,null,null,null,null,null,null,null,null,null,null,null,null,null,"Proizvodnja opeke, crijepa i ostalih proizvoda od pečene gline za građevinarstvo",2332,"2332 - Proizvodnja opeke, crijepa i ostalih proizvoda od pečene gline za građevinarstvo"]
[null,null,null,null,null,null,null,null,null,null,null,null,null,null,null,null,null,null,null,null,null,null,null,null,null,null,"Proizvodnja keramičkih proizvoda za kućanstvo i ukrasnih predmeta",2341,"2341 - Proizvodnja keramičkih proizvoda za kućanstvo i ukrasnih predmeta"]
[null,null,null,null,null,null,null,null,null,null,null,null,null,null,null,null,null,null,null,null,null,null,null,null,null,null,"Proizvodnja sanitarne keramike ",2342,"2342 - Proizvodnja sanitarne keramike "]
[null,null,null,null,null,null,null,null,null,null,null,null,null,null,null,null,null,null,null,null,null,null,null,null,null,null,"Proizvodnja keramičkih izolatora i izolacijskog pribora",2343,"2343 - Proizvodnja keramičkih izolatora i izolacijskog pribora"]
[null,null,null,null,null,null,null,null,null,null,null,null,null,null,null,null,null,null,null,null,null,null,null,null,null,null,"Proizvodnja ostalih tehničkih proizvoda od keramike",2344,"2344 - Proizvodnja ostalih tehničkih proizvoda od keramike"]
[null,null,null,null,null,null,null,null,null,null,null,null,null,null,null,null,null,null,null,null,null,null,null,null,null,null,"Proizvodnja ostalih proizvoda od keramike",2349,"2349 - Proizvodnja ostalih proizvoda od keramike"]
[null,null,null,null,null,null,null,null,null,null,null,null,null,null,null,null,null,null,null,null,null,null,null,null,null,null,"Proizvodnja cementa",2351,"2351 - Proizvodnja cementa"]
[null,null,null,null,null,null,null,null,null,null,null,null,null,null,null,null,null,null,null,null,null,null,null,null,null,null,"Proizvodnja vapna i gipsa ",2352,"2352 - Proizvodnja vapna i gipsa "]
[null,null,null,null,null,null,null,null,null,null,null,null,null,null,null,null,null,null,null,null,null,null,null,null,null,null,"Proizvodnja proizvoda od betona za građevinarstvo",2361,"2361 - Proizvodnja proizvoda od betona za građevinarstvo"]
[null,null,null,null,null,null,null,null,null,null,null,null,null,null,null,null,null,null,null,null,null,null,null,null,null,null,"Proizvodnja proizvoda od gipsa za građevinarstvo",2362,"2362 - Proizvodnja proizvoda od gipsa za građevinarstvo"]
[null,null,null,null,null,null,null,null,null,null,null,null,null,null,null,null,null,null,null,null,null,null,null,null,null,null,"Proizvodnja gotove betonske smjese",2363,"2363 - Proizvodnja gotove betonske smjese"]
[null,null,null,null,null,null,null,null,null,null,null,null,null,null,null,null,null,null,null,null,null,null,null,null,null,null,"Proizvodnja žbuke",2364,"2364 - Proizvodnja žbuke"]
[null,null,null,null,null,null,null,null,null,null,null,null,null,null,null,null,null,null,null,null,null,null,null,null,null,null,"Proizvodnja fibro-cementa",2365,"2365 - Proizvodnja fibro-cementa"]
[null,null,null,null,null,null,null,null,null,null,null,null,null,null,null,null,null,null,null,null,null,null,null,null,null,null,"Proizvodnja ostalih proizvoda od betona, cementa i gipsa ",2369,"2369 - Proizvodnja ostalih proizvoda od betona, cementa i gipsa "]
[null,null,null,null,null,null,null,null,null,null,null,null,null,null,null,null,null,null,null,null,null,null,null,null,null,null,"Rezanje, oblikovanje i obrada kamena",2370,"2370 - Rezanje, oblikovanje i obrada kamena"]
[null,null,null,null,null,null,null,null,null,null,null,null,null,null,null,null,null,null,null,null,null,null,null,null,null,null,"Proizvodnja brusnih proizvoda",2391,"2391 - Proizvodnja brusnih proizvoda"]
[null,null,null,null,null,null,null,null,null,null,null,null,null,null,null,null,null,null,null,null,null,null,null,null,null,null,"Proizvodnja ostalih nemetalnih mineralnih proizvoda, d. n.",2399,"2399 - Proizvodnja ostalih nemetalnih mineralnih proizvoda, d. n."]
[null,null,null,null,null,null,null,null,null,null,null,null,null,null,null,null,null,null,null,null,null,null,null,null,null,null,"Proizvodnja sirovog željeza, čelika i ferolegura",2410,"2410 - Proizvodnja sirovog željeza, čelika i ferolegura"]
[null,null,null,null,null,null,null,null,null,null,null,null,null,null,null,null,null,null,null,null,null,null,null,null,null,null,"Proizvodnja čeličnih cijevi i pribora",2420,"2420 - Proizvodnja čeličnih cijevi i pribora"]
[null,null,null,null,null,null,null,null,null,null,null,null,null,null,null,null,null,null,null,null,null,null,null,null,null,null,"Hladno vučenje šipki",2431,"2431 - Hladno vučenje šipki"]
[null,null,null,null,null,null,null,null,null,null,null,null,null,null,null,null,null,null,null,null,null,null,null,null,null,null,"Hladno valjanje uskih vrpci",2432,"2432 - Hladno valjanje uskih vrpci"]
[null,null,null,null,null,null,null,null,null,null,null,null,null,null,null,null,null,null,null,null,null,null,null,null,null,null,"Hladno oblikovanje i profiliranje ",2433,"2433 - Hladno oblikovanje i profiliranje "]
[null,null,null,null,null,null,null,null,null,null,null,null,null,null,null,null,null,null,null,null,null,null,null,null,null,null,"Hladno vučenje žice",2434,"2434 - Hladno vučenje žice"]
[null,null,null,null,null,null,null,null,null,null,null,null,null,null,null,null,null,null,null,null,null,null,null,null,null,null,"Proizvodnja plemenitih metala",2441,"2441 - Proizvodnja plemenitih metala"]
[null,null,null,null,null,null,null,null,null,null,null,null,null,null,null,null,null,null,null,null,null,null,null,null,null,null,"Proizvodnja aluminija",2442,"2442 - Proizvodnja aluminija"]
[null,null,null,null,null,null,null,null,null,null,null,null,null,null,null,null,null,null,null,null,null,null,null,null,null,null,"Proizvodnja olova, cinka i kositra",2443,"2443 - Proizvodnja olova, cinka i kositra"]
[null,null,null,null,null,null,null,null,null,null,null,null,null,null,null,null,null,null,null,null,null,null,null,null,null,null,"Proizvodnja bakra",2444,"2444 - Proizvodnja bakra"]
[null,null,null,null,null,null,null,null,null,null,null,null,null,null,null,null,null,null,null,null,null,null,null,null,null,null,"Proizvodnja ostalih obojenih metala",2445,"2445 - Proizvodnja ostalih obojenih metala"]
[null,null,null,null,null,null,null,null,null,null,null,null,null,null,null,null,null,null,null,null,null,null,null,null,null,null,"Obrada nuklearnoga goriva",2446,"2446 - Obrada nuklearnoga goriva"]
[null,null,null,null,null,null,null,null,null,null,null,null,null,null,null,null,null,null,null,null,null,null,null,null,null,null,"Lijevanje željeza",2451,"2451 - Lijevanje željeza"]
[null,null,null,null,null,null,null,null,null,null,null,null,null,null,null,null,null,null,null,null,null,null,null,null,null,null,"Lijevanje čelika",2452,"2452 - Lijevanje čelika"]
[null,null,null,null,null,null,null,null,null,null,null,null,null,null,null,null,null,null,null,null,null,null,null,null,null,null,"Lijevanje lakih metala",2453,"2453 - Lijevanje lakih metala"]
[null,null,null,null,null,null,null,null,null,null,null,null,null,null,null,null,null,null,null,null,null,null,null,null,null,null,"Lijevanje ostalih obojenih metala",2454,"2454 - Lijevanje ostalih obojenih metala"]
[null,null,null,null,null,null,null,null,null,null,null,null,null,null,null,null,null,null,null,null,null,null,null,null,null,null,"Proizvodnja metalnih konstrukcija i njihovih dijelova",2511,"2511 - Proizvodnja metalnih konstrukcija i njihovih dijelova"]
[null,null,null,null,null,null,null,null,null,null,null,null,null,null,null,null,null,null,null,null,null,null,null,null,null,null,"Proizvodnja vrata i prozora od metala",2512,{"$f":"CONCATENATE(AB224, \" - \", AA224)","v":"2512 - Proizvodnja vrata i prozora od metala"}]
[null,null,null,null,null,null,null,null,null,null,null,null,null,null,null,null,null,null,null,null,null,null,null,null,null,null,"Proizvodnja radijatora i kotlova za centralno grijanje",2521,"2521 - Proizvodnja radijatora i kotlova za centralno grijanje"]
[null,null,null,null,null,null,null,null,null,null,null,null,null,null,null,null,null,null,null,null,null,null,null,null,null,null,"Proizvodnja ostalih metalnih cisterni, rezervoara i sličnih posuda ",2529,"2529 - Proizvodnja ostalih metalnih cisterni, rezervoara i sličnih posuda "]
[null,null,null,null,null,null,null,null,null,null,null,null,null,null,null,null,null,null,null,null,null,null,null,null,null,null,"Proizvodnja parnih kotlova, osim kotlova za centralno grijanje toplom vodom",2530,"2530 - Proizvodnja parnih kotlova, osim kotlova za centralno grijanje toplom vodom"]
[null,null,null,null,null,null,null,null,null,null,null,null,null,null,null,null,null,null,null,null,null,null,null,null,null,null,"Proizvodnja oružja i streljiva",2540,"2540 - Proizvodnja oružja i streljiva"]
[null,null,null,null,null,null,null,null,null,null,null,null,null,null,null,null,null,null,null,null,null,null,null,null,null,null,"Kovanje, prešanje, štancanje i valjanje metala; metalurgija praha",2550,"2550 - Kovanje, prešanje, štancanje i valjanje metala; metalurgija praha"]
[null,null,null,null,null,null,null,null,null,null,null,null,null,null,null,null,null,null,null,null,null,null,null,null,null,null,"Obrada i prevlačenje metala",2561,"2561 - Obrada i prevlačenje metala"]
[null,null,null,null,null,null,null,null,null,null,null,null,null,null,null,null,null,null,null,null,null,null,null,null,null,null,"Strojna obrada metala",2562,"2562 - Strojna obrada metala"]
[null,null,null,null,null,null,null,null,null,null,null,null,null,null,null,null,null,null,null,null,null,null,null,null,null,null,"Proizvodnja sječiva",2571,"2571 - Proizvodnja sječiva"]
[null,null,null,null,null,null,null,null,null,null,null,null,null,null,null,null,null,null,null,null,null,null,null,null,null,null,"Proizvodnja brava i okova",2572,"2572 - Proizvodnja brava i okova"]
[null,null,null,null,null,null,null,null,null,null,null,null,null,null,null,null,null,null,null,null,null,null,null,null,null,null,"Proizvodnja alata",2573,"2573 - Proizvodnja alata"]
[null,null,null,null,null,null,null,null,null,null,null,null,null,null,null,null,null,null,null,null,null,null,null,null,null,null,"Proizvodnja čeličnih bačava i sličnih posuda ",2591,"2591 - Proizvodnja čeličnih bačava i sličnih posuda "]
[null,null,null,null,null,null,null,null,null,null,null,null,null,null,null,null,null,null,null,null,null,null,null,null,null,null,"Proizvodnja ambalaže od lakih metala",2592,"2592 - Proizvodnja ambalaže od lakih metala"]
[null,null,null,null,null,null,null,null,null,null,null,null,null,null,null,null,null,null,null,null,null,null,null,null,null,null,"Proizvodnja proizvoda od žice, lanaca i opruga",2593,"2593 - Proizvodnja proizvoda od žice, lanaca i opruga"]
[null,null,null,null,null,null,null,null,null,null,null,null,null,null,null,null,null,null,null,null,null,null,null,null,null,null,"Proizvodnja zakovica i vijčane robe",2594,"2594 - Proizvodnja zakovica i vijčane robe"]
[null,null,null,null,null,null,null,null,null,null,null,null,null,null,null,null,null,null,null,null,null,null,null,null,null,null,"Proizvodnja ostalih gotovih proizvoda od metala, d. n.",2599,"2599 - Proizvodnja ostalih gotovih proizvoda od metala, d. n."]
[null,null,null,null,null,null,null,null,null,null,null,null,null,null,null,null,null,null,null,null,null,null,null,null,null,null,"Proizvodnja elektroničkih komponenata ",2611,"2611 - Proizvodnja elektroničkih komponenata "]
[null,null,null,null,null,null,null,null,null,null,null,null,null,null,null,null,null,null,null,null,null,null,null,null,null,null,"Proizvodnja punih elektroničkih ploča",2612,"2612 - Proizvodnja punih elektroničkih ploča"]
[null,null,null,null,null,null,null,null,null,null,null,null,null,null,null,null,null,null,null,null,null,null,null,null,null,null,"Proizvodnja računala i periferne opreme",2620,"2620 - Proizvodnja računala i periferne opreme"]
[null,null,null,null,null,null,null,null,null,null,null,null,null,null,null,null,null,null,null,null,null,null,null,null,null,null,"Proizvodnja komunikacijske opreme",2630,"2630 - Proizvodnja komunikacijske opreme"]
[null,null,null,null,null,null,null,null,null,null,null,null,null,null,null,null,null,null,null,null,null,null,null,null,null,null,"Proizvodnja elektroničkih uređaja za široku potrošnju",2640,"2640 - Proizvodnja elektroničkih uređaja za široku potrošnju"]
[null,null,null,null,null,null,null,null,null,null,null,null,null,null,null,null,null,null,null,null,null,null,null,null,null,null,"Proizvodnja instrumenata i aparata za mjerenje,  ispitivanje i navigaciju",2651,"2651 - Proizvodnja instrumenata i aparata za mjerenje,  ispitivanje i navigaciju"]
[null,null,null,null,null,null,null,null,null,null,null,null,null,null,null,null,null,null,null,null,null,null,null,null,null,null,"Proizvodnja satova ",2652,"2652 - Proizvodnja satova "]
[null,null,null,null,null,null,null,null,null,null,null,null,null,null,null,null,null,null,null,null,null,null,null,null,null,null,"Proizvodnja opreme za zračenje, elektromedicinske i elektroterapeutske opreme",2660,"2660 - Proizvodnja opreme za zračenje, elektromedicinske i elektroterapeutske opreme"]
[null,null,null,null,null,null,null,null,null,null,null,null,null,null,null,null,null,null,null,null,null,null,null,null,null,null,"Proizvodnja optičkih instrumenata i fotografske opreme",2670,"2670 - Proizvodnja optičkih instrumenata i fotografske opreme"]
[null,null,null,null,null,null,null,null,null,null,null,null,null,null,null,null,null,null,null,null,null,null,null,null,null,null,"Proizvodnja magnetskih i optičkih medija",2680,"2680 - Proizvodnja magnetskih i optičkih medija"]
[null,null,null,null,null,null,null,null,null,null,null,null,null,null,null,null,null,null,null,null,null,null,null,null,null,null,"Proizvodnja elektromotora, generatora i transformatora",2711,"2711 - Proizvodnja elektromotora, generatora i transformatora"]
[null,null,null,null,null,null,null,null,null,null,null,null,null,null,null,null,null,null,null,null,null,null,null,null,null,null,"Proizvodnja uređaja za distribuciju i kontrolu električne energije",2712,"2712 - Proizvodnja uređaja za distribuciju i kontrolu električne energije"]
[null,null,null,null,null,null,null,null,null,null,null,null,null,null,null,null,null,null,null,null,null,null,null,null,null,null,"Proizvodnja baterija i akumulatora",2720,"2720 - Proizvodnja baterija i akumulatora"]
[null,null,null,null,null,null,null,null,null,null,null,null,null,null,null,null,null,null,null,null,null,null,null,null,null,null,"Proizvodnja kablova od optičkih vlakana",2731,"2731 - Proizvodnja kablova od optičkih vlakana"]
[null,null,null,null,null,null,null,null,null,null,null,null,null,null,null,null,null,null,null,null,null,null,null,null,null,null,"Proizvodnja ostalih elektroničkih i električnih žica i kablova",2732,"2732 - Proizvodnja ostalih elektroničkih i električnih žica i kablova"]
[null,null,null,null,null,null,null,null,null,null,null,null,null,null,null,null,null,null,null,null,null,null,null,null,null,null,"Proizvodnja elektroinstalacijskog materijala",2733,"2733 - Proizvodnja elektroinstalacijskog materijala"]
[null,null,null,null,null,null,null,null,null,null,null,null,null,null,null,null,null,null,null,null,null,null,null,null,null,null,"Proizvodnja električne opreme za rasvjetu",2740,"2740 - Proizvodnja električne opreme za rasvjetu"]
[null,null,null,null,null,null,null,null,null,null,null,null,null,null,null,null,null,null,null,null,null,null,null,null,null,null,"Proizvodnja električnih aparata za kućanstvo",2751,"2751 - Proizvodnja električnih aparata za kućanstvo"]
[null,null,null,null,null,null,null,null,null,null,null,null,null,null,null,null,null,null,null,null,null,null,null,null,null,null,"Proizvodnja neelektričnih aparata za kućanstvo",2752,"2752 - Proizvodnja neelektričnih aparata za kućanstvo"]
[null,null,null,null,null,null,null,null,null,null,null,null,null,null,null,null,null,null,null,null,null,null,null,null,null,null,"Proizvodnja ostale električne opreme",2790,"2790 - Proizvodnja ostale električne opreme"]
[null,null,null,null,null,null,null,null,null,null,null,null,null,null,null,null,null,null,null,null,null,null,null,null,null,null,"Proizvodnja motora i turbina, osim motora za zrakoplove i motorna vozila",2811,"2811 - Proizvodnja motora i turbina, osim motora za zrakoplove i motorna vozila"]
[null,null,null,null,null,null,null,null,null,null,null,null,null,null,null,null,null,null,null,null,null,null,null,null,null,null,"Proizvodnja hidrauličnih pogonskih uređaja",2812,"2812 - Proizvodnja hidrauličnih pogonskih uređaja"]
[null,null,null,null,null,null,null,null,null,null,null,null,null,null,null,null,null,null,null,null,null,null,null,null,null,null,"Proizvodnja ostalih crpki i kompresora",2813,"2813 - Proizvodnja ostalih crpki i kompresora"]
[null,null,null,null,null,null,null,null,null,null,null,null,null,null,null,null,null,null,null,null,null,null,null,null,null,null,"Proizvodnja ostalih slavina i ventila",2814,"2814 - Proizvodnja ostalih slavina i ventila"]
[null,null,null,null,null,null,null,null,null,null,null,null,null,null,null,null,null,null,null,null,null,null,null,null,null,null,"Proizvodnja ležajeva, prijenosnika te prijenosnih i pogonskih elemenata",2815,"2815 - Proizvodnja ležajeva, prijenosnika te prijenosnih i pogonskih elemenata"]
[null,null,null,null,null,null,null,null,null,null,null,null,null,null,null,null,null,null,null,null,null,null,null,null,null,null,"Proizvodnja peći i plamenika",2821,"2821 - Proizvodnja peći i plamenika"]
[null,null,null,null,null,null,null,null,null,null,null,null,null,null,null,null,null,null,null,null,null,null,null,null,null,null,"Proizvodnja uređaja za dizanje i prenošenje",2822,"2822 - Proizvodnja uređaja za dizanje i prenošenje"]
[null,null,null,null,null,null,null,null,null,null,null,null,null,null,null,null,null,null,null,null,null,null,null,null,null,null,"Proizvodnja uredskih strojeva i opreme (osim proizvodnje računala i periferne opreme)",2823,"2823 - Proizvodnja uredskih strojeva i opreme (osim proizvodnje računala i periferne opreme)"]
[null,null,null,null,null,null,null,null,null,null,null,null,null,null,null,null,null,null,null,null,null,null,null,null,null,null,"Proizvodnja mehaniziranoga ručnog alata",2824,"2824 - Proizvodnja mehaniziranoga ručnog alata"]
[null,null,null,null,null,null,null,null,null,null,null,null,null,null,null,null,null,null,null,null,null,null,null,null,null,null,"Proizvodnja rashladne i ventilacijske opreme, osim za kućanstvo",2825,"2825 - Proizvodnja rashladne i ventilacijske opreme, osim za kućanstvo"]
[null,null,null,null,null,null,null,null,null,null,null,null,null,null,null,null,null,null,null,null,null,null,null,null,null,null,"Proizvodnja ostalih strojeva za opće namjene, d. n.",2829,"2829 - Proizvodnja ostalih strojeva za opće namjene, d. n."]
[null,null,null,null,null,null,null,null,null,null,null,null,null,null,null,null,null,null,null,null,null,null,null,null,null,null,"Proizvodnja strojeva za poljoprivredu i šumarstvo",2830,"2830 - Proizvodnja strojeva za poljoprivredu i šumarstvo"]
[null,null,null,null,null,null,null,null,null,null,null,null,null,null,null,null,null,null,null,null,null,null,null,null,null,null,"Proizvodnja strojeva za obradu metala",2841,"2841 - Proizvodnja strojeva za obradu metala"]
[null,null,null,null,null,null,null,null,null,null,null,null,null,null,null,null,null,null,null,null,null,null,null,null,null,null,"Proizvodnja ostalih alatnih strojeva",2849,"2849 - Proizvodnja ostalih alatnih strojeva"]
[null,null,null,null,null,null,null,null,null,null,null,null,null,null,null,null,null,null,null,null,null,null,null,null,null,null,"Proizvodnja strojeva za metalurgiju",2891,"2891 - Proizvodnja strojeva za metalurgiju"]
[null,null,null,null,null,null,null,null,null,null,null,null,null,null,null,null,null,null,null,null,null,null,null,null,null,null,"Proizvodnja strojeva za rudnike, kamenolome i građevinarstvo",2892,"2892 - Proizvodnja strojeva za rudnike, kamenolome i građevinarstvo"]
[null,null,null,null,null,null,null,null,null,null,null,null,null,null,null,null,null,null,null,null,null,null,null,null,null,null,"Proizvodnja strojeva za industriju hrane, pića i duhana",2893,"2893 - Proizvodnja strojeva za industriju hrane, pića i duhana"]
[null,null,null,null,null,null,null,null,null,null,null,null,null,null,null,null,null,null,null,null,null,null,null,null,null,null,"Proizvodnja strojeva za industriju tekstila, odjeće i kože",2894,"2894 - Proizvodnja strojeva za industriju tekstila, odjeće i kože"]
[null,null,null,null,null,null,null,null,null,null,null,null,null,null,null,null,null,null,null,null,null,null,null,null,null,null,"Proizvodnja strojeva za industriju papira i kartona",2895,"2895 - Proizvodnja strojeva za industriju papira i kartona"]
[null,null,null,null,null,null,null,null,null,null,null,null,null,null,null,null,null,null,null,null,null,null,null,null,null,null,"Proizvodnja strojeva za plastiku i gumu",2896,"2896 - Proizvodnja strojeva za plastiku i gumu"]
[null,null,null,null,null,null,null,null,null,null,null,null,null,null,null,null,null,null,null,null,null,null,null,null,null,null,"Proizvodnja ostalih strojeva za posebne namjene, d. n.",2899,"2899 - Proizvodnja ostalih strojeva za posebne namjene, d. n."]
[null,null,null,null,null,null,null,null,null,null,null,null,null,null,null,null,null,null,null,null,null,null,null,null,null,null,"Proizvodnja motornih vozila",2910,"2910 - Proizvodnja motornih vozila"]
[null,null,null,null,null,null,null,null,null,null,null,null,null,null,null,null,null,null,null,null,null,null,null,null,null,null,"Proizvodnja karoserija za motorna vozila, prikolica i poluprikolica",2920,"2920 - Proizvodnja karoserija za motorna vozila, prikolica i poluprikolica"]
[null,null,null,null,null,null,null,null,null,null,null,null,null,null,null,null,null,null,null,null,null,null,null,null,null,null,"Proizvodnja električne i elektroničke opreme za motorna vozila ",2931,"2931 - Proizvodnja električne i elektroničke opreme za motorna vozila "]
[null,null,null,null,null,null,null,null,null,null,null,null,null,null,null,null,null,null,null,null,null,null,null,null,null,null,"Proizvodnja ostalih dijelova i pribora za motorna vozila ",2932,"2932 - Proizvodnja ostalih dijelova i pribora za motorna vozila "]
[null,null,null,null,null,null,null,null,null,null,null,null,null,null,null,null,null,null,null,null,null,null,null,null,null,null,"Gradnja brodova i plutajućih objekata",3011,"3011 - Gradnja brodova i plutajućih objekata"]
[null,null,null,null,null,null,null,null,null,null,null,null,null,null,null,null,null,null,null,null,null,null,null,null,null,null,"Gradnja čamaca za razonodu i sportskih čamaca",3012,"3012 - Gradnja čamaca za razonodu i sportskih čamaca"]
[null,null,null,null,null,null,null,null,null,null,1,"osnivački ulog",{"$f":"CONCATENATE(K287,\"- \",L287)","v":"1- osnivački ulog"},null,null,null,null,null,null,null,null,null,null,null,null,null,"Proizvodnja željezničkih lokomotiva i tračničkih vozila",3020,"3020 - Proizvodnja željezničkih lokomotiva i tračničkih vozila"]
[null,null,null,null,null,null,null,null,null,null,"2a","povećanje temeljnog kapitala","2a- povećanje temeljnog kapitala",null,null,null,null,null,null,null,null,null,null,null,null,null,"Proizvodnja zrakoplova i svemirskih letjelica te srodnih prijevoznih sredstava i opreme",3030,{"$f":"CONCATENATE(AB288, \" - \", AA288)","v":"3030 - Proizvodnja zrakoplova i svemirskih letjelica te srodnih prijevoznih sredstava i opreme"}]
[null,null,null,null,null,null,null,null,null,null,"2b","povećanje pričuva pravne osobe","2b- povećanje pričuva pravne osobe",null,null,null,null,null,null,null,null,null,null,null,null,null,"Proizvodnja vojnih borbenih vozila",3040,"3040 - Proizvodnja vojnih borbenih vozila"]
[null,null,null,null,null,null,null,null,null,null,3,"privatizacija (otkup udjela u kapitalu od HFP)","3- privatizacija (otkup udjela u kapitalu od HFP)",null,null,null,null,null,null,null,null,null,null,null,null,null,"Proizvodnja motocikala",3091,"3091 - Proizvodnja motocikala"]
[null,null,null,null,null,null,null,null,null,null,4,"preuzimanje udjela u kapitalu od drugih pravnih ili fizičkih osoba / prodaja udjela drugoj pravnoj ili fizičkoj osobi ","4- preuzimanje udjela u kapitalu od drugih pravnih ili fizičkih osoba / prodaja udjela drugoj pravnoj ili fizičkoj osobi ",null,null,null,null,null,null,null,null,null,null,null,null,null,"Proizvodnja bicikala i invalidskih kolica",3092,"3092 - Proizvodnja bicikala i invalidskih kolica"]
[null,null,null,null,null,null,null,null,null,null,5,"ostalo","5- ostalo",null,null,null,null,null,null,null,null,null,null,null,null,null,"Proizvodnja ostalih prijevoznih sredstava, d. n. ",3099,"3099 - Proizvodnja ostalih prijevoznih sredstava, d. n. "]
[null,null,null,null,null,null,null,null,null,null,null,null,null,null,null,null,null,null,null,null,null,null,null,null,null,null,"Proizvodnja namještaja za poslovne i prodajne prostore",3101,"3101 - Proizvodnja namještaja za poslovne i prodajne prostore"]
[null,null,null,null,null,null,null,null,null,null,null,null,null,null,null,null,null,null,null,null,null,null,null,null,null,null,"Proizvodnja kuhinjskog namještaja",3102,"3102 - Proizvodnja kuhinjskog namještaja"]
[null,null,null,null,null,null,null,null,null,null,null,null,null,null,null,null,null,null,null,null,null,null,null,null,null,null,"Proizvodnja madraca",3103,"3103 - Proizvodnja madraca"]
[null,null,null,null,null,null,null,null,null,null,null,null,null,null,null,null,null,null,null,null,null,null,null,null,null,null,"Proizvodnja ostalog namještaja",3109,"3109 - Proizvodnja ostalog namještaja"]
[null,null,null,null,null,null,null,null,null,null,null,null,null,null,null,null,null,null,null,null,null,null,null,null,null,null,"Proizvodnja novca",3211,"3211 - Proizvodnja novca"]
[null,null,null,null,null,null,null,null,null,null,null,null,null,null,null,null,null,null,null,null,null,null,null,null,null,null,"Proizvodnja nakita i srodnih proizvoda",3212,"3212 - Proizvodnja nakita i srodnih proizvoda"]
[null,null,null,null,null,null,null,null,null,null,null,null,null,null,null,null,null,null,null,null,null,null,null,null,null,null,"Proizvodnja imitacije nakita (bižuterije) i srodnih proizvoda",3213,"3213 - Proizvodnja imitacije nakita (bižuterije) i srodnih proizvoda"]
[null,null,null,null,null,null,null,null,null,null,null,null,null,null,null,null,null,null,null,null,null,null,null,null,null,null,"Proizvodnja glazbenih instrumenata",3220,"3220 - Proizvodnja glazbenih instrumenata"]
[null,null,null,null,null,null,null,null,null,null,null,null,null,null,null,null,null,null,null,null,null,null,null,null,null,null,"Proizvodnja sportske opreme",3230,"3230 - Proizvodnja sportske opreme"]
[null,null,null,null,null,null,null,null,null,null,null,null,null,null,null,null,null,null,null,null,null,null,null,null,null,null,"Proizvodnja igara i igračaka",3240,"3240 - Proizvodnja igara i igračaka"]
[null,null,null,null,null,null,null,null,null,null,null,null,null,null,null,null,null,null,null,null,null,null,null,null,null,null,"Proizvodnja medicinskih i stomatoloških instrumenata i pribora",3250,"3250 - Proizvodnja medicinskih i stomatoloških instrumenata i pribora"]
[null,null,null,null,null,null,null,null,null,null,null,null,null,null,null,null,null,null,null,null,null,null,null,null,null,null,"Proizvodnja metla i četaka",3291,"3291 - Proizvodnja metla i četaka"]
[null,null,null,null,null,null,null,null,null,null,null,null,null,null,null,null,null,null,null,null,null,null,null,null,null,null,"Ostala prerađivačka industrija, d. n. ",3299,"3299 - Ostala prerađivačka industrija, d. n. "]
[null,null,null,null,null,null,null,null,null,null,null,null,null,null,null,null,null,null,null,null,null,null,null,null,null,null,"Popravak proizvoda od metala",3311,"3311 - Popravak proizvoda od metala"]
[null,null,null,null,null,null,null,null,null,null,null,null,null,null,null,null,null,null,null,null,null,null,null,null,null,null,"Popravak strojeva",3312,"3312 - Popravak strojeva"]
[null,null,null,null,null,null,null,null,null,null,null,null,null,null,null,null,null,null,null,null,null,null,null,null,null,null,"Popravak elektroničke i optičke opreme",3313,"3313 - Popravak elektroničke i optičke opreme"]
[null,null,null,null,null,null,null,null,null,null,null,null,null,null,null,null,null,null,null,null,null,null,null,null,null,null,"Popravak električne opreme",3314,"3314 - Popravak električne opreme"]
[null,null,null,null,null,null,null,null,null,null,null,null,null,null,null,null,null,null,null,null,null,null,null,null,null,null,"Popravak i održavanje brodova i čamaca",3315,"3315 - Popravak i održavanje brodova i čamaca"]
[null,null,null,null,null,null,null,null,null,null,null,null,null,null,null,null,null,null,null,null,null,null,null,null,null,null,"Popravak i održavanje zrakoplova i svemirskih letjelica",3316,"3316 - Popravak i održavanje zrakoplova i svemirskih letjelica"]
[null,null,null,null,null,null,null,null,null,null,null,null,null,null,null,null,null,null,null,null,null,null,null,null,null,null,"Popravak i održavanje ostalih prijevoznih sredstava",3317,"3317 - Popravak i održavanje ostalih prijevoznih sredstava"]
[null,null,null,null,null,null,null,null,null,null,null,null,null,null,null,null,null,null,null,null,null,null,null,null,null,null,"Popravak ostale opreme",3319,"3319 - Popravak ostale opreme"]
[null,null,null,null,null,null,null,null,null,null,null,null,null,null,null,null,null,null,null,null,null,null,null,null,null,null,"Instaliranje industrijskih strojeva i opreme",3320,"3320 - Instaliranje industrijskih strojeva i opreme"]
[null,null,null,null,null,null,null,null,null,null,null,null,null,null,null,null,null,null,null,null,null,null,null,null,null,null,"Proizvodnja električne energije",3511,"3511 - Proizvodnja električne energije"]
[null,null,null,null,null,null,null,null,null,null,null,null,null,null,null,null,null,null,null,null,null,null,null,null,null,null,"Prijenos električne energije",3512,"3512 - Prijenos električne energije"]
[null,null,null,null,null,null,null,null,null,null,null,null,null,null,null,null,null,null,null,null,null,null,null,null,null,null,"Distribucija električne energije",3513,"3513 - Distribucija električne energije"]
[null,null,null,null,null,null,null,null,null,null,null,null,null,null,null,null,null,null,null,null,null,null,null,null,null,null,"Trgovina električnom energijom",3514,"3514 - Trgovina električnom energijom"]
[null,null,null,null,null,null,null,null,null,null,null,null,null,null,null,null,null,null,null,null,null,null,null,null,null,null,"Proizvodnja plina",3521,"3521 - Proizvodnja plina"]
[null,null,null,null,null,null,null,null,null,null,null,null,null,null,null,null,null,null,null,null,null,null,null,null,null,null,"Distribucija plinovitih goriva distribucijskom mrežom",3522,"3522 - Distribucija plinovitih goriva distribucijskom mrežom"]
[null,null,null,null,null,null,null,null,null,null,null,null,null,null,null,null,null,null,null,null,null,null,null,null,null,null,"Trgovina plinom distribucijskom mrežom",3523,"3523 - Trgovina plinom distribucijskom mrežom"]
[null,null,null,null,null,null,null,null,null,null,null,null,null,null,null,null,null,null,null,null,null,null,null,null,null,null,"Opskrba parom i klimatizacija",3530,"3530 - Opskrba parom i klimatizacija"]
[null,null,null,null,null,null,null,null,null,null,null,null,null,null,null,null,null,null,null,null,null,null,null,null,null,null,"Skupljanje, pročišćavanje i opskrba vodom",3600,"3600 - Skupljanje, pročišćavanje i opskrba vodom"]
[null,null,null,null,null,null,null,null,null,null,null,null,null,null,null,null,null,null,null,null,null,null,null,null,null,null,"Uklanjanje otpadnih voda",3700,"3700 - Uklanjanje otpadnih voda"]
[null,null,null,null,null,null,null,null,null,null,null,null,null,null,null,null,null,null,null,null,null,null,null,null,null,null,"Skupljanje bezopasnog otpada",3811,"3811 - Skupljanje bezopasnog otpada"]
[null,null,null,null,null,null,null,null,null,null,null,null,null,null,null,null,null,null,null,null,null,null,null,null,null,null,"Skupljanje opasnog otpada",3812,"3812 - Skupljanje opasnog otpada"]
[null,null,null,null,null,null,null,null,null,null,null,null,null,null,null,null,null,null,null,null,null,null,null,null,null,null,"Obrada i odlaganje bezopasnog otpada",3821,"3821 - Obrada i odlaganje bezopasnog otpada"]
[null,null,null,null,null,null,null,null,null,null,null,null,null,null,null,null,null,null,null,null,null,null,null,null,null,null,"Obrada i odlaganje opasnog otpada",3822,"3822 - Obrada i odlaganje opasnog otpada"]
[null,null,null,null,null,null,null,null,null,null,null,null,null,null,null,null,null,null,null,null,null,null,null,null,null,null,"Rastavljanje olupina",3831,"3831 - Rastavljanje olupina"]
[null,null,null,null,null,null,null,null,null,null,null,null,null,null,null,null,null,null,null,null,null,null,null,null,null,null,"Obnavljanje posebno izdvojenih materijala",3832,"3832 - Obnavljanje posebno izdvojenih materijala"]
[null,null,null,null,null,null,null,null,null,null,null,null,null,null,null,null,null,null,null,null,null,null,null,null,null,null,"Djelatnosti sanacije okoliša te ostale usluge zbrinjavanja otpada",3900,"3900 - Djelatnosti sanacije okoliša te ostale usluge zbrinjavanja otpada"]
[null,null,null,null,null,null,null,null,null,null,null,null,null,null,null,null,null,null,null,null,null,null,null,null,null,null,"Organizacija izvedbe projekata za zgrade",4110,"4110 - Organizacija izvedbe projekata za zgrade"]
[null,null,null,null,null,null,null,null,null,null,null,null,null,null,null,null,null,null,null,null,null,null,null,null,null,null,"Gradnja stambenih i nestambenih zgrada",4120,"4120 - Gradnja stambenih i nestambenih zgrada"]
[null,null,null,null,null,null,null,null,null,null,null,null,null,null,null,null,null,null,null,null,null,null,null,null,null,null,"Gradnja cesta i autocesta",4211,"4211 - Gradnja cesta i autocesta"]
[null,null,null,null,null,null,null,null,null,null,null,null,null,null,null,null,null,null,null,null,null,null,null,null,null,null,"Gradnja željezničkih pruga i podzemnih željeznica",4212,"4212 - Gradnja željezničkih pruga i podzemnih željeznica"]
[null,null,null,null,null,null,null,null,null,null,null,null,null,null,null,null,null,null,null,null,null,null,null,null,null,null,"Gradnja mostova i tunela",4213,"4213 - Gradnja mostova i tunela"]
[null,null,null,null,null,null,null,null,null,null,null,null,null,null,null,null,null,null,null,null,null,null,null,null,null,null,"Gradnja cjevovoda za tekućine i plinove",4221,"4221 - Gradnja cjevovoda za tekućine i plinove"]
[null,null,null,null,null,null,null,null,null,null,null,null,null,null,null,null,null,null,null,null,null,null,null,null,null,null,"Gradnja vodova za električnu struju i telekomunikacije",4222,"4222 - Gradnja vodova za električnu struju i telekomunikacije"]
[null,null,null,null,null,null,null,null,null,null,null,null,null,null,null,null,null,null,null,null,null,null,null,null,null,null,"Gradnja vodnih građevina",4291,"4291 - Gradnja vodnih građevina"]
[null,null,null,null,null,null,null,null,null,null,null,null,null,null,null,null,null,null,null,null,null,null,null,null,null,null,"Gradnja ostalih građevina niskogradnje, d. n.",4299,"4299 - Gradnja ostalih građevina niskogradnje, d. n."]
[null,null,null,null,null,null,null,null,null,null,null,null,null,null,null,null,null,null,null,null,null,null,null,null,null,null,"Rušenje građevina",4311,"4311 - Rušenje građevina"]
[null,null,null,null,null,null,null,null,null,null,null,null,null,null,null,null,null,null,null,null,null,null,null,null,null,null,"Pripremni radovi na gradilištu",4312,"4312 - Pripremni radovi na gradilištu"]
[null,null,null,null,null,null,null,null,null,null,null,null,null,null,null,null,null,null,null,null,null,null,null,null,null,null,"Pokusno bušenje i sondiranje terena za gradnju",4313,"4313 - Pokusno bušenje i sondiranje terena za gradnju"]
[null,null,null,null,null,null,null,null,null,null,null,null,null,null,null,null,null,null,null,null,null,null,null,null,null,null,"Elektroinstalacijski radovi",4321,"4321 - Elektroinstalacijski radovi"]
[null,null,null,null,null,null,null,null,null,null,null,null,null,null,null,null,null,null,null,null,null,null,null,null,null,null,"Uvođenje instalacija vodovoda, kanalizacije i plina i instalacija za grijanje i klimatizaciju",4322,"4322 - Uvođenje instalacija vodovoda, kanalizacije i plina i instalacija za grijanje i klimatizaciju"]
[null,null,null,null,null,null,null,null,null,null,null,null,null,null,null,null,null,null,null,null,null,null,null,null,null,null,"Ostali građevinski instalacijski radovi",4329,"4329 - Ostali građevinski instalacijski radovi"]
[null,null,null,null,null,null,null,null,null,null,null,null,null,null,null,null,null,null,null,null,null,null,null,null,null,null,"Fasadni i štukaturski radovi",4331,"4331 - Fasadni i štukaturski radovi"]
[null,null,null,null,null,null,null,null,null,null,null,null,null,null,null,null,null,null,null,null,null,null,null,null,null,null,"Ugradnja stolarije",4332,"4332 - Ugradnja stolarije"]
[null,null,null,null,null,null,null,null,null,null,null,null,null,null,null,null,null,null,null,null,null,null,null,null,null,null,"Postavljanje podnih i zidnih obloga",4333,"4333 - Postavljanje podnih i zidnih obloga"]
[null,null,null,null,null,null,null,null,null,null,null,null,null,null,null,null,null,null,null,null,null,null,null,null,null,null,"Soboslikarski i staklarski radovi",4334,"4334 - Soboslikarski i staklarski radovi"]
[null,null,null,null,null,null,null,null,null,null,null,null,null,null,null,null,null,null,null,null,null,null,null,null,null,null,"Ostali završni građevinski radovi",4339,"4339 - Ostali završni građevinski radovi"]
[null,null,null,null,null,null,null,null,null,null,null,null,null,null,null,null,null,null,null,null,null,null,null,null,null,null,"Radovi na krovištu",4391,{"$f":"CONCATENATE(AB352, \" - \", AA352)","v":"4391 - Radovi na krovištu"}]
[null,null,null,null,null,null,null,null,null,null,null,null,null,null,null,null,null,null,null,null,null,null,null,null,null,null,"Ostale specijalizirane građevinske djelatnosti, d. n.",4399,"4399 - Ostale specijalizirane građevinske djelatnosti, d. n."]
[null,null,null,null,null,null,null,null,null,null,null,null,null,null,null,null,null,null,null,null,null,null,null,null,null,null,"Trgovina automobilima i motornim vozilima lake kategorije ",4511,"4511 - Trgovina automobilima i motornim vozilima lake kategorije "]
[null,null,null,null,null,null,null,null,null,null,null,null,null,null,null,null,null,null,null,null,null,null,null,null,null,null,"Trgovina ostalim motornim vozilima",4519,"4519 - Trgovina ostalim motornim vozilima"]
[null,null,null,null,null,null,null,null,null,null,null,null,null,null,null,null,null,null,null,null,null,null,null,null,null,null,"Održavanje i popravak motornih vozila",4520,"4520 - Održavanje i popravak motornih vozila"]
[null,null,null,null,null,null,null,null,null,null,null,null,null,null,null,null,null,null,null,null,null,null,null,null,null,null,"Trgovina na veliko dijelovima i priborom za motorna vozila ",4531,"4531 - Trgovina na veliko dijelovima i priborom za motorna vozila "]
[null,null,null,null,null,null,null,null,null,null,null,null,null,null,null,null,null,null,null,null,null,null,null,null,null,null,"Trgovina na malo dijelovima i priborom za motorna vozila",4532,"4532 - Trgovina na malo dijelovima i priborom za motorna vozila"]
[null,null,null,null,null,null,null,null,null,null,null,null,null,null,null,null,null,null,null,null,null,null,null,null,null,null,"Trgovina motociklima, dijelovima i priborom za motocikle te održavanje i popravak motocikala",4540,"4540 - Trgovina motociklima, dijelovima i priborom za motocikle te održavanje i popravak motocikala"]
[null,null,null,null,null,null,null,null,null,null,null,null,null,null,null,null,null,null,null,null,null,null,null,null,null,null,"Posredovanje u trgovini poljoprivrednim sirovinama, živom stokom, tekstilnim sirovinama i poluproizvodima",4611,"4611 - Posredovanje u trgovini poljoprivrednim sirovinama, živom stokom, tekstilnim sirovinama i poluproizvodima"]
[null,null,null,null,null,null,null,null,null,null,null,null,null,null,null,null,null,null,null,null,null,null,null,null,null,null,"Posredovanje u trgovini gorivima, rudama, metalima i industrijskim kemijskim proizvodima",4612,"4612 - Posredovanje u trgovini gorivima, rudama, metalima i industrijskim kemijskim proizvodima"]
[null,null,null,null,null,null,null,null,null,null,null,null,null,null,null,null,null,null,null,null,null,null,null,null,null,null,"Posredovanje u trgovini drvom i građevinskim materijalom",4613,"4613 - Posredovanje u trgovini drvom i građevinskim materijalom"]
[null,null,null,null,null,null,null,null,null,null,null,null,null,null,null,null,null,null,null,null,null,null,null,null,null,null,"Posredovanje u trgovini strojevima, industrijskom opremom, brodovima i zrakoplovima",4614,"4614 - Posredovanje u trgovini strojevima, industrijskom opremom, brodovima i zrakoplovima"]
[null,null,null,null,null,null,null,null,null,null,null,null,null,null,null,null,null,null,null,null,null,null,null,null,null,null,"Posredovanje u trgovini namještajem, proizvodima za kućanstvo i željeznom robom",4615,"4615 - Posredovanje u trgovini namještajem, proizvodima za kućanstvo i željeznom robom"]
[null,null,null,null,null,null,null,null,null,null,null,null,null,null,null,null,null,null,null,null,null,null,null,null,null,null,"Posredovanje u trgovini tekstilom, odjećom, krznom, obućom i kožnim proizvodima",4616,"4616 - Posredovanje u trgovini tekstilom, odjećom, krznom, obućom i kožnim proizvodima"]
[null,null,null,null,null,null,null,null,null,null,null,null,null,null,null,null,null,null,null,null,null,null,null,null,null,null,"Posredovanje u trgovini hranom, pićima i duhanom",4617,"4617 - Posredovanje u trgovini hranom, pićima i duhanom"]
[null,null,null,null,null,null,null,null,null,null,null,null,null,null,null,null,null,null,null,null,null,null,null,null,null,null,"Posredovanje u trgovini specijaliziranoj za ostale određene proizvode ili skupine proizvoda",4618,"4618 - Posredovanje u trgovini specijaliziranoj za ostale određene proizvode ili skupine proizvoda"]
[null,null,null,null,null,null,null,null,null,null,null,null,null,null,null,null,null,null,null,null,null,null,null,null,null,null,"Posredovanje u trgovini raznovrsnim proizvodima",4619,"4619 - Posredovanje u trgovini raznovrsnim proizvodima"]
[null,null,null,null,null,null,null,null,null,null,null,null,null,null,null,null,null,null,null,null,null,null,null,null,null,null,"Trgovina na veliko žitaricama, sirovim duhanom, sjemenjem i stočnom hranom",4621,"4621 - Trgovina na veliko žitaricama, sirovim duhanom, sjemenjem i stočnom hranom"]
[null,null,null,null,null,null,null,null,null,null,null,null,null,null,null,null,null,null,null,null,null,null,null,null,null,null,"Trgovina na veliko cvijećem i sadnicama",4622,"4622 - Trgovina na veliko cvijećem i sadnicama"]
[null,null,null,null,null,null,null,null,null,null,null,null,null,null,null,null,null,null,null,null,null,null,null,null,null,null,"Trgovina na veliko živom stokom",4623,"4623 - Trgovina na veliko živom stokom"]
[null,null,null,null,null,null,null,null,null,null,null,null,null,null,null,null,null,null,null,null,null,null,null,null,null,null,"Trgovina na veliko sirovim i štavljenim kožama",4624,"4624 - Trgovina na veliko sirovim i štavljenim kožama"]
[null,null,null,null,null,null,null,null,null,null,null,null,null,null,null,null,null,null,null,null,null,null,null,null,null,null,"Trgovina na veliko voćem i povrćem",4631,"4631 - Trgovina na veliko voćem i povrćem"]
[null,null,null,null,null,null,null,null,null,null,null,null,null,null,null,null,null,null,null,null,null,null,null,null,null,null,"Trgovina na veliko mesom i mesnim proizvodima",4632,"4632 - Trgovina na veliko mesom i mesnim proizvodima"]
[null,null,null,null,null,null,null,null,null,null,null,null,null,null,null,null,null,null,null,null,null,null,null,null,null,null,"Trgovina na veliko mlijekom, mliječnim proizvodima, jajima, jestivim uljima i masnoćama",4633,"4633 - Trgovina na veliko mlijekom, mliječnim proizvodima, jajima, jestivim uljima i masnoćama"]
[null,null,null,null,null,null,null,null,null,null,null,null,null,null,null,null,null,null,null,null,null,null,null,null,null,null,"Trgovina na veliko pićima",4634,"4634 - Trgovina na veliko pićima"]
[null,null,null,null,null,null,null,null,null,null,null,null,null,null,null,null,null,null,null,null,null,null,null,null,null,null,"Trgovina na veliko duhanskim proizvodima",4635,"4635 - Trgovina na veliko duhanskim proizvodima"]
[null,null,null,null,null,null,null,null,null,null,null,null,null,null,null,null,null,null,null,null,null,null,null,null,null,null,"Trgovina na veliko šećerom, čokoladom i bombonima",4636,"4636 - Trgovina na veliko šećerom, čokoladom i bombonima"]
[null,null,null,null,null,null,null,null,null,null,null,null,null,null,null,null,null,null,null,null,null,null,null,null,null,null,"Trgovina na veliko kavom, čajem, kakaom i začinima",4637,"4637 - Trgovina na veliko kavom, čajem, kakaom i začinima"]
[null,null,null,null,null,null,null,null,null,null,null,null,null,null,null,null,null,null,null,null,null,null,null,null,null,null,"Trgovina na veliko ostalom hranom uključujući ribe, rakove i mekušce",4638,"4638 - Trgovina na veliko ostalom hranom uključujući ribe, rakove i mekušce"]
[null,null,null,null,null,null,null,null,null,null,null,null,null,null,null,null,null,null,null,null,null,null,null,null,null,null,"Nespecijalizirana trgovina na veliko hranom, pićima i duhanskim proizvodima",4639,"4639 - Nespecijalizirana trgovina na veliko hranom, pićima i duhanskim proizvodima"]
[null,null,null,null,null,null,null,null,null,null,null,null,null,null,null,null,null,null,null,null,null,null,null,null,null,null,"Trgovina na veliko tekstilom",4641,"4641 - Trgovina na veliko tekstilom"]
[null,null,null,null,null,null,null,null,null,null,null,null,null,null,null,null,null,null,null,null,null,null,null,null,null,null,"Trgovina na veliko odjećom i obućom",4642,"4642 - Trgovina na veliko odjećom i obućom"]
[null,null,null,null,null,null,null,null,null,null,null,null,null,null,null,null,null,null,null,null,null,null,null,null,null,null,"Trgovina na veliko električnim aparatima za kućanstvo",4643,"4643 - Trgovina na veliko električnim aparatima za kućanstvo"]
[null,null,null,null,null,null,null,null,null,null,null,null,null,null,null,null,null,null,null,null,null,null,null,null,null,null,"Trgovina na veliko porculanom, staklom i sredstvima za čišćenje",4644,"4644 - Trgovina na veliko porculanom, staklom i sredstvima za čišćenje"]
[null,null,null,null,null,null,null,null,null,null,null,null,null,null,null,null,null,null,null,null,null,null,null,null,null,null,"Trgovina na veliko parfemima i kozmetikom",4645,"4645 - Trgovina na veliko parfemima i kozmetikom"]
[null,null,null,null,null,null,null,null,null,null,null,null,null,null,null,null,null,null,null,null,null,null,null,null,null,null,"Trgovina na veliko farmaceutskim proizvodima",4646,"4646 - Trgovina na veliko farmaceutskim proizvodima"]
[null,null,null,null,null,null,null,null,null,null,null,null,null,null,null,null,null,null,null,null,null,null,null,null,null,null,"Trgovina na veliko namještajem, sagovima i opremom za rasvjetu",4647,"4647 - Trgovina na veliko namještajem, sagovima i opremom za rasvjetu"]
[null,null,null,null,null,null,null,null,null,null,null,null,null,null,null,null,null,null,null,null,null,null,null,null,null,null,"Trgovina na veliko satovima i nakitom",4648,"4648 - Trgovina na veliko satovima i nakitom"]
[null,null,null,null,null,null,null,null,null,null,null,null,null,null,null,null,null,null,null,null,null,null,null,null,null,null,"Trgovina na veliko ostalim proizvodima za kućanstvo",4649,"4649 - Trgovina na veliko ostalim proizvodima za kućanstvo"]
[null,null,null,null,null,null,null,null,null,null,null,null,null,null,null,null,null,null,null,null,null,null,null,null,null,null,"Trgovina na veliko računalima, perifernom opremom i softverom",4651,"4651 - Trgovina na veliko računalima, perifernom opremom i softverom"]
[null,null,null,null,null,null,null,null,null,null,null,null,null,null,null,null,null,null,null,null,null,null,null,null,null,null,"Trgovina na veliko elektroničkim i telekomunikacijskim dijelovima i opremom",4652,"4652 - Trgovina na veliko elektroničkim i telekomunikacijskim dijelovima i opremom"]
[null,null,null,null,null,null,null,null,null,null,null,null,null,null,null,null,null,null,null,null,null,null,null,null,null,null,"Trgovina na veliko poljoprivrednim strojevima, opremom i priborom",4661,"4661 - Trgovina na veliko poljoprivrednim strojevima, opremom i priborom"]
[null,null,null,null,null,null,null,null,null,null,null,null,null,null,null,null,null,null,null,null,null,null,null,null,null,null,"Trgovina na veliko alatnim strojevima",4662,"4662 - Trgovina na veliko alatnim strojevima"]
[null,null,null,null,null,null,null,null,null,null,null,null,null,null,null,null,null,null,null,null,null,null,null,null,null,null,"Trgovina na veliko strojevima za rudnike i građevinarstvo",4663,"4663 - Trgovina na veliko strojevima za rudnike i građevinarstvo"]
[null,null,null,null,null,null,null,null,null,null,null,null,null,null,null,null,null,null,null,null,null,null,null,null,null,null,"Trgovina na veliko strojevima za tekstilnu industriju te strojevima za šivanje i pletenje",4664,"4664 - Trgovina na veliko strojevima za tekstilnu industriju te strojevima za šivanje i pletenje"]
[null,null,null,null,null,null,null,null,null,null,null,null,null,null,null,null,null,null,null,null,null,null,null,null,null,null,"Trgovina na veliko uredskim namještajem",4665,"4665 - Trgovina na veliko uredskim namještajem"]
[null,null,null,null,null,null,null,null,null,null,null,null,null,null,null,null,null,null,null,null,null,null,null,null,null,null,"Trgovina na veliko ostalim uredskim strojevima i opremom",4666,"4666 - Trgovina na veliko ostalim uredskim strojevima i opremom"]
[null,null,null,null,null,null,null,null,null,null,null,null,null,null,null,null,null,null,null,null,null,null,null,null,null,null,"Trgovina na veliko ostalim strojevima i opremom",4669,"4669 - Trgovina na veliko ostalim strojevima i opremom"]
[null,null,null,null,null,null,null,null,null,null,null,null,null,null,null,null,null,null,null,null,null,null,null,null,null,null,"Trgovina na veliko krutim, tekućim i plinovitim gorivima i srodnim proizvodima",4671,"4671 - Trgovina na veliko krutim, tekućim i plinovitim gorivima i srodnim proizvodima"]
[null,null,null,null,null,null,null,null,null,null,null,null,null,null,null,null,null,null,null,null,null,null,null,null,null,null,"Trgovina na veliko metalima i metalnim rudama",4672,"4672 - Trgovina na veliko metalima i metalnim rudama"]
[null,null,null,null,null,null,null,null,null,null,null,null,null,null,null,null,null,null,null,null,null,null,null,null,null,null,"Trgovina na veliko drvom, građevinskim materijalom i sanitarnom opremom",4673,"4673 - Trgovina na veliko drvom, građevinskim materijalom i sanitarnom opremom"]
[null,null,null,null,null,null,null,null,null,null,null,null,null,null,null,null,null,null,null,null,null,null,null,null,null,null,"Trgovina na veliko željeznom robom, instalacijskim materijalom i opremom za vodovod i grijanje",4674,"4674 - Trgovina na veliko željeznom robom, instalacijskim materijalom i opremom za vodovod i grijanje"]
[null,null,null,null,null,null,null,null,null,null,null,null,null,null,null,null,null,null,null,null,null,null,null,null,null,null,"Trgovina na veliko kemijskim proizvodima",4675,"4675 - Trgovina na veliko kemijskim proizvodima"]
[null,null,null,null,null,null,null,null,null,null,null,null,null,null,null,null,null,null,null,null,null,null,null,null,null,null,"Trgovina na veliko ostalim poluproizvodima",4676,"4676 - Trgovina na veliko ostalim poluproizvodima"]
[null,null,null,null,null,null,null,null,null,null,null,null,null,null,null,null,null,null,null,null,null,null,null,null,null,null,"Trgovina na veliko ostacima i otpacima",4677,"4677 - Trgovina na veliko ostacima i otpacima"]
[null,null,null,null,null,null,null,null,null,null,null,null,null,null,null,null,null,null,null,null,null,null,null,null,null,null,"Nespecijalizirana trgovina na veliko ",4690,"4690 - Nespecijalizirana trgovina na veliko "]
[null,null,null,null,null,null,null,null,null,null,null,null,null,null,null,null,null,null,null,null,null,null,null,null,null,null,"Trgovina na malo u nespecijaliziranim prodavaonicama pretežno hranom, pićima i duhanskim proizvodima ",4711,"4711 - Trgovina na malo u nespecijaliziranim prodavaonicama pretežno hranom, pićima i duhanskim proizvodima "]
[null,null,null,null,null,null,null,null,null,null,null,null,null,null,null,null,null,null,null,null,null,null,null,null,null,null,"Ostala trgovina na malo u nespecijaliziranim prodavaonicama",4719,"4719 - Ostala trgovina na malo u nespecijaliziranim prodavaonicama"]
[null,null,null,null,null,null,null,null,null,null,null,null,null,null,null,null,null,null,null,null,null,null,null,null,null,null,"Trgovina na malo voćem i povrćem u specijaliziranim prodavaonicama",4721,"4721 - Trgovina na malo voćem i povrćem u specijaliziranim prodavaonicama"]
[null,null,null,null,null,null,null,null,null,null,null,null,null,null,null,null,null,null,null,null,null,null,null,null,null,null,"Trgovina na malo mesom i mesnim proizvodima u specijaliziranim prodavaonicama",4722,"4722 - Trgovina na malo mesom i mesnim proizvodima u specijaliziranim prodavaonicama"]
[null,null,null,null,null,null,null,null,null,null,null,null,null,null,null,null,null,null,null,null,null,null,null,null,null,null,"Trgovina na malo ribama, rakovima i školjkama u\nspecijaliziranim prodavaonicama",4723,"4723 - Trgovina na malo ribama, rakovima i školjkama u\nspecijaliziranim prodavaonicama"]
[null,null,null,null,null,null,null,null,null,null,null,null,null,null,null,null,null,null,null,null,null,null,null,null,null,null,"Trgovina na malo kruhom, pecivom, kolačima, tjesteninama, bombonima i slatkišima u specijaliziranim prodavaonicama",4724,"4724 - Trgovina na malo kruhom, pecivom, kolačima, tjesteninama, bombonima i slatkišima u specijaliziranim prodavaonicama"]
[null,null,null,null,null,null,null,null,null,null,null,null,null,null,null,null,null,null,null,null,null,null,null,null,null,null,"Trgovina na malo pićima u specijaliziranim prodavaonicama",4725,"4725 - Trgovina na malo pićima u specijaliziranim prodavaonicama"]
[null,null,null,null,null,null,null,null,null,null,null,null,null,null,null,null,null,null,null,null,null,null,null,null,null,null,"Trgovina na malo duhanskim proizvodima u specijaliziranim prodavaonicama",4726,"4726 - Trgovina na malo duhanskim proizvodima u specijaliziranim prodavaonicama"]
[null,null,null,null,null,null,null,null,null,null,null,null,null,null,null,null,null,null,null,null,null,null,null,null,null,null,"Ostala trgovina na malo prehrambenim proizvodima u specijaliziranim prodavaonicama",4729,{"$f":"CONCATENATE(AB416, \" - \", AA416)","v":"4729 - Ostala trgovina na malo prehrambenim proizvodima u specijaliziranim prodavaonicama"}]
[null,null,null,null,null,null,null,null,null,null,null,null,null,null,null,null,null,null,null,null,null,null,null,null,null,null,"Trgovina na malo motornim gorivima i mazivima u specijaliziranim prodavaonicama",4730,"4730 - Trgovina na malo motornim gorivima i mazivima u specijaliziranim prodavaonicama"]
[null,null,null,null,null,null,null,null,null,null,null,null,null,null,null,null,null,null,null,null,null,null,null,null,null,null,"Trgovina na malo računalima, perifernim jedinicama i softverom u specijaliziranim prodavaonicama",4741,"4741 - Trgovina na malo računalima, perifernim jedinicama i softverom u specijaliziranim prodavaonicama"]
[null,null,null,null,null,null,null,null,null,null,null,null,null,null,null,null,null,null,null,null,null,null,null,null,null,null,"Trgovina na malo telekomunikacijskom opremom u specijaliziranim prodavaonicama",4742,"4742 - Trgovina na malo telekomunikacijskom opremom u specijaliziranim prodavaonicama"]
[null,null,null,null,null,null,null,null,null,null,null,null,null,null,null,null,null,null,null,null,null,null,null,null,null,null,"Trgovina na malo audio i videoopremom u specijaliziranim prodavaonicama",4743,"4743 - Trgovina na malo audio i videoopremom u specijaliziranim prodavaonicama"]
[null,null,null,null,null,null,null,null,null,null,null,null,null,null,null,null,null,null,null,null,null,null,null,null,null,null,"Trgovina na malo tekstilom u specijaliziranim prodavaonicama",4751,"4751 - Trgovina na malo tekstilom u specijaliziranim prodavaonicama"]
[null,null,null,null,null,null,null,null,null,null,null,null,null,null,null,null,null,null,null,null,null,null,null,null,null,null,"Trgovina na malo željeznom robom, bojama i staklom u specijaliziranim prodavaonicama",4752,"4752 - Trgovina na malo željeznom robom, bojama i staklom u specijaliziranim prodavaonicama"]
[null,null,null,null,null,null,null,null,null,null,null,null,null,null,null,null,null,null,null,null,null,null,null,null,null,null,"Trgovina na malo sagovima i prostiračima za pod, zidnim i podnim oblogama u specijaliziranim prodavaonicama",4753,"4753 - Trgovina na malo sagovima i prostiračima za pod, zidnim i podnim oblogama u specijaliziranim prodavaonicama"]
[null,null,null,null,null,null,null,null,null,null,null,null,null,null,null,null,null,null,null,null,null,null,null,null,null,null,"Trgovina na malo električnim aparatima za kućanstvo u specijaliziranim prodavaonicama",4754,"4754 - Trgovina na malo električnim aparatima za kućanstvo u specijaliziranim prodavaonicama"]
[null,null,null,null,null,null,null,null,null,null,null,null,null,null,null,null,null,null,null,null,null,null,null,null,null,null,"Trgovina na malo namještajem, opremom za rasvjetu i ostalim proizvodima za kućanstvo u specijaliziranim prodavaonicama",4759,"4759 - Trgovina na malo namještajem, opremom za rasvjetu i ostalim proizvodima za kućanstvo u specijaliziranim prodavaonicama"]
[null,null,null,null,null,null,null,null,null,null,null,null,null,null,null,null,null,null,null,null,null,null,null,null,null,null,"Trgovina na malo knjigama u specijaliziranim prodavaonicama",4761,"4761 - Trgovina na malo knjigama u specijaliziranim prodavaonicama"]
[null,null,null,null,null,null,null,null,null,null,null,null,null,null,null,null,null,null,null,null,null,null,null,null,null,null,"Trgovina na malo novinama, papirnatom robom i pisaćim priborom u specijaliziranim prodavaonicama",4762,"4762 - Trgovina na malo novinama, papirnatom robom i pisaćim priborom u specijaliziranim prodavaonicama"]
[null,null,null,null,null,null,null,null,null,null,null,null,null,null,null,null,null,null,null,null,null,null,null,null,null,null,"Trgovina na malo glazbenim i videozapisima \nu specijaliziranim prodavaonicama",4763,"4763 - Trgovina na malo glazbenim i videozapisima \nu specijaliziranim prodavaonicama"]
[null,null,null,null,null,null,null,null,null,null,null,null,null,null,null,null,null,null,null,null,null,null,null,null,null,null,"Trgovina na malo sportskom opremom u\nspecijaliziranim prodavaonicama",4764,"4764 - Trgovina na malo sportskom opremom u\nspecijaliziranim prodavaonicama"]
[null,null,null,null,null,null,null,null,null,null,null,null,null,null,null,null,null,null,null,null,null,null,null,null,null,null,"Trgovina na malo igrama i igračkama u specijaliziranim prodavaonicama",4765,"4765 - Trgovina na malo igrama i igračkama u specijaliziranim prodavaonicama"]
[null,null,null,null,null,null,null,null,null,null,null,null,null,null,null,null,null,null,null,null,null,null,null,null,null,null,"Trgovina na malo odjećom u specijaliziranim prodavaonicama",4771,"4771 - Trgovina na malo odjećom u specijaliziranim prodavaonicama"]
[null,null,null,null,null,null,null,null,null,null,null,null,null,null,null,null,null,null,null,null,null,null,null,null,null,null,"Trgovina na malo obućom i proizvodima od kože \nu specijaliziranim prodavaonicama",4772,"4772 - Trgovina na malo obućom i proizvodima od kože \nu specijaliziranim prodavaonicama"]
[null,null,null,null,null,null,null,null,null,null,null,null,null,null,null,null,null,null,null,null,null,null,null,null,null,null,"Ljekarne ",4773,"4773 - Ljekarne "]
[null,null,null,null,null,null,null,null,null,null,null,null,null,null,null,null,null,null,null,null,null,null,null,null,null,null,"Trgovina na malo medicinskim pripravcima i ortopedskim pomagalima u specijaliziranim prodavaonicama",4774,"4774 - Trgovina na malo medicinskim pripravcima i ortopedskim pomagalima u specijaliziranim prodavaonicama"]
[null,null,null,null,null,null,null,null,null,null,null,null,null,null,null,null,null,null,null,null,null,null,null,null,null,null,"Trgovina na malo kozmetičkim i toaletnim proizvodima \nu specijaliziranim prodavaonicama",4775,"4775 - Trgovina na malo kozmetičkim i toaletnim proizvodima \nu specijaliziranim prodavaonicama"]
[null,null,null,null,null,null,null,null,null,null,null,null,null,null,null,null,null,null,null,null,null,null,null,null,null,null,"Trgovina na malo cvijećem, sadnicama, sjemenjem, gnojivom, kućnim ljubimcima i hranom za kućne ljubimce u specijaliziranim prodavaonicama",4776,"4776 - Trgovina na malo cvijećem, sadnicama, sjemenjem, gnojivom, kućnim ljubimcima i hranom za kućne ljubimce u specijaliziranim prodavaonicama"]
[null,null,null,null,null,null,null,null,null,null,null,null,null,null,null,null,null,null,null,null,null,null,null,null,null,null,"Trgovina na malo satovima i nakitom u specijaliziranim prodavaonicama",4777,"4777 - Trgovina na malo satovima i nakitom u specijaliziranim prodavaonicama"]
[null,null,null,null,null,null,null,null,null,null,null,null,null,null,null,null,null,null,null,null,null,null,null,null,null,null,"Ostala trgovina na malo novom robom u specijaliziranim prodavaonicama",4778,"4778 - Ostala trgovina na malo novom robom u specijaliziranim prodavaonicama"]
[null,null,null,null,null,null,null,null,null,null,null,null,null,null,null,null,null,null,null,null,null,null,null,null,null,null,"Trgovina na malo rabljenom robom u specijaliziranim prodavaonicama",4779,"4779 - Trgovina na malo rabljenom robom u specijaliziranim prodavaonicama"]
[null,null,null,null,null,null,null,null,null,null,null,null,null,null,null,null,null,null,null,null,null,null,null,null,null,null,"Trgovina na malo hranom, pićima i duhanskim proizvodima na štandovima i tržnicama",4781,"4781 - Trgovina na malo hranom, pićima i duhanskim proizvodima na štandovima i tržnicama"]
[null,null,null,null,null,null,null,null,null,null,null,null,null,null,null,null,null,null,null,null,null,null,null,null,null,null,"Trgovina na malo tekstilom, odjećom i obućom na štandovima i tržnicama",4782,"4782 - Trgovina na malo tekstilom, odjećom i obućom na štandovima i tržnicama"]
[null,null,null,null,null,null,null,null,null,null,null,null,null,null,null,null,null,null,null,null,null,null,null,null,null,null,"Trgovina na malo ostalom robom na štandovima i tržnicama",4789,"4789 - Trgovina na malo ostalom robom na štandovima i tržnicama"]
[null,null,null,null,null,null,null,null,null,null,null,null,null,null,null,null,null,null,null,null,null,null,null,null,null,null,"Trgovina na malo preko pošte ili interneta",4791,"4791 - Trgovina na malo preko pošte ili interneta"]
[null,null,null,null,null,null,null,null,null,null,null,null,null,null,null,null,null,null,null,null,null,null,null,null,null,null,"Ostala trgovina na malo izvan prodavaonica, štandova i tržnica",4799,"4799 - Ostala trgovina na malo izvan prodavaonica, štandova i tržnica"]
[null,null,null,null,null,null,null,null,null,null,null,null,null,null,null,null,null,null,null,null,null,null,null,null,null,null,"Željeznički prijevoz putnika, međugradski",4910,"4910 - Željeznički prijevoz putnika, međugradski"]
[null,null,null,null,null,null,null,null,null,null,null,null,null,null,null,null,null,null,null,null,null,null,null,null,null,null,"Željeznički prijevoz robe",4920,"4920 - Željeznički prijevoz robe"]
[null,null,null,null,null,null,null,null,null,null,null,null,null,null,null,null,null,null,null,null,null,null,null,null,null,null,"Gradski i prigradski kopneni prijevoz putnika",4931,"4931 - Gradski i prigradski kopneni prijevoz putnika"]
[null,null,null,null,null,null,null,null,null,null,null,null,null,null,null,null,null,null,null,null,null,null,null,null,null,null,"Taksi služba",4932,"4932 - Taksi služba"]
[null,null,null,null,null,null,null,null,null,null,null,null,null,null,null,null,null,null,null,null,null,null,null,null,null,null,"Ostali kopneni prijevoz putnika, d. n.",4939,"4939 - Ostali kopneni prijevoz putnika, d. n."]
[null,null,null,null,null,null,null,null,null,null,null,null,null,null,null,null,null,null,null,null,null,null,null,null,null,null,"Cestovni prijevoz robe",4941,"4941 - Cestovni prijevoz robe"]
[null,null,null,null,null,null,null,null,null,null,null,null,null,null,null,null,null,null,null,null,null,null,null,null,null,null,"Usluge preseljenja",4942,"4942 - Usluge preseljenja"]
[null,null,null,null,null,null,null,null,null,null,null,null,null,null,null,null,null,null,null,null,null,null,null,null,null,null,"Cjevovodni transport",4950,"4950 - Cjevovodni transport"]
[null,null,null,null,null,null,null,null,null,null,null,null,null,null,null,null,null,null,null,null,null,null,null,null,null,null,"Pomorski i obalni prijevoz putnika",5010,"5010 - Pomorski i obalni prijevoz putnika"]
[null,null,null,null,null,null,null,null,null,null,null,null,null,null,null,null,null,null,null,null,null,null,null,null,null,null,"Pomorski i obalni prijevoz robe",5020,"5020 - Pomorski i obalni prijevoz robe"]
[null,null,null,null,null,null,null,null,null,null,null,null,null,null,null,null,null,null,null,null,null,null,null,null,null,null,"Prijevoz putnika unutrašnjim vodenim putovima",5030,"5030 - Prijevoz putnika unutrašnjim vodenim putovima"]
[null,null,null,null,null,null,null,null,null,null,null,null,null,null,null,null,null,null,null,null,null,null,null,null,null,null,"Prijevoz robe unutrašnjim vodenim putovima",5040,"5040 - Prijevoz robe unutrašnjim vodenim putovima"]
[null,null,null,null,null,null,null,null,null,null,null,null,null,null,null,null,null,null,null,null,null,null,null,null,null,null,"Zračni prijevoz putnika",5110,"5110 - Zračni prijevoz putnika"]
[null,null,null,null,null,null,null,null,null,null,null,null,null,null,null,null,null,null,null,null,null,null,null,null,null,null,"Zračni prijevoz robe",5121,"5121 - Zračni prijevoz robe"]
[null,null,null,null,null,null,null,null,null,null,null,null,null,null,null,null,null,null,null,null,null,null,null,null,null,null,"Svemirski prijevoz",5122,"5122 - Svemirski prijevoz"]
[null,null,null,null,null,null,null,null,null,null,null,null,null,null,null,null,null,null,null,null,null,null,null,null,null,null,"Skladištenje robe",5210,"5210 - Skladištenje robe"]
[null,null,null,null,null,null,null,null,null,null,null,null,null,null,null,null,null,null,null,null,null,null,null,null,null,null,"Uslužne djelatnosti u vezi s kopnenim prijevozom",5221,"5221 - Uslužne djelatnosti u vezi s kopnenim prijevozom"]
[null,null,null,null,null,null,null,null,null,null,null,null,null,null,null,null,null,null,null,null,null,null,null,null,null,null,"Uslužne djelatnosti u vezi s vodenim prijevozom",5222,"5222 - Uslužne djelatnosti u vezi s vodenim prijevozom"]
[null,null,null,null,null,null,null,null,null,null,null,null,null,null,null,null,null,null,null,null,null,null,null,null,null,null,"Uslužne djelatnosti u vezi sa zračnim prijevozom",5223,"5223 - Uslužne djelatnosti u vezi sa zračnim prijevozom"]
[null,null,null,null,null,null,null,null,null,null,null,null,null,null,null,null,null,null,null,null,null,null,null,null,null,null,"Prekrcaj tereta",5224,"5224 - Prekrcaj tereta"]
[null,null,null,null,null,null,null,null,null,null,null,null,null,null,null,null,null,null,null,null,null,null,null,null,null,null,"Ostale prateće djelatnosti u prijevozu",5229,"5229 - Ostale prateće djelatnosti u prijevozu"]
[null,null,null,null,null,null,null,null,null,null,null,null,null,null,null,null,null,null,null,null,null,null,null,null,null,null,"Djelatnosti pružanja univerzalnih poštanskih usluga",5310,"5310 - Djelatnosti pružanja univerzalnih poštanskih usluga"]
[null,null,null,null,null,null,null,null,null,null,null,null,null,null,null,null,null,null,null,null,null,null,null,null,null,null,"Djelatnosti pružanja ostalih poštanskih i kurirskih usluga",5320,"5320 - Djelatnosti pružanja ostalih poštanskih i kurirskih usluga"]
[null,null,null,null,null,null,null,null,null,null,null,null,null,null,null,null,null,null,null,null,null,null,null,null,null,null,"Hoteli i sličan smještaj",5510,"5510 - Hoteli i sličan smještaj"]
[null,null,null,null,null,null,null,null,null,null,null,null,null,null,null,null,null,null,null,null,null,null,null,null,null,null,"Odmarališta i slični objekti za kraći odmor",5520,"5520 - Odmarališta i slični objekti za kraći odmor"]
[null,null,null,null,null,null,null,null,null,null,null,null,null,null,null,null,null,null,null,null,null,null,null,null,null,null,"Kampovi i prostori za kampiranje",5530,"5530 - Kampovi i prostori za kampiranje"]
[null,null,null,null,null,null,null,null,null,null,null,null,null,null,null,null,null,null,null,null,null,null,null,null,null,null,"Ostali smještaj",5590,"5590 - Ostali smještaj"]
[null,null,null,null,null,null,null,null,null,null,null,null,null,null,null,null,null,null,null,null,null,null,null,null,null,null,"Djelatnosti restorana i ostalih objekata za pripremu i usluživanje hrane",5610,"5610 - Djelatnosti restorana i ostalih objekata za pripremu i usluživanje hrane"]
[null,null,null,null,null,null,null,null,null,null,null,null,null,null,null,null,null,null,null,null,null,null,null,null,null,null,"Djelatnosti keteringa",5621,"5621 - Djelatnosti keteringa"]
[null,null,null,null,null,null,null,null,null,null,null,null,null,null,null,null,null,null,null,null,null,null,null,null,null,null,"Ostale djelatnosti pripreme i usluživanja hrane",5629,"5629 - Ostale djelatnosti pripreme i usluživanja hrane"]
[null,null,null,null,null,null,null,null,null,null,null,null,null,null,null,null,null,null,null,null,null,null,null,null,null,null,"Djelatnosti pripreme i usluživanja pića",5630,"5630 - Djelatnosti pripreme i usluživanja pića"]
[null,null,null,null,null,null,null,null,null,null,null,null,null,null,null,null,null,null,null,null,null,null,null,null,null,null,"Izdavanje knjiga",5811,"5811 - Izdavanje knjiga"]
[null,null,null,null,null,null,null,null,null,null,null,null,null,null,null,null,null,null,null,null,null,null,null,null,null,null,"Izdavanje imenika i popisa korisničkih adresa",5812,"5812 - Izdavanje imenika i popisa korisničkih adresa"]
[null,null,null,null,null,null,null,null,null,null,null,null,null,null,null,null,null,null,null,null,null,null,null,null,null,null,"Izdavanje novina",5813,"5813 - Izdavanje novina"]
[null,null,null,null,null,null,null,null,null,null,null,null,null,null,null,null,null,null,null,null,null,null,null,null,null,null,"Izdavanje časopisa i periodičnih publikacija",5814,"5814 - Izdavanje časopisa i periodičnih publikacija"]
[null,null,null,null,null,null,null,null,null,null,null,null,null,null,null,null,null,null,null,null,null,null,null,null,null,null,"Ostala izdavačka djelatnost",5819,{"$f":"CONCATENATE(AB480, \" - \", AA480)","v":"5819 - Ostala izdavačka djelatnost"}]
[null,null,null,null,null,null,null,null,null,null,null,null,null,null,null,null,null,null,null,null,null,null,null,null,null,null,"Izdavanje računalnih igara",5821,"5821 - Izdavanje računalnih igara"]
[null,null,null,null,null,null,null,null,null,null,null,null,null,null,null,null,null,null,null,null,null,null,null,null,null,null,"Izdavanje ostalog softvera",5829,"5829 - Izdavanje ostalog softvera"]
[null,null,null,null,null,null,null,null,null,null,null,null,null,null,null,null,null,null,null,null,null,null,null,null,null,null,"Proizvodnja filmova, videofilmova i televizijskog programa",5911,"5911 - Proizvodnja filmova, videofilmova i televizijskog programa"]
[null,null,null,null,null,null,null,null,null,null,null,null,null,null,null,null,null,null,null,null,null,null,null,null,null,null,"Djelatnosti koje slijede nakon proizvodnje filmova, videofilmova i televizijskog programa",5912,"5912 - Djelatnosti koje slijede nakon proizvodnje filmova, videofilmova i televizijskog programa"]
[null,null,null,null,null,null,null,null,null,null,null,null,null,null,null,null,null,null,null,null,null,null,null,null,null,null,"Distribucija filmova, videofilmova i televizijskog programa",5913,"5913 - Distribucija filmova, videofilmova i televizijskog programa"]
[null,null,null,null,null,null,null,null,null,null,null,null,null,null,null,null,null,null,null,null,null,null,null,null,null,null,"Djelatnosti prikazivanja filmova",5914,"5914 - Djelatnosti prikazivanja filmova"]
[null,null,null,null,null,null,null,null,null,null,null,null,null,null,null,null,null,null,null,null,null,null,null,null,null,null,"Djelatnosti snimanja zvučnih zapisa i izdavanja glazbenih zapisa",5920,"5920 - Djelatnosti snimanja zvučnih zapisa i izdavanja glazbenih zapisa"]
[null,null,null,null,null,null,null,null,null,null,null,null,null,null,null,null,null,null,null,null,null,null,null,null,null,null,"Emitiranje radijskog programa",6010,"6010 - Emitiranje radijskog programa"]
[null,null,null,null,null,null,null,null,null,null,null,null,null,null,null,null,null,null,null,null,null,null,null,null,null,null,"Emitiranje televizijskog programa",6020,"6020 - Emitiranje televizijskog programa"]
[null,null,null,null,null,null,null,null,null,null,null,null,null,null,null,null,null,null,null,null,null,null,null,null,null,null,"Djelatnosti žičane telekomunikacije",6110,"6110 - Djelatnosti žičane telekomunikacije"]
[null,null,null,null,null,null,null,null,null,null,null,null,null,null,null,null,null,null,null,null,null,null,null,null,null,null,"Djelatnosti bežične telekomunikacije",6120,"6120 - Djelatnosti bežične telekomunikacije"]
[null,null,null,null,null,null,null,null,null,null,null,null,null,null,null,null,null,null,null,null,null,null,null,null,null,null,"Djelatnosti satelitske telekomunikacije",6130,"6130 - Djelatnosti satelitske telekomunikacije"]
[null,null,null,null,null,null,null,null,null,null,null,null,null,null,null,null,null,null,null,null,null,null,null,null,null,null,"Ostale telekomunikacijske djelatnosti",6190,"6190 - Ostale telekomunikacijske djelatnosti"]
[null,null,null,null,null,null,null,null,null,null,null,null,null,null,null,null,null,null,null,null,null,null,null,null,null,null,"Računalno programiranje",6201,"6201 - Računalno programiranje"]
[null,null,null,null,null,null,null,null,null,null,null,null,null,null,null,null,null,null,null,null,null,null,null,null,null,null,"Savjetovanje u vezi s računalima",6202,"6202 - Savjetovanje u vezi s računalima"]
[null,null,null,null,null,null,null,null,null,null,null,null,null,null,null,null,null,null,null,null,null,null,null,null,null,null,"Upravljanje računalnom opremom i sustavom",6203,"6203 - Upravljanje računalnom opremom i sustavom"]
[null,null,null,null,null,null,null,null,null,null,null,null,null,null,null,null,null,null,null,null,null,null,null,null,null,null,"Ostale uslužne djelatnosti u vezi s informacijskom tehnologijom i računalima",6209,"6209 - Ostale uslužne djelatnosti u vezi s informacijskom tehnologijom i računalima"]
[null,null,null,null,null,null,null,null,null,null,null,null,null,null,null,null,null,null,null,null,null,null,null,null,null,null,"Obrada podataka, usluge poslužitelja i djelatnosti povezane s njima",6311,"6311 - Obrada podataka, usluge poslužitelja i djelatnosti povezane s njima"]
[null,null,null,null,null,null,null,null,null,null,null,null,null,null,null,null,null,null,null,null,null,null,null,null,null,null,"Internetski portali",6312,"6312 - Internetski portali"]
[null,null,null,null,null,null,null,null,null,null,null,null,null,null,null,null,null,null,null,null,null,null,null,null,null,null,"Djelatnosti novinskih agencija",6391,"6391 - Djelatnosti novinskih agencija"]
[null,null,null,null,null,null,null,null,null,null,null,null,null,null,null,null,null,null,null,null,null,null,null,null,null,null,"Ostale informacijske uslužne djelatnosti, d. n.",6399,"6399 - Ostale informacijske uslužne djelatnosti, d. n."]
[null,null,null,null,null,null,null,null,null,null,null,null,null,null,null,null,null,null,null,null,null,null,null,null,null,null,"Središnje bankarstvo",6411,"6411 - Središnje bankarstvo"]
[null,null,null,null,null,null,null,null,null,null,null,null,null,null,null,null,null,null,null,null,null,null,null,null,null,null,"Ostalo novčarsko posredovanje",6419,"6419 - Ostalo novčarsko posredovanje"]
[null,null,null,null,null,null,null,null,null,null,null,null,null,null,null,null,null,null,null,null,null,null,null,null,null,null,"Djelatnosti holding-društava",6420,"6420 - Djelatnosti holding-društava"]
[null,null,null,null,null,null,null,null,null,null,null,null,null,null,null,null,null,null,null,null,null,null,null,null,null,null,"Trustovi (uzajamni fondovi), fondovi i slični financijski subjekti",6430,"6430 - Trustovi (uzajamni fondovi), fondovi i slični financijski subjekti"]
[null,null,null,null,null,null,null,null,null,null,null,null,null,null,null,null,null,null,null,null,null,null,null,null,null,null,"Financijski leasing",6491,"6491 - Financijski leasing"]
[null,null,null,null,null,null,null,null,null,null,null,null,null,null,null,null,null,null,null,null,null,null,null,null,null,null,"Ostalo kreditno posredovanje",6492,"6492 - Ostalo kreditno posredovanje"]
[null,null,null,null,null,null,null,null,null,null,null,null,null,null,null,null,null,null,null,null,null,null,null,null,null,null,"Ostale financijske uslužne djelatnosti, osim osiguranja i mirovinskih fondova, d. n.",6499,"6499 - Ostale financijske uslužne djelatnosti, osim osiguranja i mirovinskih fondova, d. n."]
[null,null,null,null,null,null,null,null,null,null,null,null,null,null,null,null,null,null,null,null,null,null,null,null,null,null,"Životno osiguranje",6511,"6511 - Životno osiguranje"]
[null,null,null,null,null,null,null,null,null,null,null,null,null,null,null,null,null,null,null,null,null,null,null,null,null,null,"Ostalo osiguranje",6512,"6512 - Ostalo osiguranje"]
[null,null,null,null,null,null,null,null,null,null,null,null,null,null,null,null,null,null,null,null,null,null,null,null,null,null,"Reosiguranje",6520,"6520 - Reosiguranje"]
[null,null,null,null,null,null,null,null,null,null,null,null,null,null,null,null,null,null,null,null,null,null,null,null,null,null,"Mirovinski fondovi",6530,"6530 - Mirovinski fondovi"]
[null,null,null,null,null,null,null,null,null,null,null,null,null,null,null,null,null,null,null,null,null,null,null,null,null,null,"Poslovanje financijskih tržišta",6611,"6611 - Poslovanje financijskih tržišta"]
[null,null,null,null,null,null,null,null,null,null,null,null,null,null,null,null,null,null,null,null,null,null,null,null,null,null,"Djelatnosti posredovanja u poslovanju vrijednosnim papirima i robnim ugovorima",6612,"6612 - Djelatnosti posredovanja u poslovanju vrijednosnim papirima i robnim ugovorima"]
[null,null,null,null,null,null,null,null,null,null,null,null,null,null,null,null,null,null,null,null,null,null,null,null,null,null,"Ostale pomoćne djelatnosti kod financijskih usluga, osim osiguranja i mirovinskih fondova",6619,"6619 - Ostale pomoćne djelatnosti kod financijskih usluga, osim osiguranja i mirovinskih fondova"]
[null,null,null,null,null,null,null,null,null,null,null,null,null,null,null,null,null,null,null,null,null,null,null,null,null,null,"Procjena rizika i štete",6621,"6621 - Procjena rizika i štete"]
[null,null,null,null,null,null,null,null,null,null,null,null,null,null,null,null,null,null,null,null,null,null,null,null,null,null,"Djelatnosti agenata i posrednika osiguranja ",6622,"6622 - Djelatnosti agenata i posrednika osiguranja "]
[null,null,null,null,null,null,null,null,null,null,null,null,null,null,null,null,null,null,null,null,null,null,null,null,null,null,"Ostale pomoćne djelatnosti u osiguranju i mirovinskim fondovima",6629,"6629 - Ostale pomoćne djelatnosti u osiguranju i mirovinskim fondovima"]
[null,null,null,null,null,null,null,null,null,null,null,null,null,null,null,null,null,null,null,null,null,null,null,null,null,null,"Djelatnosti upravljanja fondovima",6630,"6630 - Djelatnosti upravljanja fondovima"]
[null,null,null,null,null,null,null,null,null,null,null,null,null,null,null,null,null,null,null,null,null,null,null,null,null,null,"Kupnja i prodaja vlastitih nekretnina",6810,"6810 - Kupnja i prodaja vlastitih nekretnina"]
[null,null,null,null,null,null,null,null,null,null,null,null,null,null,null,null,null,null,null,null,null,null,null,null,null,null,"Iznajmljivanje i upravljanje vlastitim nekretninama ili nekretninama uzetim u zakup (leasing)",6820,"6820 - Iznajmljivanje i upravljanje vlastitim nekretninama ili nekretninama uzetim u zakup (leasing)"]
[null,null,null,null,null,null,null,null,null,null,null,null,null,null,null,null,null,null,null,null,null,null,null,null,null,null,"Agencije za poslovanje nekretninama",6831,"6831 - Agencije za poslovanje nekretninama"]
[null,null,null,null,null,null,null,null,null,null,null,null,null,null,null,null,null,null,null,null,null,null,null,null,null,null,"Upravljanje nekretninama uz naplatu ili na osnovi ugovora",6832,"6832 - Upravljanje nekretninama uz naplatu ili na osnovi ugovora"]
[null,null,null,null,null,null,null,null,null,null,null,null,null,null,null,null,null,null,null,null,null,null,null,null,null,null,"Pravne djelatnosti",6910,"6910 - Pravne djelatnosti"]
[null,null,null,null,null,null,null,null,null,null,null,null,null,null,null,null,null,null,null,null,null,null,null,null,null,null,"Računovodstvene, knjigovodstvene i revizijske djelatnosti; porezno savjetovanje",6920,"6920 - Računovodstvene, knjigovodstvene i revizijske djelatnosti; porezno savjetovanje"]
[null,null,null,null,null,null,null,null,null,null,null,null,null,null,null,null,null,null,null,null,null,null,null,null,null,null,"Upravljačke djelatnosti",7010,"7010 - Upravljačke djelatnosti"]
[null,null,null,null,null,null,null,null,null,null,null,null,null,null,null,null,null,null,null,null,null,null,null,null,null,null,"Odnosi s javnošću i djelatnosti priopćivanja",7021,"7021 - Odnosi s javnošću i djelatnosti priopćivanja"]
[null,null,null,null,null,null,null,null,null,null,null,null,null,null,null,null,null,null,null,null,null,null,null,null,null,null,"Savjetovanje u vezi s poslovanjem i ostalim upravljanjem",7022,"7022 - Savjetovanje u vezi s poslovanjem i ostalim upravljanjem"]
[null,null,null,null,null,null,null,null,null,null,null,null,null,null,null,null,null,null,null,null,null,null,null,null,null,null,"Arhitektonske djelatnosti",7111,"7111 - Arhitektonske djelatnosti"]
[null,null,null,null,null,null,null,null,null,null,null,null,null,null,null,null,null,null,null,null,null,null,null,null,null,null,"Inženjerstvo i s njim povezano tehničko savjetovanje",7112,"7112 - Inženjerstvo i s njim povezano tehničko savjetovanje"]
[null,null,null,null,null,null,null,null,null,null,null,null,null,null,null,null,null,null,null,null,null,null,null,null,null,null,"Tehničko ispitivanje i analiza",7120,"7120 - Tehničko ispitivanje i analiza"]
[null,null,null,null,null,null,null,null,null,null,null,null,null,null,null,null,null,null,null,null,null,null,null,null,null,null,"Istraživanje i eksperimentalni razvoj u biotehnologiji",7211,"7211 - Istraživanje i eksperimentalni razvoj u biotehnologiji"]
[null,null,null,null,null,null,null,null,null,null,null,null,null,null,null,null,null,null,null,null,null,null,null,null,null,null,"Ostalo istraživanje i eksperimentalni razvoj u prirodnim, tehničkim i tehnološkim znanostima",7219,"7219 - Ostalo istraživanje i eksperimentalni razvoj u prirodnim, tehničkim i tehnološkim znanostima"]
[null,null,null,null,null,null,null,null,null,null,null,null,null,null,null,null,null,null,null,null,null,null,null,null,null,null,"Istraživanje i eksperimentalni razvoj u društvenim i humanističkim znanostima",7220,"7220 - Istraživanje i eksperimentalni razvoj u društvenim i humanističkim znanostima"]
[null,null,null,null,null,null,null,null,null,null,null,null,null,null,null,null,null,null,null,null,null,null,null,null,null,null,"Agencije za promidžbu",7311,"7311 - Agencije za promidžbu"]
[null,null,null,null,null,null,null,null,null,null,null,null,null,null,null,null,null,null,null,null,null,null,null,null,null,null,"Oglašavanje preko medija",7312,"7312 - Oglašavanje preko medija"]
[null,null,null,null,null,null,null,null,null,null,null,null,null,null,null,null,null,null,null,null,null,null,null,null,null,null,"Istraživanje tržišta i ispitivanje javnoga mnijenja",7320,"7320 - Istraživanje tržišta i ispitivanje javnoga mnijenja"]
[null,null,null,null,null,null,null,null,null,null,null,null,null,null,null,null,null,null,null,null,null,null,null,null,null,null,"Specijalizirane dizajnerske djelatnosti",7410,"7410 - Specijalizirane dizajnerske djelatnosti"]
[null,null,null,null,null,null,null,null,null,null,null,null,null,null,null,null,null,null,null,null,null,null,null,null,null,null,"Fotografske djelatnosti",7420,"7420 - Fotografske djelatnosti"]
[null,null,null,null,null,null,null,null,null,null,null,null,null,null,null,null,null,null,null,null,null,null,null,null,null,null,"Prevoditeljske djelatnosti i usluge tumača",7430,"7430 - Prevoditeljske djelatnosti i usluge tumača"]
[null,null,null,null,null,null,null,null,null,null,null,null,null,null,null,null,null,null,null,null,null,null,null,null,null,null,"Ostale stručne, znanstvene i tehničke djelatnosti, d. n.",7490,"7490 - Ostale stručne, znanstvene i tehničke djelatnosti, d. n."]
[null,null,null,null,null,null,null,null,null,null,null,null,null,null,null,null,null,null,null,null,null,null,null,null,null,null,"Veterinarske djelatnosti",7500,"7500 - Veterinarske djelatnosti"]
[null,null,null,null,null,null,null,null,null,null,null,null,null,null,null,null,null,null,null,null,null,null,null,null,null,null,"Iznajmljivanje i davanje u zakup (leasing) automobila i motornih vozila lake kategorije",7711,"7711 - Iznajmljivanje i davanje u zakup (leasing) automobila i motornih vozila lake kategorije"]
[null,null,null,null,null,null,null,null,null,null,null,null,null,null,null,null,null,null,null,null,null,null,null,null,null,null,"Iznajmljivanje i davanje u zakup (leasing) kamiona ",7712,{"$f":"CONCATENATE(AB544, \" - \", AA544)","v":"7712 - Iznajmljivanje i davanje u zakup (leasing) kamiona "}]
[null,null,null,null,null,null,null,null,null,null,null,null,null,null,null,null,null,null,null,null,null,null,null,null,null,null,"Iznajmljivanje i davanje u zakup (leasing) opreme za rekraciju i sport",7721,"7721 - Iznajmljivanje i davanje u zakup (leasing) opreme za rekraciju i sport"]
[null,null,null,null,null,null,null,null,null,null,null,null,null,null,null,null,null,null,null,null,null,null,null,null,null,null,"Iznajmljivanje videokaseta i diskova",7722,"7722 - Iznajmljivanje videokaseta i diskova"]
[null,null,null,null,null,null,null,null,null,null,null,null,null,null,null,null,null,null,null,null,null,null,null,null,null,null,"Iznajmljivanje i davanje u zakup (leasing) ostalih predmeta za osobnu uporabu i kućanstvo",7729,"7729 - Iznajmljivanje i davanje u zakup (leasing) ostalih predmeta za osobnu uporabu i kućanstvo"]
[null,null,null,null,null,null,null,null,null,null,null,null,null,null,null,null,null,null,null,null,null,null,null,null,null,null,"Iznajmljivanje i davanje u zakup (leasing) poljoprivrednih strojeva i opreme",7731,"7731 - Iznajmljivanje i davanje u zakup (leasing) poljoprivrednih strojeva i opreme"]
[null,null,null,null,null,null,null,null,null,null,null,null,null,null,null,null,null,null,null,null,null,null,null,null,null,null,"Iznajmljivanje i davanje u zakup (leasing) strojeva i opreme za građevinarstvo i inženjerstvo",7732,"7732 - Iznajmljivanje i davanje u zakup (leasing) strojeva i opreme za građevinarstvo i inženjerstvo"]
[null,null,null,null,null,null,null,null,null,null,null,null,null,null,null,null,null,null,null,null,null,null,null,null,null,null,"Iznajmljivanje i davanje u zakup (leasing) uredskih strojeva i opreme (uključujući računala)",7733,"7733 - Iznajmljivanje i davanje u zakup (leasing) uredskih strojeva i opreme (uključujući računala)"]
[null,null,null,null,null,null,null,null,null,null,null,null,null,null,null,null,null,null,null,null,null,null,null,null,null,null,"Iznajmljivanje i davanje u zakup (leasing) plovnih prijevoznih sredstava",7734,"7734 - Iznajmljivanje i davanje u zakup (leasing) plovnih prijevoznih sredstava"]
[null,null,null,null,null,null,null,null,null,null,null,null,null,null,null,null,null,null,null,null,null,null,null,null,null,null,"Iznajmljivanje i davanje u zakup (leasing) zračnih prijevoznih sredstava",7735,"7735 - Iznajmljivanje i davanje u zakup (leasing) zračnih prijevoznih sredstava"]
[null,null,null,null,null,null,null,null,null,null,null,null,null,null,null,null,null,null,null,null,null,null,null,null,null,null,"Iznajmljivanje i davanje u zakup (leasing) ostalih strojeva, opreme i materijalnih dobara, d. n.",7739,"7739 - Iznajmljivanje i davanje u zakup (leasing) ostalih strojeva, opreme i materijalnih dobara, d. n."]
[null,null,null,null,null,null,null,null,null,null,null,null,null,null,null,null,null,null,null,null,null,null,null,null,null,null,"Davanje u zakup (leasing) prava na uporabu intelektualnog vlasnišva i sličnih proizvoda, osim radova koji su zaštićeni autorskim pravima",7740,"7740 - Davanje u zakup (leasing) prava na uporabu intelektualnog vlasnišva i sličnih proizvoda, osim radova koji su zaštićeni autorskim pravima"]
[null,null,null,null,null,null,null,null,null,null,null,null,null,null,null,null,null,null,null,null,null,null,null,null,null,null,"Djelatnosti agencija za zapošljavanje",7810,"7810 - Djelatnosti agencija za zapošljavanje"]
[null,null,null,null,null,null,null,null,null,null,null,null,null,null,null,null,null,null,null,null,null,null,null,null,null,null,"Djelatnosti agencija za privremeno zapošljavanje",7820,"7820 - Djelatnosti agencija za privremeno zapošljavanje"]
[null,null,null,null,null,null,null,null,null,null,null,null,null,null,null,null,null,null,null,null,null,null,null,null,null,null,"Ostalo ustupanje ljudskih resursa",7830,"7830 - Ostalo ustupanje ljudskih resursa"]
[null,null,null,null,null,null,null,null,null,null,null,null,null,null,null,null,null,null,null,null,null,null,null,null,null,null,"Djelatnosti putničkih agencija",7911,"7911 - Djelatnosti putničkih agencija"]
[null,null,null,null,null,null,null,null,null,null,null,null,null,null,null,null,null,null,null,null,null,null,null,null,null,null,"Djelatnosti organizatora putovanja (turoperatora)",7912,"7912 - Djelatnosti organizatora putovanja (turoperatora)"]
[null,null,null,null,null,null,null,null,null,null,null,null,null,null,null,null,null,null,null,null,null,null,null,null,null,null,"Ostale rezervacijske usluge i djelatnosti povezane s njima",7990,"7990 - Ostale rezervacijske usluge i djelatnosti povezane s njima"]
[null,null,null,null,null,null,null,null,null,null,null,null,null,null,null,null,null,null,null,null,null,null,null,null,null,null,"Djelatnosti privatne zaštite",8010,"8010 - Djelatnosti privatne zaštite"]
[null,null,null,null,null,null,null,null,null,null,null,null,null,null,null,null,null,null,null,null,null,null,null,null,null,null,"Usluge zaštite uz pomoć sigurnosnih sustava",8020,"8020 - Usluge zaštite uz pomoć sigurnosnih sustava"]
[null,null,null,null,null,null,null,null,null,null,null,null,null,null,null,null,null,null,null,null,null,null,null,null,null,null,"Istražne djelatnosti",8030,"8030 - Istražne djelatnosti"]
[null,null,null,null,null,null,null,null,null,null,null,null,null,null,null,null,null,null,null,null,null,null,null,null,null,null,"Upravljanje zgradama",8110,"8110 - Upravljanje zgradama"]
[null,null,null,null,null,null,null,null,null,null,null,null,null,null,null,null,null,null,null,null,null,null,null,null,null,null,"Osnovno čišćenje zgrada",8121,"8121 - Osnovno čišćenje zgrada"]
[null,null,null,null,null,null,null,null,null,null,null,null,null,null,null,null,null,null,null,null,null,null,null,null,null,null,"Ostale djelatnosti čišćenja zgrada i objekata",8122,"8122 - Ostale djelatnosti čišćenja zgrada i objekata"]
[null,null,null,null,null,null,null,null,null,null,null,null,null,null,null,null,null,null,null,null,null,null,null,null,null,null,"Ostale djelatnosti čišćenja",8129,"8129 - Ostale djelatnosti čišćenja"]
[null,null,null,null,null,null,null,null,null,null,null,null,null,null,null,null,null,null,null,null,null,null,null,null,null,null,"Uslužne djelatnosti uređenja i održavanja krajolika",8130,"8130 - Uslužne djelatnosti uređenja i održavanja krajolika"]
[null,null,null,null,null,null,null,null,null,null,null,null,null,null,null,null,null,null,null,null,null,null,null,null,null,null,"Kombinirane uredske administrativne uslužne djelatnosti",8211,"8211 - Kombinirane uredske administrativne uslužne djelatnosti"]
[null,null,null,null,null,null,null,null,null,null,null,null,null,null,null,null,null,null,null,null,null,null,null,null,null,null,"Fotokopiranje, priprema dokumenata i ostale specijalizirane uredske pomoćne djelatnosti",8219,"8219 - Fotokopiranje, priprema dokumenata i ostale specijalizirane uredske pomoćne djelatnosti"]
[null,null,null,null,null,null,null,null,null,null,null,null,null,null,null,null,null,null,null,null,null,null,null,null,null,null,"Djelatnosti pozivnih centara",8220,"8220 - Djelatnosti pozivnih centara"]
[null,null,null,null,null,null,null,null,null,null,null,null,null,null,null,null,null,null,null,null,null,null,null,null,null,null,"Organizacija sastanaka i poslovnih sajmova",8230,"8230 - Organizacija sastanaka i poslovnih sajmova"]
[null,null,null,null,null,null,null,null,null,null,null,null,null,null,null,null,null,null,null,null,null,null,null,null,null,null,"Djelatnosti agencija za prikupljanje i naplatu računa te kreditnih ureda",8291,"8291 - Djelatnosti agencija za prikupljanje i naplatu računa te kreditnih ureda"]
[null,null,null,null,null,null,null,null,null,null,null,null,null,null,null,null,null,null,null,null,null,null,null,null,null,null,"Djelatnosti pakiranja",8292,"8292 - Djelatnosti pakiranja"]
[null,null,null,null,null,null,null,null,null,null,null,null,null,null,null,null,null,null,null,null,null,null,null,null,null,null,"Ostale poslovne pomoćne uslužne djelatnosti, d. n.",8299,"8299 - Ostale poslovne pomoćne uslužne djelatnosti, d. n."]
[null,null,null,null,null,null,null,null,null,null,null,null,null,null,null,null,null,null,null,null,null,null,null,null,null,null,"Opće djelatnosti javne uprave",8411,"8411 - Opće djelatnosti javne uprave"]
[null,null,null,null,null,null,null,null,null,null,null,null,null,null,null,null,null,null,null,null,null,null,null,null,null,null,"Reguliranje djelatnosti subjekata koji pružaju zdravstvenu zaštitu, usluge u obrazovanju i kulturi i druge društvene usluge, osim obveznoga socijalnog osiguranja",8412,"8412 - Reguliranje djelatnosti subjekata koji pružaju zdravstvenu zaštitu, usluge u obrazovanju i kulturi i druge društvene usluge, osim obveznoga socijalnog osiguranja"]
[null,null,null,null,null,null,null,null,null,null,null,null,null,null,null,null,null,null,null,null,null,null,null,null,null,null,"Reguliranje i poboljšavanje poslovanja u gospodarstvu",8413,"8413 - Reguliranje i poboljšavanje poslovanja u gospodarstvu"]
[null,null,null,null,null,null,null,null,null,null,null,null,null,null,null,null,null,null,null,null,null,null,null,null,null,null,"Vanjski poslovi",8421,"8421 - Vanjski poslovi"]
[null,null,null,null,null,null,null,null,null,null,null,null,null,null,null,null,null,null,null,null,null,null,null,null,null,null,"Poslovi obrane",8422,"8422 - Poslovi obrane"]
[null,null,null,null,null,null,null,null,null,null,null,null,null,null,null,null,null,null,null,null,null,null,null,null,null,null,"Sudske i pravosudne djelatnosti",8423,"8423 - Sudske i pravosudne djelatnosti"]
[null,null,null,null,null,null,null,null,null,null,null,null,null,null,null,null,null,null,null,null,null,null,null,null,null,null,"Poslovi javnog reda i sigurnosti",8424,"8424 - Poslovi javnog reda i sigurnosti"]
[null,null,null,null,null,null,null,null,null,null,null,null,null,null,null,null,null,null,null,null,null,null,null,null,null,null,"Djelatnosti vatrogasne službe",8425,"8425 - Djelatnosti vatrogasne službe"]
[null,null,null,null,null,null,null,null,null,null,null,null,null,null,null,null,null,null,null,null,null,null,null,null,null,null,"Djelatnosti obveznoga socijalnog osiguranja",8430,"8430 - Djelatnosti obveznoga socijalnog osiguranja"]
[null,null,null,null,null,null,null,null,null,null,null,null,null,null,null,null,null,null,null,null,null,null,null,null,null,null,"Predškolsko obrazovanje",8510,"8510 - Predškolsko obrazovanje"]
[null,null,null,null,null,null,null,null,null,null,null,null,null,null,null,null,null,null,null,null,null,null,null,null,null,null,"Osnovno obrazovanje",8520,"8520 - Osnovno obrazovanje"]
[null,null,null,null,null,null,null,null,null,null,null,null,null,null,null,null,null,null,null,null,null,null,null,null,null,null,"Opće srednje obrazovanje",8531,"8531 - Opće srednje obrazovanje"]
[null,null,null,null,null,null,null,null,null,null,null,null,null,null,null,null,null,null,null,null,null,null,null,null,null,null,"Tehničko i strukovno srednje obrazovanje",8532,"8532 - Tehničko i strukovno srednje obrazovanje"]
[null,null,null,null,null,null,null,null,null,null,null,null,null,null,null,null,null,null,null,null,null,null,null,null,null,null,"Obrazovanje nakon srednjeg koje nije visoko",8541,"8541 - Obrazovanje nakon srednjeg koje nije visoko"]
[null,null,null,null,null,null,null,null,null,null,null,null,null,null,null,null,null,null,null,null,null,null,null,null,null,null,"Visoko obrazovanje ",8542,"8542 - Visoko obrazovanje "]
[null,null,null,null,null,null,null,null,null,null,null,null,null,null,null,null,null,null,null,null,null,null,null,null,null,null,"Obrazovanje i poučavanje u području sporta i rekreacije",8551,"8551 - Obrazovanje i poučavanje u području sporta i rekreacije"]
[null,null,null,null,null,null,null,null,null,null,null,null,null,null,null,null,null,null,null,null,null,null,null,null,null,null,"Obrazovanje i poučavanje u području kulture",8552,"8552 - Obrazovanje i poučavanje u području kulture"]
[null,null,null,null,null,null,null,null,null,null,null,null,null,null,null,null,null,null,null,null,null,null,null,null,null,null,"Djelatnosti vozačkih škola",8553,"8553 - Djelatnosti vozačkih škola"]
[null,null,null,null,null,null,null,null,null,null,null,null,null,null,null,null,null,null,null,null,null,null,null,null,null,null,"Ostalo obrazovanje i poučavanje, d. n.",8559,"8559 - Ostalo obrazovanje i poučavanje, d. n."]
[null,null,null,null,null,null,null,null,null,null,null,null,null,null,null,null,null,null,null,null,null,null,null,null,null,null,"Pomoćne usluge u obrazovanju",8560,"8560 - Pomoćne usluge u obrazovanju"]
[null,null,null,null,null,null,null,null,null,null,null,null,null,null,null,null,null,null,null,null,null,null,null,null,null,null,"Djelatnosti bolnica",8610,"8610 - Djelatnosti bolnica"]
[null,null,null,null,null,null,null,null,null,null,null,null,null,null,null,null,null,null,null,null,null,null,null,null,null,null,"Djelatnosti opće medicinske prakse",8621,"8621 - Djelatnosti opće medicinske prakse"]
[null,null,null,null,null,null,null,null,null,null,null,null,null,null,null,null,null,null,null,null,null,null,null,null,null,null,"Djelatnosti specijalističke medicinske prakse",8622,"8622 - Djelatnosti specijalističke medicinske prakse"]
[null,null,null,null,null,null,null,null,null,null,null,null,null,null,null,null,null,null,null,null,null,null,null,null,null,null,"Djelatnosti stomatološke prakse",8623,"8623 - Djelatnosti stomatološke prakse"]
[null,null,null,null,null,null,null,null,null,null,null,null,null,null,null,null,null,null,null,null,null,null,null,null,null,null,"Ostale djelatnosti humane medicine",8690,"8690 - Ostale djelatnosti humane medicine"]
[null,null,null,null,null,null,null,null,null,null,null,null,null,null,null,null,null,null,null,null,null,null,null,null,null,null,"Djelatnosti ustanova za njegu",8710,"8710 - Djelatnosti ustanova za njegu"]
[null,null,null,null,null,null,null,null,null,null,null,null,null,null,null,null,null,null,null,null,null,null,null,null,null,null,"Djelatnosti socijalne skrbi sa smještajem za osobe s poteškoćama u razvoju, duševno bolesne i zlostavljane osobe ",8720,"8720 - Djelatnosti socijalne skrbi sa smještajem za osobe s poteškoćama u razvoju, duševno bolesne i zlostavljane osobe "]
[null,null,null,null,null,null,null,null,null,null,null,null,null,null,null,null,null,null,null,null,null,null,null,null,null,null,"Djelatnosti socijalne skrbi sa smještajem za starije osobe i osobe s invaliditetom",8730,"8730 - Djelatnosti socijalne skrbi sa smještajem za starije osobe i osobe s invaliditetom"]
[null,null,null,null,null,null,null,null,null,null,null,null,null,null,null,null,null,null,null,null,null,null,null,null,null,null,"Ostale djelatnosti socijalne skrbi sa smještajem",8790,"8790 - Ostale djelatnosti socijalne skrbi sa smještajem"]
[null,null,null,null,null,null,null,null,null,null,null,null,null,null,null,null,null,null,null,null,null,null,null,null,null,null,"Djelatnosti socijalne skrbi bez smještaja za starije osobe i osobe s invaliditetom",8810,"8810 - Djelatnosti socijalne skrbi bez smještaja za starije osobe i osobe s invaliditetom"]
[null,null,null,null,null,null,null,null,null,null,null,null,null,null,null,null,null,null,null,null,null,null,null,null,null,null,"Djelatnosti dnevne skrbi o djeci",8891,"8891 - Djelatnosti dnevne skrbi o djeci"]
[null,null,null,null,null,null,null,null,null,null,null,null,null,null,null,null,null,null,null,null,null,null,null,null,null,null,"Ostale djelatnosti socijalne skrbi bez smještaja, d. n.",8899,"8899 - Ostale djelatnosti socijalne skrbi bez smještaja, d. n."]
[null,null,null,null,null,null,null,null,null,null,null,null,null,null,null,null,null,null,null,null,null,null,null,null,null,null,"Izvođačka umjetnost",9001,{"$f":"CONCATENATE(AB608, \" - \", AA608)","v":"9001 - Izvođačka umjetnost"}]
[null,null,null,null,null,null,null,null,null,null,null,null,null,null,null,null,null,null,null,null,null,null,null,null,null,null,"Pomoćne djelatnosti u izvođačkoj umjetnosti",9002,"9002 - Pomoćne djelatnosti u izvođačkoj umjetnosti"]
[null,null,null,null,null,null,null,null,null,null,null,null,null,null,null,null,null,null,null,null,null,null,null,null,null,null,"Umjetničko stvaralaštvo",9003,"9003 - Umjetničko stvaralaštvo"]
[null,null,null,null,null,null,null,null,null,null,null,null,null,null,null,null,null,null,null,null,null,null,null,null,null,null,"Rad umjetničkih objekata",9004,"9004 - Rad umjetničkih objekata"]
[null,null,null,null,null,null,null,null,null,null,null,null,null,null,null,null,null,null,null,null,null,null,null,null,null,null,"Djelatnosti knjižnica i arhiva",9101,"9101 - Djelatnosti knjižnica i arhiva"]
[null,null,null,null,null,null,null,null,null,null,null,null,null,null,null,null,null,null,null,null,null,null,null,null,null,null,"Djelatnosti muzeja",9102,"9102 - Djelatnosti muzeja"]
[null,null,null,null,null,null,null,null,null,null,null,null,null,null,null,null,null,null,null,null,null,null,null,null,null,null,"Rad povijesnih mjesta i građevina te sličnih zanimljivosti za posjetitelje",9103,"9103 - Rad povijesnih mjesta i građevina te sličnih zanimljivosti za posjetitelje"]
[null,null,null,null,null,null,null,null,null,null,null,null,null,null,null,null,null,null,null,null,null,null,null,null,null,null,"Djelatnosti botaničkih i zooloških vrtova i prirodnih rezervata",9104,"9104 - Djelatnosti botaničkih i zooloških vrtova i prirodnih rezervata"]
[null,null,null,null,null,null,null,null,null,null,null,null,null,null,null,null,null,null,null,null,null,null,null,null,null,null,"Djelatnosti kockanja i klađenja",9200,"9200 - Djelatnosti kockanja i klađenja"]
[null,null,null,null,null,null,null,null,null,null,null,null,null,null,null,null,null,null,null,null,null,null,null,null,null,null,"Rad sportskih objekata",9311,"9311 - Rad sportskih objekata"]
[null,null,null,null,null,null,null,null,null,null,null,null,null,null,null,null,null,null,null,null,null,null,null,null,null,null,"Djelatnosti sportskih klubova",9312,"9312 - Djelatnosti sportskih klubova"]
[null,null,null,null,null,null,null,null,null,null,null,null,null,null,null,null,null,null,null,null,null,null,null,null,null,null,"Fitnes centri",9313,"9313 - Fitnes centri"]
[null,null,null,null,null,null,null,null,null,null,null,null,null,null,null,null,null,null,null,null,null,null,null,null,null,null,"Ostale sportske djelatnosti",9319,"9319 - Ostale sportske djelatnosti"]
[null,null,null,null,null,null,null,null,null,null,null,null,null,null,null,null,null,null,null,null,null,null,null,null,null,null,"Djelatnosti zabavnih i tematskih parkova",9321,"9321 - Djelatnosti zabavnih i tematskih parkova"]
[null,null,null,null,null,null,null,null,null,null,null,null,null,null,null,null,null,null,null,null,null,null,null,null,null,null,"Ostale zabavne i rekreacijske djelatnosti",9329,"9329 - Ostale zabavne i rekreacijske djelatnosti"]
[null,null,null,null,null,null,null,null,null,null,null,null,null,null,null,null,null,null,null,null,null,null,null,null,null,null,"Djelatnosti poslovnih organizacija i organizacija poslodavaca",9411,"9411 - Djelatnosti poslovnih organizacija i organizacija poslodavaca"]
[null,null,null,null,null,null,null,null,null,null,null,null,null,null,null,null,null,null,null,null,null,null,null,null,null,null,"Djelatnosti strukovnih članskih organizacija",9412,"9412 - Djelatnosti strukovnih članskih organizacija"]
[null,null,null,null,null,null,null,null,null,null,null,null,null,null,null,null,null,null,null,null,null,null,null,null,null,null,"Djelatnosti sindikata",9420,"9420 - Djelatnosti sindikata"]
[null,null,null,null,null,null,null,null,null,null,null,null,null,null,null,null,null,null,null,null,null,null,null,null,null,null,"Djelatnosti vjerskih organizacija",9491,"9491 - Djelatnosti vjerskih organizacija"]
[null,null,null,null,null,null,null,null,null,null,null,null,null,null,null,null,null,null,null,null,null,null,null,null,null,null,"Djelatnosti političkih organizacija",9492,"9492 - Djelatnosti političkih organizacija"]
[null,null,null,null,null,null,null,null,null,null,null,null,null,null,null,null,null,null,null,null,null,null,null,null,null,null,"Djelatnosti ostalih članskih organizacija, d. n.",9499,"9499 - Djelatnosti ostalih članskih organizacija, d. n."]
[null,null,null,null,null,null,null,null,null,null,null,null,null,null,null,null,null,null,null,null,null,null,null,null,null,null,"Popravak računala i periferne opreme",9511,"9511 - Popravak računala i periferne opreme"]
[null,null,null,null,null,null,null,null,null,null,null,null,null,null,null,null,null,null,null,null,null,null,null,null,null,null,"Popravak komunikacijske opreme",9512,"9512 - Popravak komunikacijske opreme"]
[null,null,null,null,null,null,null,null,null,null,null,null,null,null,null,null,null,null,null,null,null,null,null,null,null,null,"Popravak elektroničkih uređaja za široku potrošnju",9521,"9521 - Popravak elektroničkih uređaja za široku potrošnju"]
[null,null,null,null,null,null,null,null,null,null,null,null,null,null,null,null,null,null,null,null,null,null,null,null,null,null,"Popravak aparata za kućanstvo te opreme za kuću i vrt",9522,"9522 - Popravak aparata za kućanstvo te opreme za kuću i vrt"]
[null,null,null,null,null,null,null,null,null,null,null,null,null,null,null,null,null,null,null,null,null,null,null,null,null,null,"Popravak obuće i proizvoda od kože",9523,"9523 - Popravak obuće i proizvoda od kože"]
[null,null,null,null,null,null,null,null,null,null,null,null,null,null,null,null,null,null,null,null,null,null,null,null,null,null,"Popravak namještaja i pokućstva",9524,"9524 - Popravak namještaja i pokućstva"]
[null,null,null,null,null,null,null,null,null,null,null,null,null,null,null,null,null,null,null,null,null,null,null,null,null,null,"Popravak satova i nakita",9525,"9525 - Popravak satova i nakita"]
[null,null,null,null,null,null,null,null,null,null,null,null,null,null,null,null,null,null,null,null,null,null,null,null,null,null,"Popravak ostalih predmeta za osobnu uporabu i kućanstvo ",9529,"9529 - Popravak ostalih predmeta za osobnu uporabu i kućanstvo "]
[null,null,null,null,null,null,null,null,null,null,null,null,null,null,null,null,null,null,null,null,null,null,null,null,null,null,"Pranje i kemijsko čišćenje tekstila i krznenih proizvoda",9601,"9601 - Pranje i kemijsko čišćenje tekstila i krznenih proizvoda"]
[null,null,null,null,null,null,null,null,null,null,null,null,null,null,null,null,null,null,null,null,null,null,null,null,null,null,"Frizerski saloni i saloni za uljepšavanje",9602,"9602 - Frizerski saloni i saloni za uljepšavanje"]
[null,null,null,null,null,null,null,null,null,null,null,null,null,null,null,null,null,null,null,null,null,null,null,null,null,null,"Pogrebne i srodne djelatnosti",9603,"9603 - Pogrebne i srodne djelatnosti"]
[null,null,null,null,null,null,null,null,null,null,null,null,null,null,null,null,null,null,null,null,null,null,null,null,null,null,"Djelatnosti za njegu i održavanje tijela",9604,"9604 - Djelatnosti za njegu i održavanje tijela"]
[null,null,null,null,null,null,null,null,null,null,null,null,null,null,null,null,null,null,null,null,null,null,null,null,null,null,"Ostale osobne uslužne djelatnosti, d. n.",9609,{"$f":"CONCATENATE(AB641, \" - \", AA641)","v":"9609 - Ostale osobne uslužne djelatnosti, d. n."}]
[null,null,null,null,null,null,null,null,null,null,null,null,null,null,null,null,null,null,null,null,null,null,null,null,null,null,"Djelatnosti kućanstava koja zapošljavaju poslugu",9700,{"$f":"CONCATENATE(AB642, \" - \", AA642)","v":"9700 - Djelatnosti kućanstava koja zapošljavaju poslugu"}]
[null,null,null,null,null,null,null,null,null,null,null,null,null,null,null,null,null,null,null,null,null,null,null,null,null,null,"Djelatnosti privatnih kućanstava koja proizvode različitu robu za vlastite potrebe",9810,{"$f":"CONCATENATE(AB643, \" - \", AA643)","v":"9810 - Djelatnosti privatnih kućanstava koja proizvode različitu robu za vlastite potrebe"}]
[null,null,null,null,null,null,null,null,null,null,null,null,null,null,null,null,null,null,null,null,null,null,null,null,null,null,"Djelatnosti privatnih kućanstava koja obavljaju različite usluge za vlastite potrebe",9820,{"$f":"CONCATENATE(AB644, \" - \", AA644)","v":"9820 - Djelatnosti privatnih kućanstava koja obavljaju različite usluge za vlastite potrebe"}]
[null,null,null,null,null,null,null,null,null,null,null,null,null,null,null,null,null,null,null,null,null,null,null,null,null,null,"Djelatnosti izvanteritorijalnih organizacija i tijela",9900,{"$f":"CONCATENATE(AB645, \" - \", AA645)","v":"9900 - Djelatnosti izvanteritorijalnih organizacija i tijela"}]

{"sheet":"šifrarnik zemalja i NKD","index":2,"n_rows":616,"n_cols":11,"rows_kept":616,"cut":false,"hidden":false,"merged":[]}
["DVOSLOVNA OZNAKA","DVOSLOVNA OZNAKA"," DRŽAVA ILI ZEMLJA (kratko ime na hrvatskom)",null,null,"DVOSLOVNA OZNAKA","ENGLESKI NAZIV FINANCIJSKE INSTITUCIJE",null,null,null,"NACE Rev.2 / NKD 2007"]
["AF","AF","AFGANISTAN",null,null,"5U","ADC (Andean Development Corporation)",null,null,null,"0111 - Uzgoj žitarica (osim riže), mahunarki i uljanog  sjemenja"]
["AL","AL","ALBANIJA",null,null,"5D","AfDB (African Development Bank)",null,null,null,"0112 - Uzgoj riže"]
["DZ","DZ","ALŽIR",null,null,"5Q","African Development Fund",null,null,null,"0113 - Uzgoj povrća, dinja i lubenica, korjenastog i gomoljastog povrća"]
["AS","AS","AMERIČKA SAMOA",null,null,"5M","AMF (Arab Monetary Fund)",null,null,null,"0114 - Uzgoj šećerne trske"]
["VI","VI","AMERIČKI DJEVIČANSKI OTOCI",null,null,"5E","AsDB (Asian Development Bank)",null,null,null,"0115 - Uzgoj duhana"]
["AD","AD","ANDORA",null,null,"5R","Asian Development Fund",null,null,null,"0116 - Uzgoj predivog bilja "]
["AO","AO","ANGOLA",null,null,"5N","BADEA (Banque arabe pour le développement économique en Afrique)",null,null,null,"0119 - Uzgoj ostalih jednogodišnjih usjeva "]
["AI","AI","ANGUILLA",null,null,"5O","Banque Centrale des États de l’Afrique de l’Ouest (BCEAO)",null,null,null,"0121 - Uzgoj grožđa "]
["AQ","AQ","ANTARKTIKA",null,null,"5W","Banque des États de l’Afrique centrale (BEAC)",null,null,null,"0122 - Uzgoj tropskog i suptropskog voća"]
["AG","AG","ANTIGVA I BARBUDA",null,null,"5B","BIS (Bank for International Settlements)",null,null,null,"0123 - Uzgoj agruma"]
["AR","AR","ARGENTINA",null,null,"5T","CABEI (Central American Bank for Economic Integration)",null,null,null,"0124 - Uzgoj  jezgričavog i koštuničavog  voća"]
["AM","AM","ARMENIJA",null,null,"5P","CASDB (Central African States’ Development Bank)",null,null,null,"0125 - Uzgoj bobičastog, orašastog i ostalog voća "]
["AW","AW","ARUBA",null,null,"5L","CDB (Caribbean Development Bank)",null,null,null,"0126 - Uzgoj uljanih plodova"]
["AU","AU","AUSTRALIJA",null,null,"6P","CERN (European Organisation for Nuclear Research)",null,null,null,"0127 - Uzgoj usjeva za pripremanje napitaka"]
["AT","AT","AUSTRIJA",null,null,"4Q","Committee of Regions",null,null,null,"0128 - Uzgoj bilja za uporabu u farmaciji, aromatskog, začinskog i ljekovitog bilja  "]
["AZ","AZ","AZERBAJDŽAN",null,null,"5X","Communauté Économique et Monétaire de l’Afrique Centrale (CEMAC) ",null,null,null,"0129 - Uzgoj  ostalih višegodišnjih usjeva "]
["BS","BS","BAHAMI",null,null,"6C","Council of Europe",null,null,null,"0130 - Uzgoj sadnog materijala i ukrasnog bilja"]
["BH","BH","BAHREIN",null,null,"4N","Court of Auditors",null,null,null,"0141 - Uzgoj muznih krava"]
["BD","BD","BANGLADEŠ",null,null,"4M","Court of Justice",null,null,null,"0142 - Uzgoj ostalih goveda i bivola"]
["BB","BB","BARBADOS",null,null,"5I","Eastern Caribbean Central Bank (ECCB)",null,null,null,"0143 - Uzgoj konja, magaraca, mula i mazgi"]
["BE","BE","BELGIJA",null,null,"5Y","Eastern Caribbean Currency Union (ECCU)",null,null,null,"0144 - Uzgoj deva i  ljama"]
["BZ","BZ","BELIZE",null,null,"5F","EBRD (European Bank for Reconstruction and Development)",null,null,null,"0145 - Uzgoj ovaca i koza"]
["BJ","BJ","BENIN",null,null,"6K","EBU/UER (European Broadcasting Union/Union européenne de radio-télévision)",null,null,null,"0146 - Uzgoj svinja"]
["BM","BM","BERMUDI",null,null,"4D","EC (European Commission)",null,null,null,"0147 - Uzgoj peradi"]
["CI","CI","BJELOKOSNA OBALA",null,null,"6N","ECMWF (European Centre for Medium-Range Weather Forecasts)",null,null,null,"0149 - Uzgoj ostalih životinja"]
["BY","BY","BJELORUSIJA",null,null,"4P","Economic and Social Committee",null,null,null,"0150 - Mješovita proizvodnja"]
["BW","BW","BOCVANA",null,null,"4H","ECSC (European Community of Steel and Coal)",null,null,null,"0161 - Pomoćne djelatnosti za uzgoj usjeva"]
["BO","BO","BOLIVIJA, PLURINACIONALNA DRŽAVA",null,null,"4E","EDF (European Development Fund)",null,null,null,"0162 - Pomoćne djelatnosti za uzgoj životinja"]
["BQ","BQ","BONAIRE, SVETI EUSTAZIJE I SABA",null,null,"4C","EIB (European Investment Bank)",null,null,null,"0163 - Djelatnosti koje se obavljaju nakon žetve usjeva (priprema usjeva za primarna tržišta)"]
["BA","BA","BOSNA I HERCEGOVINA",null,null,"4G","EIF (European Investment Fund)",null,null,null,"0164 - Dorada sjemena za sjemenski  materijal"]
["CX","CX","BOŽIĆNI OTOK",null,null,"6O","EMBL (European Molecular Biology Laboratory)",null,null,null,"0170 - Lov, stupičarenje i uslužne djelatnosti povezane s njima"]
["BR","BR","BRAZIL",null,null,"4B","EMS (European Monetary System)",null,null,null,"0210 - Uzgoj šuma i ostale djelatnosti u šumarstvu povezane s njime"]
["VG","VG","BRITANSKI DJEVIČANSKI OTOCI",null,null,"6F","EPO (European Patent Office)",null,null,null,"0220 - Sječa drva "]
["IO","IO","BRITANSKI INDIJSKOOCEANSKI TERITORIJ",null,null,"6E","ESA (European Space Agency)",null,null,null,"0230 - Skupljanje šumskih plodova i proizvoda, osim šumskih sortimenata"]
["BN","BN","BRUNEJ",null,null,"6M","ESO (European Southern Observatory)",null,null,null,"0240 - Pomoćne usluge u šumarstvu"]
["BG","BG","BUGARSKA",null,null,"6L","EUMETSAT (European Organisation for the Exploitation of Meteorological Satellites)",null,null,null,"0311 - Morski ribolov"]
["BF","BF","BURKINA FASO",null,null,"6G","EUROCONTROL (European Organisation for the Safety of Air Navigation)",null,null,null,"0312 - Slatkovodni ribolov"]
["BI","BI","BURUNDI",null,null,"4L","European Council",null,null,null,"0321 - Morska akvakultura"]
["BT","BT","BUTAN",null,null,"4K","European Parliament",null,null,null,"0322 - Slatkovodna akvakultura"]
["CY","CY","CIPAR",null,null,"6H","EUTELSAT (European Telecommunications Satellite Organisation)",null,null,null,"0510 - Vađenje kamenog ugljena"]
["ME","ME","CRNA GORA",null,null,"1J","FAO (Food and Agriculture Organisation)",null,null,null,"0520 - Vađenje lignita"]
["CW","CW","CURACAO",null,null,"5S","Fonds spécial unifié de développement",null,null,null,"0610 - Vađenje sirove nafte "]
["TD","TD","ČAD",null,null,"5C","IADB (Inter-American Development Bank)",null,null,null,"0620 - Vađenje prirodnog plina"]
["CZ","CZ","ČEŠKA",null,null,"1R","IAEA (International Atomic Energy Agency)",null,null,null,"0710 - Vađenje željeznih ruda"]
["CL","CL","ČILE",null,null,"5J","IBEC (International Bank for Economic Co-operation)",null,null,null,"0721 - Vađenje uranovih i torijevih ruda"]
["DK","DK","DANSKA",null,null,"1E","IBRD (International Bank for Reconstruction and Development)",null,null,null,"0729 - Vađenje ostalih ruda obojenih metala"]
["DM","DM","DOMINIKA",null,null,"6D","ICRC (International Committee of the Red Cross)",null,null,null,"0811 - Vađenje ukrasnoga kamena i kamena za gradnju, vapnenca, gipsa, krede i škriljevca "]
["DO","DO","DOMINIKANSKA REPUBLIKA",null,null,"1F","IDA (International Development Association)",null,null,null,"0812 - Djelatnosti šljunčara i pješčara; vađenje gline i kaolina"]
["DJ","DJ","DŽIBUTI",null,null,"1L","IFAD (International Fund for Agricultural Development)",null,null,null,"0891 - Vađenje minerala za kemikalije i gnojiva"]
["EG","EG","EGIPAT",null,null,"1M","IFC (International Finance Corporation)",null,null,null,"0892 - Vađenje treseta"]
["EC","EC","EKVADOR",null,null,"5K","IIB (International Investment Bank)",null,null,null,"0893 - Vađenje soli"]
["GQ","GQ","EKVATORSKA GVINEJA",null,null,"5G","IIC (Inter-American Investment Corporation)",null,null,null,"0899 - Vađenje ostalih ruda i kamena, d. n."]
["ER","ER","ERITREJA",null,null,"1S","ILO (International Labour Organisation)",null,null,null,"0910 - Pomoćne djelatnosti za vađenje nafte i prirodnog plina"]
["EE","EE","ESTONIJA",null,null,"1C","IMF (International Monetary Fund)",null,null,null,"0990 - Pomoćne djelatnosti za ostalo rudarstvo i vađenje"]
["ET","ET","ETIOPIJA",null,null,"6J","INTELSAT (International Telecommunications Satellite Organisation)",null,null,null,"1011 - Prerada i konzerviranje mesa"]
["FK","FK","FALKLANDI (MALVINI)",null,null,"7Z","International Organisations excluding European Union Institutions ",null,null,null,"1012 - Prerada i konzerviranje mesa peradi"]
["FO","FO","FEROJSKI OTOCI (OVČJI)",null,null,"6Q","IOM (International Organisation for Migration)",null,null,null,"1013 - Proizvodnja proizvoda od mesa i mesa peradi"]
["FJ","FJ","FIDŽI",null,null,"6R","Islamic Development Bank (IDB)",null,null,null,"1020 - Prerada i konzerviranje riba, rakova i školjki "]
["PH","PH","FILIPINI",null,null,"1T","ITU (International Telecommunication Union)",null,null,null,"1031 - Prerada i konzerviranje krumpira"]
["FI","FI","FINSKA",null,null,"1N","MIGA (Multilateral Investment Guarantee Agency)",null,null,null,"1032 - Proizvodnja sokova od voća i povrća"]
["FR","FR","FRANCUSKA",null,null,"6B","NATO (North Atlantic Treaty Organisation)",null,null,null,"1039 - Ostala prerada i konzerviranje voća i povrća"]
["GF","GF","FRANCUSKA GVAJANA",null,null,"5H","NIB (Nordic Investment Bank)",null,null,null,"1041 - Proizvodnja ulja i masti"]
["PF","PF","FRANCUSKA POLINEZIJA",null,null,"5A","OECD (Organisation for Economic Co-operation and Development)",null,null,null,"1042 - Proizvodnja margarina i sličnih jestivih masnoća"]
["TF","TF","FRANCUSKI JUŽNI TERITORIJ",null,null,"4J","Other EU Institutions, Organs and Organisms covered by the General budget",null,null,null,"1051 - Djelatnosti mljekara i proizvođača sira"]
["GA","GA","GABON",null,null,"5Z","Other International Financial Organisations n.i.e.",null,null,null,"1052 - Proizvodnja sladoleda"]
["GM","GM","GAMBIJA",null,null,"6Z","Other International Non-Financial Organisations n.i.e.",null,null,null,"1061 - Proizvodnja mlinarskih proizvoda"]
["GH","GH","GANA",null,null,"1Z","Other UN Organisations n.i.e.",null,null,null,"1062 - Proizvodnja škroba i škrobnih proizvoda"]
["GI","GI","GIBRALTAR",null,null,"1H","UNESCO (United Nations Educational, Scientific and Cultural Organisation)",null,null,null,"1071 - Proizvodnja kruha, svježeg peciva i kolača"]
["GR","GR","GRČKA",null,null,"1P","UNHCR (United Nations High Commissioner for Refugees)",null,null,null,"1072 - Proizvodnja dvopeka i keksa, trajnog peciva i kolača"]
["GD","GD","GRENADA",null,null,"1O","UNICEF (United Nations Children’s Fund)",null,null,null,"1073 - Proizvodnja makarona, njoka, kuskusa i slične tjestenine"]
["GL","GL","GRENLAND",null,null,"1B","United Nations organisations",null,null,null,"1081 - Proizvodnja šećera"]
["GE","GE","GRUZIJA",null,null,"1Q","UNRWA (United Nations Relief and Works Agency for Palestine)",null,null,null,"1082 - Proizvodnja kakaa, čokolade i šećernih proizvoda"]
["GP","GP","GUADELOUPE",null,null,"6I","West African Economic and Monetary Union (WAEMU)",null,null,null,"1083 - Proizvodnja čaja i kave"]
["GU","GU","GUAM",null,null,"1K","WHO (World Health Organisation)",null,null,null,"1084 - Proizvodnja začina i drugih dodataka jelima"]
["GG","GG","GUERNSEY",null,null,"1D","WTO (World Trade Organisation)",null,null,null,"1085 - Proizvodnja pripremljenih jela i obroka"]
["GY","GY","GVAJANA",null,null,null,null,null,null,null,"1086 - Proizvodnja homogeniziranih prehrambenih pripravaka i dijetetske hrane"]
["GT","GT","GVATEMALA",null,null,null,null,null,null,null,"1089 - Proizvodnja ostalih prehrambenih proizvoda, d. n. "]
["GN","GN","GVINEJA",null,null,null,null,null,null,null,"1091 - Proizvodnja pripremljene stočne hrane"]
["GW","GW","GVINEJA BISAU",null,null,null,null,null,null,null,"1092 - Proizvodnja pripremljene hrane za kućne ljubimce"]
["HT","HT","HAITI",null,null,null,null,null,null,null,"1101 - Destiliranje, pročišćavanje i miješanje alkoholnih pića"]
["HN","HN","HONDURAS",null,null,null,null,null,null,null,"1102 - Proizvodnja vina od grožđa"]
["HK","HK","HONG KONG",null,null,null,null,null,null,null,"1103 - Proizvodnja jabukovače i ostalih voćnih vina"]
["HR","IN","INDIJA",null,null,null,null,null,null,null,"1104 - Proizvodnja ostalih nedestiliranih fermentiranih pića"]
["IN","ID","INDONEZIJA",null,null,null,null,null,null,null,"1105 - Proizvodnja piva"]
["ID","IQ","IRAK",null,null,null,null,null,null,null,"1106 - Proizvodnja slada"]
["IQ","IR","IRAN, ISLAMSKA REPUBLIKA",null,null,null,null,null,null,null,"1107 - Proizvodnja osvježavajućih napitaka, mineralne vode i ostale flaširane vode"]
["IR","IE","IRSKA",null,null,null,null,null,null,null,"1200 - Proizvodnja duhanskih proizvoda"]
["IE","IS","ISLAND",null,null,null,null,null,null,null,"1310 - Priprema i predenje tekstilnih vlakana"]
["IS","IT","ITALIJA",null,null,null,null,null,null,null,"1320 - Tkanje tekstila"]
["IT","IL","IZRAEL",null,null,null,null,null,null,null,"1330 - Dovršavanje tekstila"]
["IL","JM","JAMAJKA",null,null,null,null,null,null,null,"1391 - Proizvodnja pletenih i kukičanih tkanina"]
["JM","JP","JAPAN",null,null,null,null,null,null,null,"1392 - Proizvodnja gotovih tekstilnih proizvoda, osim odjeće"]
["JP","YE","JEMEN",null,null,null,null,null,null,null,"1393 - Proizvodnja tepiha i sagova "]
["YE","JE","JERSEY",null,null,null,null,null,null,null,"1394 - Proizvodnja užadi, konopaca, upletenoga konca i mreža"]
["JE","JO","JORDAN",null,null,null,null,null,null,null,"1395 - Proizvodnja netkanog tekstila i proizvoda od netkanog tekstila, osim odjeće"]
["JO","GS","JUŽNA DŽORDŽIJA I OTOCI JUŽNI SENDVIČ",null,null,null,null,null,null,null,"1396 - Proizvodnja ostaloga tehničkog i industrijskog tekstila"]
["GS","SS","JUŽNI SUDAN",null,null,null,null,null,null,null,"1399 - Proizvodnja ostalog tekstila, d. n."]
["SS","ZA","JUŽNOAFRIČKA REPUBLIKA",null,null,null,null,null,null,null,"1411 - Proizvodnja kožne odjeće"]
["ZA","KY","KAJMANSKI OTOCI",null,null,null,null,null,null,null,"1412 - Proizvodnja radne odjeće "]
["KY","KH","KAMBODŽA",null,null,null,null,null,null,null,"1413 - Proizvodnja ostale vanjske odjeće"]
["KH","CM","KAMERUN",null,null,null,null,null,null,null,"1414 - Proizvodnja rublja"]
["CM","CA","KANADA",null,null,null,null,null,null,null,"1419 - Proizvodnja ostale odjeće i pribora za odjeću "]
["CA","QA","KATAR",null,null,null,null,null,null,null,"1420 - Proizvodnja proizvoda od krzna"]
["QA","KZ","KAZAHSTAN",null,null,null,null,null,null,null,"1431 - Proizvodnja pletenih i kukičanih čarapa"]
["KZ","KE","KENIJA",null,null,null,null,null,null,null,"1439 - Proizvodnja ostale pletene i kukičane odjeće"]
["KE","CN","KINA",null,null,null,null,null,null,null,"1511 - Štavljenje i obrada kože; dorada i bojenje krzna"]
["CN","KG","KIRGISTAN",null,null,null,null,null,null,null,"1512 - Proizvodnja putnih i ručnih torba i slično, sedlarskih i remenarskih proizvoda"]
["KI","KI","KIRIBATI",null,null,null,null,null,null,null,"1520 - Proizvodnja obuće"]
["CC","CC","KOKOSOVI OTOCI (KEELING)",null,null,null,null,null,null,null,"1610 - Piljenje i blanjanje drva"]
["CO","CO","KOLUMBIJA",null,null,null,null,null,null,null,"1621 - Proizvodnja furnira i ostalih ploča od drva"]
["KM","KM","KOMORI",null,null,null,null,null,null,null,"1622 - Proizvodnja sastavljenog parketa"]
["CG","CG","KONGO",null,null,null,null,null,null,null,"1623 - Proizvodnja ostale građevne stolarije i elemenata"]
["CD","CD","KONGO, DEMOKRATSKA REPUBLIKA",null,null,null,null,null,null,null,"1624 - Proizvodnja ambalaže od drva"]
["KP","KP","KOREJA, DNR",null,null,null,null,null,null,null,"1629 - Proizvodnja ostalih proizvoda od drva, proizvoda od pluta, slame i pletarskih materijala"]
["KR","KR","KOREJA, REPUBLIKA",null,null,null,null,null,null,null,"1711 - Proizvodnja celuloze"]
["XK","XK","KOSOVO",null,null,null,null,null,null,null,"1712 - Proizvodnja papira i kartona"]
["CR","CR","KOSTARIKA",null,null,null,null,null,null,null,"1721 - Proizvodnja valovitog papira i kartona te ambalaže od papira i kartona"]
["CU","CU","KUBA",null,null,null,null,null,null,null,"1722 - Proizvodnja robe za kućanstvo i higijenu te toaletnih potrepština od papira"]
["CK","CK","KUKOVI OTOCI",null,null,null,null,null,null,null,"1723 - Proizvodnja uredskog materijala od papira"]
["KW","KW","KUVAJT",null,null,null,null,null,null,null,"1724 - Proizvodnja zidnih tapeta"]
["LA","LA","LAOS, NDR",null,null,null,null,null,null,null,"1729 - Proizvodnja ostalih proizvoda od papira i kartona"]
["LS","LS","LESOTO",null,null,null,null,null,null,null,"1811 - Tiskanje novina"]
["LV","LV","LETONIJA",null,null,null,null,null,null,null,"1812 - Ostalo tiskanje "]
["LB","LB","LIBANON",null,null,null,null,null,null,null,"1813 - Usluge pripreme za tisak i objavljivanje"]
["LR","LR","LIBERIJA",null,null,null,null,null,null,null,"1814 - Knjigoveške i srodne usluge "]
["LY","LY","LIBIJA",null,null,null,null,null,null,null,"1820 - Umnožavanje snimljenih zapisa"]
["LI","LI","LIHTENŠTAJN",null,null,null,null,null,null,null,"1910 - Proizvodnja proizvoda koksnih peći"]
["LT","LT","LITVA",null,null,null,null,null,null,null,"1920 - Proizvodnja rafiniranih naftnih proizvoda"]
["LU","LU","LUKSEMBURG",null,null,null,null,null,null,null,"2011 - Proizvodnja industrijskih plinova"]
["MG","MG","MADAGASKAR",null,null,null,null,null,null,null,"2012 - Proizvodnja koloranata i pigmenata"]
["HU","HU","MADŽARSKA",null,null,null,null,null,null,null,"2013 - Proizvodnja ostalih anorganskih osnovnih kemikalija"]
["MO","MO","MAKAO",null,null,null,null,null,null,null,"2014 - Proizvodnja ostalih organskih osnovnih kemikalija"]
[" MK","MK","MAKEDONIJA",null,null,null,null,null,null,null,"2015 - Proizvodnja gnojiva i dušičnih spojeva"]
["MW","MW","MALAVI",null,null,null,null,null,null,null,"2016 - Proizvodnja plastike u primarnim oblicima"]
["MV","MV","MALDIVI",null,null,null,null,null,null,null,"2017 - Proizvodnja sintetičkoga kaučuka u primarnim oblicima"]
["MY","MY","MALEZIJA",null,null,null,null,null,null,null,"2020 - Proizvodnja pesticida i drugih agrokemijskih proizvoda"]
["ML","ML","MALI",null,null,null,null,null,null,null,"2030 - Proizvodnja boja, lakova i sličnih premaza, grafičkih boja i kitova"]
["MT","MT","MALTA",null,null,null,null,null,null,null,"2041 - Proizvodnja sapuna i deterdženata, sredstava za čišćenje i poliranje"]
["MA","MA","MAROKO",null,null,null,null,null,null,null,"2042 - Proizvodnja parfema i toaletno-kozmetičkih preparata"]
["MH","MH","MARŠALOVI OTOCI",null,null,null,null,null,null,null,"2051 - Proizvodnja eksploziva"]
["MQ","MQ","MARTINIQUE",null,null,null,null,null,null,null,"2052 - Proizvodnja ljepila "]
["MU","MU","MAURICIJUS",null,null,null,null,null,null,null,"2053 - Proizvodnja eteričnih ulja"]
["MR","MR","MAURITANIJA",null,null,null,null,null,null,null,"2059 - Proizvodnja ostalih kemijskih proizvoda, d. n. "]
["YT","YT","MAYOTTE",null,null,null,null,null,null,null,"2060 - Proizvodnja umjetnih vlakana"]
["MX","MX","MEKSIKO",null,null,null,null,null,null,null,"2110 - Proizvodnja osnovnih farmaceutskih proizvoda"]
["MM","MM","MIJANMAR",null,null,null,null,null,null,null,"2120 - Proizvodnja farmaceutskih pripravaka"]
["FM","FM","MIKRONEZIJA, SAVEZNE DRŽAVE",null,null,null,null,null,null,null,"2211 - Proizvodnja vanjskih i unutrašnjih guma za vozila; protektiranje vanjskih guma"]
["MD","MD","MOLDAVIJA, REPUBLIKA",null,null,null,null,null,null,null,"2219 - Proizvodnja ostalih proizvoda od gume"]
["MC","MC","MONAKO",null,null,null,null,null,null,null,"2221 - Proizvodnja ploča, listova, cijevi i profila od plastike"]
["MN","MN","MONGOLIJA",null,null,null,null,null,null,null,"2222 - Proizvodnja ambalaže od plastike"]
["MS","MS","MONTSERRAT",null,null,null,null,null,null,null,"2223 - Proizvodnja proizvoda od plastike za građevinarstvo"]
["MZ","MZ","MOZAMBIK",null,null,null,null,null,null,null,"2229 - Proizvodnja ostalih proizvoda od plastike"]
["NA","NA","NAMIBIJA",null,null,null,null,null,null,null,"2311 - Proizvodnja ravnog stakla"]
["NR","NR","NAURU",null,null,null,null,null,null,null,"2312 - Oblikovanje i obrada ravnog stakla"]
["NP","NP","NEPAL",null,null,null,null,null,null,null,"2313 - Proizvodnja šupljeg stakla"]
["NE","NE","NIGER",null,null,null,null,null,null,null,"2314 - Proizvodnja staklenih vlakana"]
["NG","NG","NIGERIJA",null,null,null,null,null,null,null,"2319 - Proizvodnja i obrada ostalog stakla uključujući tehničku robu od stakla"]
["NI","NI","NIKARAGVA",null,null,null,null,null,null,null,"2320 - Proizvodnja vatrostalnih proizvoda"]
["NU","NU","NIUE",null,null,null,null,null,null,null,"2331 - Proizvodnja keramičkih pločica i ploča"]
["NL","NL","NIZOZEMSKA",null,null,null,null,null,null,null,"2332 - Proizvodnja opeke, crijepa i ostalih proizvoda od pečene gline za građevinarstvo"]
["AN","AN","NIZOZEMSKI ANTILI",null,null,null,null,null,null,null,"2341 - Proizvodnja keramičkih proizvoda za kućanstvo i ukrasnih predmeta"]
["NO","NO","NORVEŠKA",null,null,null,null,null,null,null,"2342 - Proizvodnja sanitarne keramike "]
["NC","NC","NOVA KALEDONIJA",null,null,null,null,null,null,null,"2343 - Proizvodnja keramičkih izolatora i izolacijskog pribora"]
["NZ","NZ","NOVI ZELAND",null,null,null,null,null,null,null,"2344 - Proizvodnja ostalih tehničkih proizvoda od keramike"]
["DE","DE","NJEMAČKA",null,null,null,null,null,null,null,"2349 - Proizvodnja ostalih proizvoda od keramike"]
["OM","OM","OMAN",null,null,null,null,null,null,null,"2351 - Proizvodnja cementa"]
["AX","AX","OTOCI ALAND",null,null,null,null,null,null,null,"2352 - Proizvodnja vapna i gipsa "]
["TC","TC","OTOCI TURKS I CAICOS",null,null,null,null,null,null,null,"2361 - Proizvodnja proizvoda od betona za građevinarstvo"]
["BV","BV","OTOK BOUVET",null,null,null,null,null,null,null,"2362 - Proizvodnja proizvoda od gipsa za građevinarstvo"]
["HM","HM","OTOK HEARD I OTOCI MCDONALD",null,null,null,null,null,null,null,"2363 - Proizvodnja gotove betonske smjese"]
["IM","IM","OTOK MAN",null,null,null,null,null,null,null,"2364 - Proizvodnja žbuke"]
["NF","NF","OTOK NORFOLK",null,null,null,null,null,null,null,"2365 - Proizvodnja fibro-cementa"]
["PK","PK","PAKISTAN",null,null,null,null,null,null,null,"2369 - Proizvodnja ostalih proizvoda od betona, cementa i gipsa "]
["PW","PW","PALAU",null,null,null,null,null,null,null,"2370 - Rezanje, oblikovanje i obrada kamena"]
["PS","PS","PALESTINA, DRŽAVA",null,null,null,null,null,null,null,"2391 - Proizvodnja brusnih proizvoda"]
["PA","PA","PANAMA",null,null,null,null,null,null,null,"2399 - Proizvodnja ostalih nemetalnih mineralnih proizvoda, d. n."]
["PG","PG","PAPUA NOVA GVINEJA",null,null,null,null,null,null,null,"2410 - Proizvodnja sirovog željeza, čelika i ferolegura"]
["PY","PY","PARAGVAJ",null,null,null,null,null,null,null,"2420 - Proizvodnja čeličnih cijevi i pribora"]
["PE","PE","PERU",null,null,null,null,null,null,null,"2431 - Hladno vučenje šipki"]
["PN","PN","PITCAIRN",null,null,null,null,null,null,null,"2432 - Hladno valjanje uskih vrpci"]
["PL","PL","POLJSKA",null,null,null,null,null,null,null,"2433 - Hladno oblikovanje i profiliranje "]
["PR","PR","PORTORIKO",null,null,null,null,null,null,null,"2434 - Hladno vučenje žice"]
["PT","PT","PORTUGAL",null,null,null,null,null,null,null,"2441 - Proizvodnja plemenitih metala"]
["RE","RE","REUNION",null,null,null,null,null,null,null,"2442 - Proizvodnja aluminija"]
["RW","RW","RUANDA",null,null,null,null,null,null,null,"2443 - Proizvodnja olova, cinka i kositra"]
["RO","RO","RUMUNJSKA",null,null,null,null,null,null,null,"2444 - Proizvodnja bakra"]
["RU","RU","RUSIJA",null,null,null,null,null,null,null,"2445 - Proizvodnja ostalih obojenih metala"]
["US","US","SAD",null,null,null,null,null,null,null,"2446 - Obrada nuklearnoga goriva"]
["SV","SV","SALVADOR",null,null,null,null,null,null,null,"2451 - Lijevanje željeza"]
["WS","WS","SAMOA",null,null,null,null,null,null,null,"2452 - Lijevanje čelika"]
["SM","SM","SAN MARINO",null,null,null,null,null,null,null,"2453 - Lijevanje lakih metala"]
["SA","SA","SAUDIJSKA ARABIJA",null,null,null,null,null,null,null,"2454 - Lijevanje ostalih obojenih metala"]
["SC","SC","SEJŠELI",null,null,null,null,null,null,null,"2511 - Proizvodnja metalnih konstrukcija i njihovih dijelova"]
["SN","SN","SENEGAL",null,null,null,null,null,null,null,"2512 - Proizvodnja vrata i prozora od metala"]
["SL","SL","SIJERA LEONE",null,null,null,null,null,null,null,"2521 - Proizvodnja radijatora i kotlova za centralno grijanje"]
["SG","SG","SINGAPUR",null,null,null,null,null,null,null,"2529 - Proizvodnja ostalih metalnih cisterni, rezervoara i sličnih posuda "]
["SY","SY","SIRIJA",null,null,null,null,null,null,null,"2530 - Proizvodnja parnih kotlova, osim kotlova za centralno grijanje toplom vodom"]
["MP","MP","SJEVERNI MARIJANSKI OTOCI",null,null,null,null,null,null,null,"2540 - Proizvodnja oružja i streljiva"]
["SK","SK","SLOVAČKA",null,null,null,null,null,null,null,"2550 - Kovanje, prešanje, štancanje i valjanje metala; metalurgija praha"]
["SI","SI","SLOVENIJA",null,null,null,null,null,null,null,"2561 - Obrada i prevlačenje metala"]
["SB","SB","SOLOMONSKI OTOCI",null,null,null,null,null,null,null,"2562 - Strojna obrada metala"]
["SO","SO","SOMALIJA",null,null,null,null,null,null,null,"2571 - Proizvodnja sječiva"]
["RS","RS","SRBIJA",null,null,null,null,null,null,null,"2572 - Proizvodnja brava i okova"]
["CF","CF","SREDNJOAFRIČKA REPUBLIKA",null,null,null,null,null,null,null,"2573 - Proizvodnja alata"]
["SD","SD","SUDAN",null,null,null,null,null,null,null,"2591 - Proizvodnja čeličnih bačava i sličnih posuda "]
["SR","SR","SURINAM",null,null,null,null,null,null,null,"2592 - Proizvodnja ambalaže od lakih metala"]
["SJ","SJ","SVALBARD I JAN MAYEN",null,null,null,null,null,null,null,"2593 - Proizvodnja proizvoda od žice, lanaca i opruga"]
["SZ","SZ","SVAZI",null,null,null,null,null,null,null,"2594 - Proizvodnja zakovica i vijčane robe"]
["SH","SH","SVETA HELENA,ASCENSION I TRISTAN DA CUNH",null,null,null,null,null,null,null,"2599 - Proizvodnja ostalih gotovih proizvoda od metala, d. n."]
["LC","LC","SVETA LUCIJA",null,null,null,null,null,null,null,"2611 - Proizvodnja elektroničkih komponenata "]
["VA","VA","SVETA STOLICA, DRŽAVA VATIKANSKOG GRADA",null,null,null,null,null,null,null,"2612 - Proizvodnja punih elektroničkih ploča"]
["BL","BL","SVETI BARTOLOMEJ",null,null,null,null,null,null,null,"2620 - Proizvodnja računala i periferne opreme"]
["KN","KN","SVETI KRISTOFOR I NEVIS",null,null,null,null,null,null,null,"2630 - Proizvodnja komunikacijske opreme"]
["MF","MF","SVETI MARTIN (FRANCUSKI DIO)",null,null,null,null,null,null,null,"2640 - Proizvodnja elektroničkih uređaja za široku potrošnju"]
["SX","SX","SVETI MARTIN (NIZOZEMSKI DIO)",null,null,null,null,null,null,null,"2651 - Proizvodnja instrumenata i aparata za mjerenje,  ispitivanje i navigaciju"]
["PM","PM","SVETI PETAR I MIKELON",null,null,null,null,null,null,null,"2652 - Proizvodnja satova "]
["ST","ST","SVETI TOMA I PRINSIPE",null,null,null,null,null,null,null,"2660 - Proizvodnja opreme za zračenje, elektromedicinske i elektroterapeutske opreme"]
["VC","VC","SVETI VINCENT I GRENADINI",null,null,null,null,null,null,null,"2670 - Proizvodnja optičkih instrumenata i fotografske opreme"]
["ES","ES","ŠPANJOLSKA",null,null,null,null,null,null,null,"2680 - Proizvodnja magnetskih i optičkih medija"]
["LK","LK","ŠRI LANKA",null,null,null,null,null,null,null,"2711 - Proizvodnja elektromotora, generatora i transformatora"]
["SE","SE","ŠVEDSKA",null,null,null,null,null,null,null,"2712 - Proizvodnja uređaja za distribuciju i kontrolu električne energije"]
["CH","CH","ŠVICARSKA",null,null,null,null,null,null,null,"2720 - Proizvodnja baterija i akumulatora"]
["TJ","TJ","TADŽIKISTAN",null,null,null,null,null,null,null,"2731 - Proizvodnja kablova od optičkih vlakana"]
["TH","TH","TAJLAND",null,null,null,null,null,null,null,"2732 - Proizvodnja ostalih elektroničkih i električnih žica i kablova"]
["TW","TW","TAJVAN, KINESKA PROVINCIJA",null,null,null,null,null,null,null,"2733 - Proizvodnja elektroinstalacijskog materijala"]
["TZ","TZ","TANZANIJA, UJEDINJENA REPUBLIKA",null,null,null,null,null,null,null,"2740 - Proizvodnja električne opreme za rasvjetu"]
["TL","TL","TIMOR LESTE",null,null,null,null,null,null,null,"2751 - Proizvodnja električnih aparata za kućanstvo"]
["TG","TG","TOGO",null,null,null,null,null,null,null,"2752 - Proizvodnja neelektričnih aparata za kućanstvo"]
["TK","TK","TOKELAU",null,null,null,null,null,null,null,"2790 - Proizvodnja ostale električne opreme"]
["TO","TO","TONGA",null,null,null,null,null,null,null,"2811 - Proizvodnja motora i turbina, osim motora za zrakoplove i motorna vozila"]
["TT","TT","TRINIDAD I TOBAGO",null,null,null,null,null,null,null,"2812 - Proizvodnja hidrauličnih pogonskih uređaja"]
["TN","TN","TUNIS",null,null,null,null,null,null,null,"2813 - Proizvodnja ostalih crpki i kompresora"]
["TM","TM","TURKMENISTAN",null,null,null,null,null,null,null,"2814 - Proizvodnja ostalih slavina i ventila"]
["TR","TR","TURSKA",null,null,null,null,null,null,null,"2815 - Proizvodnja ležajeva, prijenosnika te prijenosnih i pogonskih elemenata"]
["TV","TV","TUVALU",null,null,null,null,null,null,null,"2821 - Proizvodnja peći i plamenika"]
["UG","UG","UGANDA",null,null,null,null,null,null,null,"2822 - Proizvodnja uređaja za dizanje i prenošenje"]
["UM","UM","UJEDINJENE DRŽ. MANJIH PACIFIČKIH OTOKA",null,null,null,null,null,null,null,"2823 - Proizvodnja uredskih strojeva i opreme (osim proizvodnje računala i periferne opreme)"]
["AE","AE","UJEDINJENI ARAPSKI EMIRATI",null,null,null,null,null,null,null,"2824 - Proizvodnja mehaniziranoga ručnog alata"]
["UA","UA","UKRAJINA",null,null,null,null,null,null,null,"2825 - Proizvodnja rashladne i ventilacijske opreme, osim za kućanstvo"]
["UY","UY","URUGVAJ",null,null,null,null,null,null,null,"2829 - Proizvodnja ostalih strojeva za opće namjene, d. n."]
["UZ","UZ","UZBEKISTAN",null,null,null,null,null,null,null,"2830 - Proizvodnja strojeva za poljoprivredu i šumarstvo"]
["VU","VU","VANUATU",null,null,null,null,null,null,null,"2841 - Proizvodnja strojeva za obradu metala"]
["GB","GB","VELIKA BRITANIJA",null,null,null,null,null,null,null,"2849 - Proizvodnja ostalih alatnih strojeva"]
["VE","VE","VENEZUELA, BOLIVARIJANSKA REPUBLIKA",null,null,null,null,null,null,null,"2891 - Proizvodnja strojeva za metalurgiju"]
["VN","VN","VIJETNAM",null,null,null,null,null,null,null,"2892 - Proizvodnja strojeva za rudnike, kamenolome i građevinarstvo"]
["WF","WF","WALLIS I FUTUNA",null,null,null,null,null,null,null,"2893 - Proizvodnja strojeva za industriju hrane, pića i duhana"]
["ZM","ZM","ZAMBIJA",null,null,null,null,null,null,null,"2894 - Proizvodnja strojeva za industriju tekstila, odjeće i kože"]
["EH","EH","ZAPADNA SAHARA",null,null,null,null,null,null,null,"2895 - Proizvodnja strojeva za industriju papira i kartona"]
["CV","CV","ZELENORTSKA REPUBLIKA",null,null,null,null,null,null,null,"2896 - Proizvodnja strojeva za plastiku i gumu"]
["ZW","ZW","ZIMBABVE",null,null,null,null,null,null,null,"2899 - Proizvodnja ostalih strojeva za posebne namjene, d. n."]
[null,null,null,null,null,null,null,null,null,null,"2910 - Proizvodnja motornih vozila"]
[null,null,null,null,null,null,null,null,null,null,"2920 - Proizvodnja karoserija za motorna vozila, prikolica i poluprikolica"]
[null,null,null,null,null,null,null,null,null,null,"2931 - Proizvodnja električne i elektroničke opreme za motorna vozila "]
[null,null,null,null,null,null,null,null,null,null,"2932 - Proizvodnja ostalih dijelova i pribora za motorna vozila "]
[null,null,null,null,null,null,null,null,null,null,"3011 - Gradnja brodova i plutajućih objekata"]
[null,null,null,null,null,null,null,null,null,null,"3012 - Gradnja čamaca za razonodu i sportskih čamaca"]
[null,null,null,null,null,null,null,null,null,null,"3020 - Proizvodnja željezničkih lokomotiva i tračničkih vozila"]
[null,null,null,null,null,null,null,null,null,null,"3030 - Proizvodnja zrakoplova i svemirskih letjelica te srodnih prijevoznih sredstava i opreme"]
[null,null,null,null,null,null,null,null,null,null,"3040 - Proizvodnja vojnih borbenih vozila"]
[null,null,null,null,null,null,null,null,null,null,"3091 - Proizvodnja motocikala"]
[null,null,null,null,null,null,null,null,null,null,"3092 - Proizvodnja bicikala i invalidskih kolica"]
[null,null,null,null,null,null,null,null,null,null,"3099 - Proizvodnja ostalih prijevoznih sredstava, d. n. "]
[null,null,null,null,null,null,null,null,null,null,"3101 - Proizvodnja namještaja za poslovne i prodajne prostore"]
[null,null,null,null,null,null,null,null,null,null,"3102 - Proizvodnja kuhinjskog namještaja"]
[null,null,null,null,null,null,null,null,null,null,"3103 - Proizvodnja madraca"]
[null,null,null,null,null,null,null,null,null,null,"3109 - Proizvodnja ostalog namještaja"]
[null,null,null,null,null,null,null,null,null,null,"3211 - Proizvodnja novca"]
[null,null,null,null,null,null,null,null,null,null,"3212 - Proizvodnja nakita i srodnih proizvoda"]
[null,null,null,null,null,null,null,null,null,null,"3213 - Proizvodnja imitacije nakita (bižuterije) i srodnih proizvoda"]
[null,null,null,null,null,null,null,null,null,null,"3220 - Proizvodnja glazbenih instrumenata"]
[null,null,null,null,null,null,null,null,null,null,"3230 - Proizvodnja sportske opreme"]
[null,null,null,null,null,null,null,null,null,null,"3240 - Proizvodnja igara i igračaka"]
[null,null,null,null,null,null,null,null,null,null,"3250 - Proizvodnja medicinskih i stomatoloških instrumenata i pribora"]
[null,null,null,null,null,null,null,null,null,null,"3291 - Proizvodnja metla i četaka"]
[null,null,null,null,null,null,null,null,null,null,"3299 - Ostala prerađivačka industrija, d. n. "]
[null,null,null,null,null,null,null,null,null,null,"3311 - Popravak proizvoda od metala"]
[null,null,null,null,null,null,null,null,null,null,"3312 - Popravak strojeva"]
[null,null,null,null,null,null,null,null,null,null,"3313 - Popravak elektroničke i optičke opreme"]
[null,null,null,null,null,null,null,null,null,null,"3314 - Popravak električne opreme"]
[null,null,null,null,null,null,null,null,null,null,"3315 - Popravak i održavanje brodova i čamaca"]
[null,null,null,null,null,null,null,null,null,null,"3316 - Popravak i održavanje zrakoplova i svemirskih letjelica"]
[null,null,null,null,null,null,null,null,null,null,"3317 - Popravak i održavanje ostalih prijevoznih sredstava"]
[null,null,null,null,null,null,null,null,null,null,"3319 - Popravak ostale opreme"]
[null,null,null,null,null,null,null,null,null,null,"3320 - Instaliranje industrijskih strojeva i opreme"]
[null,null,null,null,null,null,null,null,null,null,"3511 - Proizvodnja električne energije"]
[null,null,null,null,null,null,null,null,null,null,"3512 - Prijenos električne energije"]
[null,null,null,null,null,null,null,null,null,null,"3513 - Distribucija električne energije"]
[null,null,null,null,null,null,null,null,null,null,"3514 - Trgovina električnom energijom"]
[null,null,null,null,null,null,null,null,null,null,"3521 - Proizvodnja plina"]
[null,null,null,null,null,null,null,null,null,null,"3522 - Distribucija plinovitih goriva distribucijskom mrežom"]
[null,null,null,null,null,null,null,null,null,null,"3523 - Trgovina plinom distribucijskom mrežom"]
[null,null,null,null,null,null,null,null,null,null,"3530 - Opskrba parom i klimatizacija"]
[null,null,null,null,null,null,null,null,null,null,"3600 - Skupljanje, pročišćavanje i opskrba vodom"]
[null,null,null,null,null,null,null,null,null,null,"3700 - Uklanjanje otpadnih voda"]
[null,null,null,null,null,null,null,null,null,null,"3811 - Skupljanje bezopasnog otpada"]
[null,null,null,null,null,null,null,null,null,null,"3812 - Skupljanje opasnog otpada"]
[null,null,null,null,null,null,null,null,null,null,"3821 - Obrada i odlaganje bezopasnog otpada"]
[null,null,null,null,null,null,null,null,null,null,"3822 - Obrada i odlaganje opasnog otpada"]
[null,null,null,null,null,null,null,null,null,null,"3831 - Rastavljanje olupina"]
[null,null,null,null,null,null,null,null,null,null,"3832 - Obnavljanje posebno izdvojenih materijala"]
[null,null,null,null,null,null,null,null,null,null,"3900 - Djelatnosti sanacije okoliša te ostale usluge zbrinjavanja otpada"]
[null,null,null,null,null,null,null,null,null,null,"4110 - Organizacija izvedbe projekata za zgrade"]
[null,null,null,null,null,null,null,null,null,null,"4120 - Gradnja stambenih i nestambenih zgrada"]
[null,null,null,null,null,null,null,null,null,null,"4211 - Gradnja cesta i autocesta"]
[null,null,null,null,null,null,null,null,null,null,"4212 - Gradnja željezničkih pruga i podzemnih željeznica"]
[null,null,null,null,null,null,null,null,null,null,"4213 - Gradnja mostova i tunela"]
[null,null,null,null,null,null,null,null,null,null,"4221 - Gradnja cjevovoda za tekućine i plinove"]
[null,null,null,null,null,null,null,null,null,null,"4222 - Gradnja vodova za električnu struju i telekomunikacije"]
[null,null,null,null,null,null,null,null,null,null,"4291 - Gradnja vodnih građevina"]
[null,null,null,null,null,null,null,null,null,null,"4299 - Gradnja ostalih građevina niskogradnje, d. n."]
[null,null,null,null,null,null,null,null,null,null,"4311 - Rušenje građevina"]
[null,null,null,null,null,null,null,null,null,null,"4312 - Pripremni radovi na gradilištu"]
[null,null,null,null,null,null,null,null,null,null,"4313 - Pokusno bušenje i sondiranje terena za gradnju"]
[null,null,null,null,null,null,null,null,null,null,"4321 - Elektroinstalacijski radovi"]
[null,null,null,null,null,null,null,null,null,null,"4322 - Uvođenje instalacija vodovoda, kanalizacije i plina i instalacija za grijanje i klimatizaciju"]
[null,null,null,null,null,null,null,null,null,null,"4329 - Ostali građevinski instalacijski radovi"]
[null,null,null,null,null,null,null,null,null,null,"4331 - Fasadni i štukaturski radovi"]
[null,null,null,null,null,null,null,null,null,null,"4332 - Ugradnja stolarije"]
[null,null,null,null,null,null,null,null,null,null,"4333 - Postavljanje podnih i zidnih obloga"]
[null,null,null,null,null,null,null,null,null,null,"4334 - Soboslikarski i staklarski radovi"]
[null,null,null,null,null,null,null,null,null,null,"4339 - Ostali završni građevinski radovi"]
[null,null,null,null,null,null,null,null,null,null,"4391 - Radovi na krovištu"]
[null,null,null,null,null,null,null,null,null,null,"4399 - Ostale specijalizirane građevinske djelatnosti, d. n."]
[null,null,null,null,null,null,null,null,null,null,"4511 - Trgovina automobilima i motornim vozilima lake kategorije "]
[null,null,null,null,null,null,null,null,null,null,"4519 - Trgovina ostalim motornim vozilima"]
[null,null,null,null,null,null,null,null,null,null,"4520 - Održavanje i popravak motornih vozila"]
[null,null,null,null,null,null,null,null,null,null,"4531 - Trgovina na veliko dijelovima i priborom za motorna vozila "]
[null,null,null,null,null,null,null,null,null,null,"4532 - Trgovina na malo dijelovima i priborom za motorna vozila"]
[null,null,null,null,null,null,null,null,null,null,"4540 - Trgovina motociklima, dijelovima i priborom za motocikle te održavanje i popravak motocikala"]
[null,null,null,null,null,null,null,null,null,null,"4611 - Posredovanje u trgovini poljoprivrednim sirovinama, živom stokom, tekstilnim sirovinama i poluproizvodima"]
[null,null,null,null,null,null,null,null,null,null,"4612 - Posredovanje u trgovini gorivima, rudama, metalima i industrijskim kemijskim proizvodima"]
[null,null,null,null,null,null,null,null,null,null,"4613 - Posredovanje u trgovini drvom i građevinskim materijalom"]
[null,null,null,null,null,null,null,null,null,null,"4614 - Posredovanje u trgovini strojevima, industrijskom opremom, brodovima i zrakoplovima"]
[null,null,null,null,null,null,null,null,null,null,"4615 - Posredovanje u trgovini namještajem, proizvodima za kućanstvo i željeznom robom"]
[null,null,null,null,null,null,null,null,null,null,"4616 - Posredovanje u trgovini tekstilom, odjećom, krznom, obućom i kožnim proizvodima"]
[null,null,null,null,null,null,null,null,null,null,"4617 - Posredovanje u trgovini hranom, pićima i duhanom"]
[null,null,null,null,null,null,null,null,null,null,"4618 - Posredovanje u trgovini specijaliziranoj za ostale određene proizvode ili skupine proizvoda"]
[null,null,null,null,null,null,null,null,null,null,"4619 - Posredovanje u trgovini raznovrsnim proizvodima"]
[null,null,null,null,null,null,null,null,null,null,"4621 - Trgovina na veliko žitaricama, sirovim duhanom, sjemenjem i stočnom hranom"]
[null,null,null,null,null,null,null,null,null,null,"4622 - Trgovina na veliko cvijećem i sadnicama"]
[null,null,null,null,null,null,null,null,null,null,"4623 - Trgovina na veliko živom stokom"]
[null,null,null,null,null,null,null,null,null,null,"4624 - Trgovina na veliko sirovim i štavljenim kožama"]
[null,null,null,null,null,null,null,null,null,null,"4631 - Trgovina na veliko voćem i povrćem"]
[null,null,null,null,null,null,null,null,null,null,"4632 - Trgovina na veliko mesom i mesnim proizvodima"]
[null,null,null,null,null,null,null,null,null,null,"4633 - Trgovina na veliko mlijekom, mliječnim proizvodima, jajima, jestivim uljima i masnoćama"]
[null,null,null,null,null,null,null,null,null,null,"4634 - Trgovina na veliko pićima"]
[null,null,null,null,null,null,null,null,null,null,"4635 - Trgovina na veliko duhanskim proizvodima"]
[null,null,null,null,null,null,null,null,null,null,"4636 - Trgovina na veliko šećerom, čokoladom i bombonima"]
[null,null,null,null,null,null,null,null,null,null,"4637 - Trgovina na veliko kavom, čajem, kakaom i začinima"]
[null,null,null,null,null,null,null,null,null,null,"4638 - Trgovina na veliko ostalom hranom uključujući ribe, rakove i mekušce"]
[null,null,null,null,null,null,null,null,null,null,"4639 - Nespecijalizirana trgovina na veliko hranom, pićima i duhanskim proizvodima"]
[null,null,null,null,null,null,null,null,null,null,"4641 - Trgovina na veliko tekstilom"]
[null,null,null,null,null,null,null,null,null,null,"4642 - Trgovina na veliko odjećom i obućom"]
[null,null,null,null,null,null,null,null,null,null,"4643 - Trgovina na veliko električnim aparatima za kućanstvo"]
[null,null,null,null,null,null,null,null,null,null,"4644 - Trgovina na veliko porculanom, staklom i sredstvima za čišćenje"]
[null,null,null,null,null,null,null,null,null,null,"4645 - Trgovina na veliko parfemima i kozmetikom"]
[null,null,null,null,null,null,null,null,null,null,"4646 - Trgovina na veliko farmaceutskim proizvodima"]
[null,null,null,null,null,null,null,null,null,null,"4647 - Trgovina na veliko namještajem, sagovima i opremom za rasvjetu"]
[null,null,null,null,null,null,null,null,null,null,"4648 - Trgovina na veliko satovima i nakitom"]
[null,null,null,null,null,null,null,null,null,null,"4649 - Trgovina na veliko ostalim proizvodima za kućanstvo"]
[null,null,null,null,null,null,null,null,null,null,"4651 - Trgovina na veliko računalima, perifernom opremom i softverom"]
[null,null,null,null,null,null,null,null,null,null,"4652 - Trgovina na veliko elektroničkim i telekomunikacijskim dijelovima i opremom"]
[null,null,null,null,null,null,null,null,null,null,"4661 - Trgovina na veliko poljoprivrednim strojevima, opremom i priborom"]
[null,null,null,null,null,null,null,null,null,null,"4662 - Trgovina na veliko alatnim strojevima"]
[null,null,null,null,null,null,null,null,null,null,"4663 - Trgovina na veliko strojevima za rudnike i građevinarstvo"]
[null,null,null,null,null,null,null,null,null,null,"4664 - Trgovina na veliko strojevima za tekstilnu industriju te strojevima za šivanje i pletenje"]
[null,null,null,null,null,null,null,null,null,null,"4665 - Trgovina na veliko uredskim namještajem"]
[null,null,null,null,null,null,null,null,null,null,"4666 - Trgovina na veliko ostalim uredskim strojevima i opremom"]
[null,null,null,null,null,null,null,null,null,null,"4669 - Trgovina na veliko ostalim strojevima i opremom"]
[null,null,null,null,null,null,null,null,null,null,"4671 - Trgovina na veliko krutim, tekućim i plinovitim gorivima i srodnim proizvodima"]
[null,null,null,null,null,null,null,null,null,null,"4672 - Trgovina na veliko metalima i metalnim rudama"]
[null,null,null,null,null,null,null,null,null,null,"4673 - Trgovina na veliko drvom, građevinskim materijalom i sanitarnom opremom"]
[null,null,null,null,null,null,null,null,null,null,"4674 - Trgovina na veliko željeznom robom, instalacijskim materijalom i opremom za vodovod i grijanje"]
[null,null,null,null,null,null,null,null,null,null,"4675 - Trgovina na veliko kemijskim proizvodima"]
[null,null,null,null,null,null,null,null,null,null,"4676 - Trgovina na veliko ostalim poluproizvodima"]
[null,null,null,null,null,null,null,null,null,null,"4677 - Trgovina na veliko ostacima i otpacima"]
[null,null,null,null,null,null,null,null,null,null,"4690 - Nespecijalizirana trgovina na veliko "]
[null,null,null,null,null,null,null,null,null,null,"4711 - Trgovina na malo u nespecijaliziranim prodavaonicama pretežno hranom, pićima i duhanskim proizvodima "]
[null,null,null,null,null,null,null,null,null,null,"4719 - Ostala trgovina na malo u nespecijaliziranim prodavaonicama"]
[null,null,null,null,null,null,null,null,null,null,"4721 - Trgovina na malo voćem i povrćem u specijaliziranim prodavaonicama"]
[null,null,null,null,null,null,null,null,null,null,"4722 - Trgovina na malo mesom i mesnim proizvodima u specijaliziranim prodavaonicama"]
[null,null,null,null,null,null,null,null,null,null,"4723 - Trgovina na malo ribama, rakovima i školjkama u\nspecijaliziranim prodavaonicama"]
[null,null,null,null,null,null,null,null,null,null,"4724 - Trgovina na malo kruhom, pecivom, kolačima, tjesteninama, bombonima i slatkišima u specijaliziranim prodavaonicama"]
[null,null,null,null,null,null,null,null,null,null,"4725 - Trgovina na malo pićima u specijaliziranim prodavaonicama"]
[null,null,null,null,null,null,null,null,null,null,"4726 - Trgovina na malo duhanskim proizvodima u specijaliziranim prodavaonicama"]
[null,null,null,null,null,null,null,null,null,null,"4729 - Ostala trgovina na malo prehrambenim proizvodima u specijaliziranim prodavaonicama"]
[null,null,null,null,null,null,null,null,null,null,"4730 - Trgovina na malo motornim gorivima i mazivima u specijaliziranim prodavaonicama"]
[null,null,null,null,null,null,null,null,null,null,"4741 - Trgovina na malo računalima, perifernim jedinicama i softverom u specijaliziranim prodavaonicama"]
[null,null,null,null,null,null,null,null,null,null,"4742 - Trgovina na malo telekomunikacijskom opremom u specijaliziranim prodavaonicama"]
[null,null,null,null,null,null,null,null,null,null,"4743 - Trgovina na malo audio i videoopremom u specijaliziranim prodavaonicama"]
[null,null,null,null,null,null,null,null,null,null,"4751 - Trgovina na malo tekstilom u specijaliziranim prodavaonicama"]
[null,null,null,null,null,null,null,null,null,null,"4752 - Trgovina na malo željeznom robom, bojama i staklom u specijaliziranim prodavaonicama"]
[null,null,null,null,null,null,null,null,null,null,"4753 - Trgovina na malo sagovima i prostiračima za pod, zidnim i podnim oblogama u specijaliziranim prodavaonicama"]
[null,null,null,null,null,null,null,null,null,null,"4754 - Trgovina na malo električnim aparatima za kućanstvo u specijaliziranim prodavaonicama"]
[null,null,null,null,null,null,null,null,null,null,"4759 - Trgovina na malo namještajem, opremom za rasvjetu i ostalim proizvodima za kućanstvo u specijaliziranim prodavaonicama"]
[null,null,null,null,null,null,null,null,null,null,"4761 - Trgovina na malo knjigama u specijaliziranim prodavaonicama"]
[null,null,null,null,null,null,null,null,null,null,"4762 - Trgovina na malo novinama, papirnatom robom i pisaćim priborom u specijaliziranim prodavaonicama"]
[null,null,null,null,null,null,null,null,null,null,"4763 - Trgovina na malo glazbenim i videozapisima \nu specijaliziranim prodavaonicama"]
[null,null,null,null,null,null,null,null,null,null,"4764 - Trgovina na malo sportskom opremom u\nspecijaliziranim prodavaonicama"]
[null,null,null,null,null,null,null,null,null,null,"4765 - Trgovina na malo igrama i igračkama u specijaliziranim prodavaonicama"]
[null,null,null,null,null,null,null,null,null,null,"4771 - Trgovina na malo odjećom u specijaliziranim prodavaonicama"]
[null,null,null,null,null,null,null,null,null,null,"4772 - Trgovina na malo obućom i proizvodima od kože \nu specijaliziranim prodavaonicama"]
[null,null,null,null,null,null,null,null,null,null,"4773 - Ljekarne "]
[null,null,null,null,null,null,null,null,null,null,"4774 - Trgovina na malo medicinskim pripravcima i ortopedskim pomagalima u specijaliziranim prodavaonicama"]
[null,null,null,null,null,null,null,null,null,null,"4775 - Trgovina na malo kozmetičkim i toaletnim proizvodima \nu specijaliziranim prodavaonicama"]
[null,null,null,null,null,null,null,null,null,null,"4776 - Trgovina na malo cvijećem, sadnicama, sjemenjem, gnojivom, kućnim ljubimcima i hranom za kućne ljubimce u specijaliziranim prodavaonicama"]
[null,null,null,null,null,null,null,null,null,null,"4777 - Trgovina na malo satovima i nakitom u specijaliziranim prodavaonicama"]
[null,null,null,null,null,null,null,null,null,null,"4778 - Ostala trgovina na malo novom robom u specijaliziranim prodavaonicama"]
[null,null,null,null,null,null,null,null,null,null,"4779 - Trgovina na malo rabljenom robom u specijaliziranim prodavaonicama"]
[null,null,null,null,null,null,null,null,null,null,"4781 - Trgovina na malo hranom, pićima i duhanskim proizvodima na štandovima i tržnicama"]
[null,null,null,null,null,null,null,null,null,null,"4782 - Trgovina na malo tekstilom, odjećom i obućom na štandovima i tržnicama"]
[null,null,null,null,null,null,null,null,null,null,"4789 - Trgovina na malo ostalom robom na štandovima i tržnicama"]
[null,null,null,null,null,null,null,null,null,null,"4791 - Trgovina na malo preko pošte ili interneta"]
[null,null,null,null,null,null,null,null,null,null,"4799 - Ostala trgovina na malo izvan prodavaonica, štandova i tržnica"]
[null,null,null,null,null,null,null,null,null,null,"4910 - Željeznički prijevoz putnika, međugradski"]
[null,null,null,null,null,null,null,null,null,null,"4920 - Željeznički prijevoz robe"]
[null,null,null,null,null,null,null,null,null,null,"4931 - Gradski i prigradski kopneni prijevoz putnika"]
[null,null,null,null,null,null,null,null,null,null,"4932 - Taksi služba"]
[null,null,null,null,null,null,null,null,null,null,"4939 - Ostali kopneni prijevoz putnika, d. n."]
[null,null,null,null,null,null,null,null,null,null,"4941 - Cestovni prijevoz robe"]
[null,null,null,null,null,null,null,null,null,null,"4942 - Usluge preseljenja"]
[null,null,null,null,null,null,null,null,null,null,"4950 - Cjevovodni transport"]
[null,null,null,null,null,null,null,null,null,null,"5010 - Pomorski i obalni prijevoz putnika"]
[null,null,null,null,null,null,null,null,null,null,"5020 - Pomorski i obalni prijevoz robe"]
[null,null,null,null,null,null,null,null,null,null,"5030 - Prijevoz putnika unutrašnjim vodenim putovima"]
[null,null,null,null,null,null,null,null,null,null,"5040 - Prijevoz robe unutrašnjim vodenim putovima"]
[null,null,null,null,null,null,null,null,null,null,"5110 - Zračni prijevoz putnika"]
[null,null,null,null,null,null,null,null,null,null,"5121 - Zračni prijevoz robe"]
[null,null,null,null,null,null,null,null,null,null,"5122 - Svemirski prijevoz"]
[null,null,null,null,null,null,null,null,null,null,"5210 - Skladištenje robe"]
[null,null,null,null,null,null,null,null,null,null,"5221 - Uslužne djelatnosti u vezi s kopnenim prijevozom"]
[null,null,null,null,null,null,null,null,null,null,"5222 - Uslužne djelatnosti u vezi s vodenim prijevozom"]
[null,null,null,null,null,null,null,null,null,null,"5223 - Uslužne djelatnosti u vezi sa zračnim prijevozom"]
[null,null,null,null,null,null,null,null,null,null,"5224 - Prekrcaj tereta"]
[null,null,null,null,null,null,null,null,null,null,"5229 - Ostale prateće djelatnosti u prijevozu"]
[null,null,null,null,null,null,null,null,null,null,"5310 - Djelatnosti pružanja univerzalnih poštanskih usluga"]
[null,null,null,null,null,null,null,null,null,null,"5320 - Djelatnosti pružanja ostalih poštanskih i kurirskih usluga"]
[null,null,null,null,null,null,null,null,null,null,"5510 - Hoteli i sličan smještaj"]
[null,null,null,null,null,null,null,null,null,null,"5520 - Odmarališta i slični objekti za kraći odmor"]
[null,null,null,null,null,null,null,null,null,null,"5530 - Kampovi i prostori za kampiranje"]
[null,null,null,null,null,null,null,null,null,null,"5590 - Ostali smještaj"]
[null,null,null,null,null,null,null,null,null,null,"5610 - Djelatnosti restorana i ostalih objekata za pripremu i usluživanje hrane"]
[null,null,null,null,null,null,null,null,null,null,"5621 - Djelatnosti keteringa"]
[null,null,null,null,null,null,null,null,null,null,"5629 - Ostale djelatnosti pripreme i usluživanja hrane"]
[null,null,null,null,null,null,null,null,null,null,"5630 - Djelatnosti pripreme i usluživanja pića"]
[null,null,null,null,null,null,null,null,null,null,"5811 - Izdavanje knjiga"]
[null,null,null,null,null,null,null,null,null,null,"5812 - Izdavanje imenika i popisa korisničkih adresa"]
[null,null,null,null,null,null,null,null,null,null,"5813 - Izdavanje novina"]
[null,null,null,null,null,null,null,null,null,null,"5814 - Izdavanje časopisa i periodičnih publikacija"]
[null,null,null,null,null,null,null,null,null,null,"5819 - Ostala izdavačka djelatnost"]
[null,null,null,null,null,null,null,null,null,null,"5821 - Izdavanje računalnih igara"]
[null,null,null,null,null,null,null,null,null,null,"5829 - Izdavanje ostalog softvera"]
[null,null,null,null,null,null,null,null,null,null,"5911 - Proizvodnja filmova, videofilmova i televizijskog programa"]
[null,null,null,null,null,null,null,null,null,null,"5912 - Djelatnosti koje slijede nakon proizvodnje filmova, videofilmova i televizijskog programa"]
[null,null,null,null,null,null,null,null,null,null,"5913 - Distribucija filmova, videofilmova i televizijskog programa"]
[null,null,null,null,null,null,null,null,null,null,"5914 - Djelatnosti prikazivanja filmova"]
[null,null,null,null,null,null,null,null,null,null,"5920 - Djelatnosti snimanja zvučnih zapisa i izdavanja glazbenih zapisa"]
[null,null,null,null,null,null,null,null,null,null,"6010 - Emitiranje radijskog programa"]
[null,null,null,null,null,null,null,null,null,null,"6020 - Emitiranje televizijskog programa"]
[null,null,null,null,null,null,null,null,null,null,"6110 - Djelatnosti žičane telekomunikacije"]
[null,null,null,null,null,null,null,null,null,null,"6120 - Djelatnosti bežične telekomunikacije"]
[null,null,null,null,null,null,null,null,null,null,"6130 - Djelatnosti satelitske telekomunikacije"]
[null,null,null,null,null,null,null,null,null,null,"6190 - Ostale telekomunikacijske djelatnosti"]
[null,null,null,null,null,null,null,null,null,null,"6201 - Računalno programiranje"]
[null,null,null,null,null,null,null,null,null,null,"6202 - Savjetovanje u vezi s računalima"]
[null,null,null,null,null,null,null,null,null,null,"6203 - Upravljanje računalnom opremom i sustavom"]
[null,null,null,null,null,null,null,null,null,null,"6209 - Ostale uslužne djelatnosti u vezi s informacijskom tehnologijom i računalima"]
[null,null,null,null,null,null,null,null,null,null,"6311 - Obrada podataka, usluge poslužitelja i djelatnosti povezane s njima"]
[null,null,null,null,null,null,null,null,null,null,"6312 - Internetski portali"]
[null,null,null,null,null,null,null,null,null,null,"6391 - Djelatnosti novinskih agencija"]
[null,null,null,null,null,null,null,null,null,null,"6399 - Ostale informacijske uslužne djelatnosti, d. n."]
[null,null,null,null,null,null,null,null,null,null,"6411 - Središnje bankarstvo"]
[null,null,null,null,null,null,null,null,null,null,"6419 - Ostalo novčarsko posredovanje"]
[null,null,null,null,null,null,null,null,null,null,"6420 - Djelatnosti holding-društava"]
[null,null,null,null,null,null,null,null,null,null,"6430 - Trustovi (uzajamni fondovi), fondovi i slični financijski subjekti"]
[null,null,null,null,null,null,null,null,null,null,"6491 - Financijski leasing"]
[null,null,null,null,null,null,null,null,null,null,"6492 - Ostalo kreditno posredovanje"]
[null,null,null,null,null,null,null,null,null,null,"6499 - Ostale financijske uslužne djelatnosti, osim osiguranja i mirovinskih fondova, d. n."]
[null,null,null,null,null,null,null,null,null,null,"6511 - Životno osiguranje"]
[null,null,null,null,null,null,null,null,null,null,"6512 - Ostalo osiguranje"]
[null,null,null,null,null,null,null,null,null,null,"6520 - Reosiguranje"]
[null,null,null,null,null,null,null,null,null,null,"6530 - Mirovinski fondovi"]
[null,null,null,null,null,null,null,null,null,null,"6611 - Poslovanje financijskih tržišta"]
[null,null,null,null,null,null,null,null,null,null,"6612 - Djelatnosti posredovanja u poslovanju vrijednosnim papirima i robnim ugovorima"]
[null,null,null,null,null,null,null,null,null,null,"6619 - Ostale pomoćne djelatnosti kod financijskih usluga, osim osiguranja i mirovinskih fondova"]
[null,null,null,null,null,null,null,null,null,null,"6621 - Procjena rizika i štete"]
[null,null,null,null,null,null,null,null,null,null,"6622 - Djelatnosti agenata i posrednika osiguranja "]
[null,null,null,null,null,null,null,null,null,null,"6629 - Ostale pomoćne djelatnosti u osiguranju i mirovinskim fondovima"]
[null,null,null,null,null,null,null,null,null,null,"6630 - Djelatnosti upravljanja fondovima"]
[null,null,null,null,null,null,null,null,null,null,"6810 - Kupnja i prodaja vlastitih nekretnina"]
[null,null,null,null,null,null,null,null,null,null,"6820 - Iznajmljivanje i upravljanje vlastitim nekretninama ili nekretninama uzetim u zakup (leasing)"]
[null,null,null,null,null,null,null,null,null,null,"6831 - Agencije za poslovanje nekretninama"]
[null,null,null,null,null,null,null,null,null,null,"6832 - Upravljanje nekretninama uz naplatu ili na osnovi ugovora"]
[null,null,null,null,null,null,null,null,null,null,"6910 - Pravne djelatnosti"]
[null,null,null,null,null,null,null,null,null,null,"6920 - Računovodstvene, knjigovodstvene i revizijske djelatnosti; porezno savjetovanje"]
[null,null,null,null,null,null,null,null,null,null,"7010 - Upravljačke djelatnosti"]
[null,null,null,null,null,null,null,null,null,null,"7021 - Odnosi s javnošću i djelatnosti priopćivanja"]
[null,null,null,null,null,null,null,null,null,null,"7022 - Savjetovanje u vezi s poslovanjem i ostalim upravljanjem"]
[null,null,null,null,null,null,null,null,null,null,"7111 - Arhitektonske djelatnosti"]
[null,null,null,null,null,null,null,null,null,null,"7112 - Inženjerstvo i s njim povezano tehničko savjetovanje"]
[null,null,null,null,null,null,null,null,null,null,"7120 - Tehničko ispitivanje i analiza"]
[null,null,null,null,null,null,null,null,null,null,"7211 - Istraživanje i eksperimentalni razvoj u biotehnologiji"]
[null,null,null,null,null,null,null,null,null,null,"7219 - Ostalo istraživanje i eksperimentalni razvoj u prirodnim, tehničkim i tehnološkim znanostima"]
[null,null,null,null,null,null,null,null,null,null,"7220 - Istraživanje i eksperimentalni razvoj u društvenim i humanističkim znanostima"]
[null,null,null,null,null,null,null,null,null,null,"7311 - Agencije za promidžbu"]
[null,null,null,null,null,null,null,null,null,null,"7312 - Oglašavanje preko medija"]
[null,null,null,null,null,null,null,null,null,null,"7320 - Istraživanje tržišta i ispitivanje javnoga mnijenja"]
[null,null,null,null,null,null,null,null,null,null,"7410 - Specijalizirane dizajnerske djelatnosti"]
[null,null,null,null,null,null,null,null,null,null,"7420 - Fotografske djelatnosti"]
[null,null,null,null,null,null,null,null,null,null,"7430 - Prevoditeljske djelatnosti i usluge tumača"]
[null,null,null,null,null,null,null,null,null,null,"7490 - Ostale stručne, znanstvene i tehničke djelatnosti, d. n."]
[null,null,null,null,null,null,null,null,null,null,"7500 - Veterinarske djelatnosti"]
[null,null,null,null,null,null,null,null,null,null,"7711 - Iznajmljivanje i davanje u zakup (leasing) automobila i motornih vozila lake kategorije"]
[null,null,null,null,null,null,null,null,null,null,"7712 - Iznajmljivanje i davanje u zakup (leasing) kamiona "]
[null,null,null,null,null,null,null,null,null,null,"7721 - Iznajmljivanje i davanje u zakup (leasing) opreme za rekraciju i sport"]
[null,null,null,null,null,null,null,null,null,null,"7722 - Iznajmljivanje videokaseta i diskova"]
[null,null,null,null,null,null,null,null,null,null,"7729 - Iznajmljivanje i davanje u zakup (leasing) ostalih predmeta za osobnu uporabu i kućanstvo"]
[null,null,null,null,null,null,null,null,null,null,"7731 - Iznajmljivanje i davanje u zakup (leasing) poljoprivrednih strojeva i opreme"]
[null,null,null,null,null,null,null,null,null,null,"7732 - Iznajmljivanje i davanje u zakup (leasing) strojeva i opreme za građevinarstvo i inženjerstvo"]
[null,null,null,null,null,null,null,null,null,null,"7733 - Iznajmljivanje i davanje u zakup (leasing) uredskih strojeva i opreme (uključujući računala)"]
[null,null,null,null,null,null,null,null,null,null,"7734 - Iznajmljivanje i davanje u zakup (leasing) plovnih prijevoznih sredstava"]
[null,null,null,null,null,null,null,null,null,null,"7735 - Iznajmljivanje i davanje u zakup (leasing) zračnih prijevoznih sredstava"]
[null,null,null,null,null,null,null,null,null,null,"7739 - Iznajmljivanje i davanje u zakup (leasing) ostalih strojeva, opreme i materijalnih dobara, d. n."]
[null,null,null,null,null,null,null,null,null,null,"7740 - Davanje u zakup (leasing) prava na uporabu intelektualnog vlasnišva i sličnih proizvoda, osim radova koji su zaštićeni autorskim pravima"]
[null,null,null,null,null,null,null,null,null,null,"7810 - Djelatnosti agencija za zapošljavanje"]
[null,null,null,null,null,null,null,null,null,null,"7820 - Djelatnosti agencija za privremeno zapošljavanje"]
[null,null,null,null,null,null,null,null,null,null,"7830 - Ostalo ustupanje ljudskih resursa"]
[null,null,null,null,null,null,null,null,null,null,"7911 - Djelatnosti putničkih agencija"]
[null,null,null,null,null,null,null,null,null,null,"7912 - Djelatnosti organizatora putovanja (turoperatora)"]
[null,null,null,null,null,null,null,null,null,null,"7990 - Ostale rezervacijske usluge i djelatnosti povezane s njima"]
[null,null,null,null,null,null,null,null,null,null,"8010 - Djelatnosti privatne zaštite"]
[null,null,null,null,null,null,null,null,null,null,"8020 - Usluge zaštite uz pomoć sigurnosnih sustava"]
[null,null,null,null,null,null,null,null,null,null,"8030 - Istražne djelatnosti"]
[null,null,null,null,null,null,null,null,null,null,"8110 - Upravljanje zgradama"]
[null,null,null,null,null,null,null,null,null,null,"8121 - Osnovno čišćenje zgrada"]
[null,null,null,null,null,null,null,null,null,null,"8122 - Ostale djelatnosti čišćenja zgrada i objekata"]
[null,null,null,null,null,null,null,null,null,null,"8129 - Ostale djelatnosti čišćenja"]
[null,null,null,null,null,null,null,null,null,null,"8130 - Uslužne djelatnosti uređenja i održavanja krajolika"]
[null,null,null,null,null,null,null,null,null,null,"8211 - Kombinirane uredske administrativne uslužne djelatnosti"]
[null,null,null,null,null,null,null,null,null,null,"8219 - Fotokopiranje, priprema dokumenata i ostale specijalizirane uredske pomoćne djelatnosti"]
[null,null,null,null,null,null,null,null,null,null,"8220 - Djelatnosti pozivnih centara"]
[null,null,null,null,null,null,null,null,null,null,"8230 - Organizacija sastanaka i poslovnih sajmova"]
[null,null,null,null,null,null,null,null,null,null,"8291 - Djelatnosti agencija za prikupljanje i naplatu računa te kreditnih ureda"]
[null,null,null,null,null,null,null,null,null,null,"8292 - Djelatnosti pakiranja"]
[null,null,null,null,null,null,null,null,null,null,"8299 - Ostale poslovne pomoćne uslužne djelatnosti, d. n."]
[null,null,null,null,null,null,null,null,null,null,"8411 - Opće djelatnosti javne uprave"]
[null,null,null,null,null,null,null,null,null,null,"8412 - Reguliranje djelatnosti subjekata koji pružaju zdravstvenu zaštitu, usluge u obrazovanju i kulturi i druge društvene usluge, osim obveznoga socijalnog osiguranja"]
[null,null,null,null,null,null,null,null,null,null,"8413 - Reguliranje i poboljšavanje poslovanja u gospodarstvu"]
[null,null,null,null,null,null,null,null,null,null,"8421 - Vanjski poslovi"]
[null,null,null,null,null,null,null,null,null,null,"8422 - Poslovi obrane"]
[null,null,null,null,null,null,null,null,null,null,"8423 - Sudske i pravosudne djelatnosti"]
[null,null,null,null,null,null,null,null,null,null,"8424 - Poslovi javnog reda i sigurnosti"]
[null,null,null,null,null,null,null,null,null,null,"8425 - Djelatnosti vatrogasne službe"]
[null,null,null,null,null,null,null,null,null,null,"8430 - Djelatnosti obveznoga socijalnog osiguranja"]
[null,null,null,null,null,null,null,null,null,null,"8510 - Predškolsko obrazovanje"]
[null,null,null,null,null,null,null,null,null,null,"8520 - Osnovno obrazovanje"]
[null,null,null,null,null,null,null,null,null,null,"8531 - Opće srednje obrazovanje"]
[null,null,null,null,null,null,null,null,null,null,"8532 - Tehničko i strukovno srednje obrazovanje"]
[null,null,null,null,null,null,null,null,null,null,"8541 - Obrazovanje nakon srednjeg koje nije visoko"]
[null,null,null,null,null,null,null,null,null,null,"8542 - Visoko obrazovanje "]
[null,null,null,null,null,null,null,null,null,null,"8551 - Obrazovanje i poučavanje u području sporta i rekreacije"]
[null,null,null,null,null,null,null,null,null,null,"8552 - Obrazovanje i poučavanje u području kulture"]
[null,null,null,null,null,null,null,null,null,null,"8553 - Djelatnosti vozačkih škola"]
[null,null,null,null,null,null,null,null,null,null,"8559 - Ostalo obrazovanje i poučavanje, d. n."]
[null,null,null,null,null,null,null,null,null,null,"8560 - Pomoćne usluge u obrazovanju"]
[null,null,null,null,null,null,null,null,null,null,"8610 - Djelatnosti bolnica"]
[null,null,null,null,null,null,null,null,null,null,"8621 - Djelatnosti opće medicinske prakse"]
[null,null,null,null,null,null,null,null,null,null,"8622 - Djelatnosti specijalističke medicinske prakse"]
[null,null,null,null,null,null,null,null,null,null,"8623 - Djelatnosti stomatološke prakse"]
[null,null,null,null,null,null,null,null,null,null,"8690 - Ostale djelatnosti humane medicine"]
[null,null,null,null,null,null,null,null,null,null,"8710 - Djelatnosti ustanova za njegu"]
[null,null,null,null,null,null,null,null,null,null,"8720 - Djelatnosti socijalne skrbi sa smještajem za osobe s poteškoćama u razvoju, duševno bolesne i zlostavljane osobe "]
[null,null,null,null,null,null,null,null,null,null,"8730 - Djelatnosti socijalne skrbi sa smještajem za starije osobe i osobe s invaliditetom"]
[null,null,null,null,null,null,null,null,null,null,"8790 - Ostale djelatnosti socijalne skrbi sa smještajem"]
[null,null,null,null,null,null,null,null,null,null,"8810 - Djelatnosti socijalne skrbi bez smještaja za starije osobe i osobe s invaliditetom"]
[null,null,null,null,null,null,null,null,null,null,"8891 - Djelatnosti dnevne skrbi o djeci"]
[null,null,null,null,null,null,null,null,null,null,"8899 - Ostale djelatnosti socijalne skrbi bez smještaja, d. n."]
[null,null,null,null,null,null,null,null,null,null,"9001 - Izvođačka umjetnost"]
[null,null,null,null,null,null,null,null,null,null,"9002 - Pomoćne djelatnosti u izvođačkoj umjetnosti"]
[null,null,null,null,null,null,null,null,null,null,"9003 - Umjetničko stvaralaštvo"]
[null,null,null,null,null,null,null,null,null,null,"9004 - Rad umjetničkih objekata"]
[null,null,null,null,null,null,null,null,null,null,"9101 - Djelatnosti knjižnica i arhiva"]
[null,null,null,null,null,null,null,null,null,null,"9102 - Djelatnosti muzeja"]
[null,null,null,null,null,null,null,null,null,null,"9103 - Rad povijesnih mjesta i građevina te sličnih zanimljivosti za posjetitelje"]
[null,null,null,null,null,null,null,null,null,null,"9104 - Djelatnosti botaničkih i zooloških vrtova i prirodnih rezervata"]
[null,null,null,null,null,null,null,null,null,null,"9200 - Djelatnosti kockanja i klađenja"]
[null,null,null,null,null,null,null,null,null,null,"9311 - Rad sportskih objekata"]
[null,null,null,null,null,null,null,null,null,null,"9312 - Djelatnosti sportskih klubova"]
[null,null,null,null,null,null,null,null,null,null,"9313 - Fitnes centri"]
[null,null,null,null,null,null,null,null,null,null,"9319 - Ostale sportske djelatnosti"]
[null,null,null,null,null,null,null,null,null,null,"9321 - Djelatnosti zabavnih i tematskih parkova"]
[null,null,null,null,null,null,null,null,null,null,"9329 - Ostale zabavne i rekreacijske djelatnosti"]
[null,null,null,null,null,null,null,null,null,null,"9411 - Djelatnosti poslovnih organizacija i organizacija poslodavaca"]
[null,null,null,null,null,null,null,null,null,null,"9412 - Djelatnosti strukovnih članskih organizacija"]
[null,null,null,null,null,null,null,null,null,null,"9420 - Djelatnosti sindikata"]
[null,null,null,null,null,null,null,null,null,null,"9491 - Djelatnosti vjerskih organizacija"]
[null,null,null,null,null,null,null,null,null,null,"9492 - Djelatnosti političkih organizacija"]
[null,null,null,null,null,null,null,null,null,null,"9499 - Djelatnosti ostalih članskih organizacija, d. n."]
[null,null,null,null,null,null,null,null,null,null,"9511 - Popravak računala i periferne opreme"]
[null,null,null,null,null,null,null,null,null,null,"9512 - Popravak komunikacijske opreme"]
[null,null,null,null,null,null,null,null,null,null,"9521 - Popravak elektroničkih uređaja za široku potrošnju"]
[null,null,null,null,null,null,null,null,null,null,"9522 - Popravak aparata za kućanstvo te opreme za kuću i vrt"]
[null,null,null,null,null,null,null,null,null,null,"9523 - Popravak obuće i proizvoda od kože"]
[null,null,null,null,null,null,null,null,null,null,"9524 - Popravak namještaja i pokućstva"]
[null,null,null,null,null,null,null,null,null,null,"9525 - Popravak satova i nakita"]
[null,null,null,null,null,null,null,null,null,null,"9529 - Popravak ostalih predmeta za osobnu uporabu i kućanstvo "]
[null,null,null,null,null,null,null,null,null,null,"9601 - Pranje i kemijsko čišćenje tekstila i krznenih proizvoda"]
[null,null,null,null,null,null,null,null,null,null,"9602 - Frizerski saloni i saloni za uljepšavanje"]
[null,null,null,null,null,null,null,null,null,null,"9603 - Pogrebne i srodne djelatnosti"]
[null,null,null,null,null,null,null,null,null,null,"9604 - Djelatnosti za njegu i održavanje tijela"]
[null,null,null,null,null,null,null,null,null,null,"9609 - Ostale osobne uslužne djelatnosti, d. n."]
[null,null,null,null,null,null,null,null,null,null,"9700 - Djelatnosti kućanstava koja zapošljavaju poslugu"]
[null,null,null,null,null,null,null,null,null,null,"9810 - Djelatnosti privatnih kućanstava koja proizvode različitu robu za vlastite potrebe"]
[null,null,null,null,null,null,null,null,null,null,"9820 - Djelatnosti privatnih kućanstava koja obavljaju različite usluge za vlastite potrebe"]
[null,null,null,null,null,null,null,null,null,null,"9900 - Djelatnosti izvanteritorijalnih organizacija i tijela"]

{"sheet":"Tablica 1. Osoba za kontakt","index":3,"n_rows":2,"n_cols":5,"rows_kept":2,"cut":false,"hidden":false,"merged":[]}
["Oznaka osobe","Ime i prezime","Broj telefona","Broj telefaksa","E-mail adresa"]
["<OdgovornaOsoba>","<ImeIPrezime>","<Telefon>","<Telefaks>","<EMail>"]

{"sheet":"Sifrarnik A.","index":4,"n_rows":3,"n_cols":7,"rows_kept":3,"cut":false,"hidden":false,"merged":[[0,6,1,6],[0,0,0,1],[0,2,1,2],[0,3,1,3],[0,4,1,4],[0,5,1,5]]}
["Šifra inozemnog ulagača",null,"Zemlja inozemnog ulagača*","Postotak udjela u kapitalu* (%)","Naziv i sjedište inozemnog ulagača","Djelatnost inozemnog ulagača","Način ulaska u vlasničku strukturu"]
["Vrsta inozemnog ulaganja*","Broj inozemnog ulagača                (ne upisuje se za portfeljne ulagače!)"]
["<SifraInozemnogUlagaca>","<BrojInoUlagaca>","<ZemljaInozemnogVlasnika>","<PostotakUdjelaUVlasnistvu>","<NazivISjedisteInozemnogVlasnika>","<DjelatnostInozemnogVlasnika>","<NacinUlaskaUVlasnickuStrukturu>"]

{"sheet":"Sifrarnik D.","index":5,"n_rows":2,"n_cols":3,"rows_kept":2,"cut":false,"hidden":false,"merged":[]}
["OIB"," Naziv i sjedište domaće pravne osobe ","Postotak udjela u kapitalu (%)            jednak ili veći od 50%"]
["<OIB>","<NazivISjedisteDomacegVlasnika>","<PostotakUdjelaUVlasnistvu>"]

{"sheet":"Tablica A.1.IZRAVNA ULAGANJA","index":6,"n_rows":3,"n_cols":7,"rows_kept":3,"cut":false,"hidden":false,"merged":[[0,5,1,5],[0,6,1,6],[0,0,0,1],[0,2,1,2],[0,3,1,3],[0,4,1,4]]}
["Šifra inozemnog ulagača             ",null,"Mjesec","Tržišna vrijednost dionica ili udjela u kapitalu               (u tisućama eura)","Vrsta vlasničkog ulaganja","Način plaćanja","Udio u temeljnom kapitalu               ostvaren transakcijom ( %)"]
["Vrsta inozemnog ulaganja","Broj inozemnog ulagača"]
["<SifraInozemnogUlagaca>","<BrojInoUlagaca>","<Mjesec>","<TrzisnaVrijednostDionicaIliUdjelaUKapitalu>","<VrstaVlasnickogUlaganja>","<NacinPlacanja>","<UdioUTemeljnomKapitalu>"]

{"sheet":"Tablica A.1.PORTFELJNA ULAGANJA","index":7,"n_rows":3,"n_cols":5,"rows_kept":3,"cut":false,"hidden":false,"merged":[[0,0,0,1],[0,2,1,2],[0,3,1,3],[0,4,1,4]]}
["Šifra inozemnog ulagača - portfeljni ulagači (<10%)",null,"Mjesec","Tržišna vrijednost dionica ili udjela u kapitalu                       (u tisućama eura)","Način plaćanja"]
["Vrsta inozemnog ulaganja","Zemlja inozemnog ulagača"]
["<SIFRAINOZEMNOGULAGACA>","<ZemljaInozemnogVlasnika>","<Mjesec>","<TrzisnaVrijednostDionicaIliUdjelaUKapitalu>","<NacinPlacanja>"]

{"sheet":"Tablica A.2.","index":8,"n_rows":11,"n_cols":1,"rows_kept":11,"cut":false,"hidden":false,"merged":[]}
["90) UPISANI TEMELJNI KAPITAL bez premija na emitirane dionice"]
["      901) od toga, UPISANI TEMELJNI KAPITAL KOJI NIJE PLAĆEN"]
["91) PREMIJE NA EMITIRANE DIONICE"]
["92) REVALORIZACIJSKE PRIČUVE"]
["93) PRIČUVE (ZAKONSKE, STATUTARNE i OSTALE)"]
["94) ZADRŽANI DOBICI ILI PRENESENI GUBITAK"]
["95) NETO DOBIT (GUBITAK) TEKUĆE POSLOVNE GODINE"]
["   95a) Dobit ili gubitak tekuće poslovne godine koji je posljedica vrijednosnih usklađivanja (Vidi upute!)"]
["*OSTVARENA NETO DOBIT (GUBITAK) SAMO ZA IZVJEŠTAJNO RAZDOBLJE"]
["9) UKUPNI KAPITAL (suma 90 - 95)"]
["NERASPODIJELJENA DOBIT (PRENESENI GUBICI)  POVEZANIH DRUŠTAVA IZ ŠIFRARNIKA D"]

{"sheet":"Tablica A.4.","index":9,"n_rows":5,"n_cols":1,"rows_kept":5,"cut":false,"hidden":false,"merged":[]}
["1. Mjesec donošenja odluke"]
["2. Dobit (gubitak) prije oporezivanja                               "]
[" 2.a. Dobit (gubitak) prije oporezivanja kao posljedica vrijednosnih usklađivanja ( Vidi upute!) "]
["3. Dobit (gubitak) nakon oporezivanja"]
["4. Za raspodijeliti svim članovima (vlasnicima)     "]

{"sheet":"Tablica A.5.","index":10,"n_rows":2,"n_cols":4,"rows_kept":2,"cut":false,"hidden":false,"merged":[]}
["Šifra inozemnog ulagača iz Šifrarnika A","Mjesec","Isplaćena dividenda   /   udio u dobiti                                          (u tisućama eura)","Isplaćena zadržana dobit prethodnih godina                           (u tisućama eura)"]
["<SifraInozemnogUlagaca>","<Mjesec>","<IsplacenaDividendaUdioUDobiti>","<IsplacenaZadrzanaDobitPrethodnihGodina>"]

{"sheet":"Napomena","index":11,"n_rows":1,"n_cols":1,"rows_kept":1,"cut":false,"hidden":false,"merged":[[0,0,6,0],[0,1,6,1]]}
["Napomena                        upisati u jednom odlomku, bez tipe \"ENTER\""]

{"sheet":"Sifarnik B.","index":12,"n_rows":3,"n_cols":6,"rows_kept":3,"cut":false,"hidden":false,"merged":[[0,0,0,1],[0,2,1,2],[0,3,1,3],[0,4,1,4],[0,5,1,5]]}
["Šifra inozemne pravne osobe",null,"Zemlja inozemne pravne osobe*","Postotak udjela u kapitalu* (%)","Naziv i sjedište inozemne pravne osobe","Djelatnost inozemne pravne osobe"]
["Vrsta inozemnog ulaganja*","Broj inozemne pravne osobe                (ne upisuje se za portfeljne ulagače!)"]
["<VrstaInozemnogUlaganja>","<BrojInozemnePravneOsobe>","<ZemljaInozemnogVlasnika>","<PostotakUdjelaUVlasnistvu>","<NazivISjedisteInozemnogVlasnika>","<DjelatnostInozemnogVlasnika>"]

{"sheet":"Sifarnik B.B.","index":13,"n_rows":2,"n_cols":9,"rows_kept":2,"cut":false,"hidden":false,"merged":[]}
["Šifra inozemne pravne osobe","Razina1","Razina2","Razina3","Razina4","Razina5","Zemlja inozemne pravne osobe","Naziv i sjedište inozemne pravne osobe","Postotak udjela u kapitalu (%)"]
["<SifraInozemnePravneOsobe>","<Nivo1>","<Nivo2>","<Nivo3>","<Nivo4>","<Nivo5>","<ZemljaInozemnePravneOsobe>","<NazivISjedisteInozemnePravneOsobe>","<PostotakUdjelaUKapitalu>"]

{"sheet":"Tablica B.1.Izravna ulaganja","index":14,"n_rows":5,"n_cols":17,"rows_kept":5,"cut":false,"hidden":false,"merged":[[1,16,3,16],[2,4,3,4],[2,5,3,5],[2,6,3,6],[2,7,3,7],[1,12,3,12],[1,13,3,13],[1,14,3,14],[1,4,1,7],[1,8,1,10],[1,11,3,11],[2,9,3,9],[2,10,3,10],[2,8,3,8],[0,0,0,1],[1,15,3,15],[1,2,3,2],[1,3,3,3],[1,0,2,1]]}
[1,null,2,3,4,5,6,7,8,9,10,11,"11a","11b",12,13,14]
["Šifra inozemne pravne osobe",null,"ISIN","Početno stanje (isto kao stupac 11 prethodnog Q)","Promjene",null,null,null,"Revalorizacije",null,null,"Novo stanje - Ako ne postoji tržišna vrijednost, unosi se zbroj pozicija iz stupaca 11.a. i 11.b. (u tisućama eura)","Knjigovodstvena vrijednost dionica/udjela u kapitalu u vlasništvu izvještajnog subjekta (u tisućama eura)"," Knjigovodstveno stanje neraspodijeljene dobiti/gubitka koja na osnovi udjela u kapitalu pripada izvještajnom subjektu (u tisućama eura)","Stanje udjela u vlasništvu (%)","Naplaćena dividenda","Naplaćena ZD"]
[null,null,null,null,"Transakcija","Novoostvarena dobit/gubitak koja na osnovi udjela u vlasništvu pripada izvještajnom subjektu ","Potraživanja za izglasanu dividendu (koja pripada izvještajnom subjektu) ","Potraživanja za izglasanu isplatu zadržane dobiti (koja pripada izvještajnom subjektu)","Tečajna prilagodba","Cjenovna prilagodba","Prilagodba zbog reklasifikacije"]
["Vrsta inozemnog ulaganja","Broj inozemnog ulagača              "]
["<SifraInozemnePravneOsobe>","<BrojInozemnePravneOsobe>","<ISIN>","<PocetnoStanje>","<Transakcija>","<NoviDobitakGubitak","<IzglasanaDividenda>","<IzglasanaZadrzanaDobit>","<TecajnaPrilagodba>","<CjenovnaPrilagodba>","<PrilagodbaZbogReklasifikacije>","<NovoStanje>","<KnjigovodstvenaVrijednost>","<KnjigovodstvenoStanje>","<UdjeliUVlasnistvu>","<NaplacenaDividenda>","<NaplacenaZadrzanaDobit>"]

{"sheet":"Tablica B.1.PORTFELJNA ULAGANJA","index":15,"n_rows":5,"n_cols":11,"rows_kept":5,"cut":false,"hidden":false,"merged":[[1,10,3,10],[2,4,3,4],[2,5,3,5],[2,6,3,6],[2,7,3,7],[1,9,3,9],[1,5,1,7],[1,8,3,8],[1,2,3,2],[1,3,3,3],[0,0,0,1],[1,0,1,1],[2,0,3,0],[2,1,3,1]]}
[1,null,2,3,4,5,6,7,8,9,10]
["Šifra inozemne pravne osobe - portfeljni ulagači (<10%)",null,"ISIN","Početno stanje (isto kao stupac 10 prethodnog Q)","Promjena","Revalorizacije",null,null,"Novo stanje","Naplaćena dividenda","Kod domaćeg skrbnika (DA/NE)"]
["Vrsta inozemnog ulaganja","Zemlja inozemnog ulagača",null,null,"Transakcija","Tečajna prilagodba","Cjenovna prilagodba","Prilagodba zbog reklasifikacije"]
[]
["<SifraInozemnePravneOsobe>","<ZemljaInozemnogUlagaca>","<ISIN>","<PocetnoStanje>","<Transakcija>","<TecajnaPrilagodba>","<CjenovnaPrilagodba>","<PrilagodbaZbogReklasifikacije>","<NovoStanje>","<NaplacenaDividenda>","<Kod DomacegSkrbnika>"]

{"sheet":"B.2.1.Transakcije-izravna","index":16,"n_rows":3,"n_cols":6,"rows_kept":3,"cut":false,"hidden":false,"merged":[[0,3,1,3],[0,4,1,4],[0,5,1,5],[0,0,0,1],[0,2,1,2]]}
["Šifra inozemne pravne osobe",null,"Mjesec","Iznos","Način plaćanja","Ostvareni udio u vlasništvu (%)"]
["Vrsta inozemnog ulaganja*","Broj inozemnog ulagača "]
["<SifraInozemnogUlagaca>","<BrojInozemnogUlagaca>","<Mjesec>","<Iznos>","<NacinPlacanja>","<OstvareniUdioUVlasnistvu>"]

{"sheet":"B.2.2.Transakcije-portfeljna","index":17,"n_rows":3,"n_cols":6,"rows_kept":3,"cut":false,"hidden":false,"merged":[[0,2,1,2],[0,3,1,3],[0,4,1,4],[0,5,1,5],[0,0,0,1]]}
["Šifra inozemne pravne osobe - portfeljni ulagači (<10%)",null,"Mjesec","Iznos","Način plaćanja","Ostvareni udio u vlasništvu (%)"]
["Vrsta inozemnog ulaganja*","Zemlja inozemne pravne osobe*"]
["<SIFRAINOZEMNEPRAVNEOSOBE>","<ZemljaInozemnePravneOsobe>","<Mjesec>","<Iznos>","<NacinPlacanja>","<OstvareniUdioUVlasnistvu>"]

{"sheet":"Tablica Dodatak A","index":18,"n_rows":2,"n_cols":11,"rows_kept":2,"cut":false,"hidden":false,"merged":[]}
["Poslovna Godina","Zemlja inozemne pravne osobe","Djelatnost (oznaka NACE)","Broj pravnih osoba ","Broj zaposlenih","Prodaja                      (u tisućama EUR)","Troškovi zaposlenika                 (u tisućama EUR)","Dodana vrijednost                  (u tisućama EUR)","Bruto investicije u materijalnu imovinu           (u tisućama EUR)","Izvoz proizvoda i usluga            (u tisućama EUR)","Uvoz proizvoda i usluga            (u tisućama EUR)"]
["<PoslovnaGodina>","<SifraZemlje>","<DjelatnostOznakaNACE>","<BrojPravnihOsoba>","<BrojZaposlenih>","<Prodaja>","<TroskoviZaposlenika>","<DodanaVrijednost>","<BrutoInvesticijeUMaterijalnuImovinu>","<IzvozProizvodaIUsluga>","<UvozProizvodaIUsluga>"]

{"sheet":"Kreiranje datoteke","index":19,"n_rows":38,"n_cols":8,"rows_kept":38,"cut":false,"hidden":false,"merged":[[8,4,8,5],[10,4,10,5],[6,4,6,5]]}
["UPUTA ZA DOSTAVU PODATAKA:"]
[]
["1. Omogućite izvođenje makro naredbi."]
[]
["2. Popunite tablice podacima."]
[]
["3. U narančasto polje upišite OIB:",null,null,null,null,null,null,"potvrdite unos tipkom <ENTER>"]
[]
["4. U žuto polje upišite godinu / odaberite razdoblje izvješća:"]
[]
["5. U plavo polje unesite koji put podnosite izvještaj:                                 "]
[]
["6. Pritisnite gumb 'Kreiraj XLM datoteku' za kreiranje XLM datoteke."]
[]
[]
[]
[]
[]
[]
[]
["7. Datoteka kreirana na lokaciji:"]
[]
[]
["8. Locirajte datoteku na navedenoj lokaciji"]
[]
["9. Provjerite naziv datoteke"]
[]
["10. Dogovorenim načinom dostavite XML datoteku"]
[]
[]
["NAPOMENA"]
["Kod nekih MS Excel verzija je nakon omogućavanja izvođenja makro naredbi datoteku potrebno zatvoriti (da se spreme postavke) te ponovo otvoriti."]
["Do opcija za postavljanje makro naredbi dolazi se putem padajućeg izbornika u MS Excel programu:"]
["Za starije verzije Ecela:"]
["hrv. verzija >> Alati > Odrednice... > Sigurnost > Sigurnost makro naredbe... > odaberite srednja ili niska"]
["eng. verzija >> Tools > Options... > Security > MacroSecurity... > odaberite Medium ili Low"]
["U novijim verzijama Excela: "]
["Datoteka>Mogućnosti>Centar za pouzdanost>Postavke centra za pouzdanost>Postavke makronaredbi> odabir \"Omogući sve makronaredbe\""]